Departmental Family,Entity,Date,Expense Type,Expense Area,Supplier,Transaction Number,Amount
Department for Work and Pensions,Jobcentre Plus,30-Sep-11,ACCOMMODATION,Jobcentre Plus,TELEREAL TRILLIUM,2022696615,"29,925,609"
Department for Work and Pensions,Corporate,13-Sep-11,HOSTING,Corporate IT,HP ENTERPRISE SERVICES UK LTD,2022455951,"9,810,133"
Department for Work and Pensions,Corporate,13-Sep-11,COMPUTER SERVICES,Corporate IT,HP ENTERPRISE SERVICES UK LTD,2022455951,"7,790,117"
Department for Work and Pensions,Corporate,13-Sep-11,NETWORK,Corporate IT,BT GLOBAL SERVICES,2022453239,"7,741,156"
Department for Work and Pensions,European Social Fund,14-Sep-11,ESF Expenditure,WWEG EUROPEAN SOCIAL FUND,SKILLS FUNDING AGENCY,5000000722,"7,703,227"
Department for Work and Pensions,Corporate,28-Sep-11,BANKING AND ENCASHMENT COSTS,GROUP FINANCE,POST OFFICE LTD,1004960,"5,522,432"
Department for Work and Pensions,Corporate,30-Sep-11,TRADE DEBTORS,"Pensions, Disability & Carers Service",TELEREAL TRILLIUM,2022696615,"4,635,056"
Department for Work and Pensions,Jobcentre Plus,30-Sep-11,ACCOMMODATION,Jobcentre Plus,TELEREAL TRILLIUM,2022696617,"4,551,156"
Department for Work and Pensions,Employment Programmes,06-Sep-11,GRANTS IN AID,WWEG EMPLOYMENT PROGRAMMES,REMPLOY LTD,1004948,"4,000,000"
Department for Work and Pensions,Corporate,21-Sep-11,AOS CONTRACTED OUT SERVICES,Shared Services,CABINET OFFICE,2022553072,"3,838,539"
Department for Work and Pensions,Corporate,13-Sep-11,COMPUTER SERVICES,Corporate IT,HP ENTERPRISE SERVICES UK LTD,2022455951,"3,798,646"
Department for Work and Pensions,Corporate,26-Sep-11,EMPLOYMENT PROGRAMMES,"Pensions, Disability & Carers Service",NEST CORPORATION,2002812,"3,500,000"
Department for Work and Pensions,Corporate,13-Sep-11,COMPUTER SERVICES,Corporate IT,BT GLOBAL SERVICES,2022453239,"3,351,869"
Department for Work and Pensions,Jobcentre Plus,12-Sep-11,AOS CONTRACTED OUT SERVICES,Jobcentre Plus,BALFOUR BEATTY WORKPLACE LTD,2022446887,"2,825,892"
Department for Work and Pensions,European Social Fund,02-Sep-11,ESF Expenditure,WWEG EUROPEAN SOCIAL FUND,SKILLS FUNDING AGENCY,5000000704,"2,761,403"
Department for Work and Pensions,European Social Fund,06-Sep-11,ESF Expenditure,WWEG EUROPEAN SOCIAL FUND,SKILLS FUNDING AGENCY,5000000709,"2,682,738"
Department for Work and Pensions,European Social Fund,13-Sep-11,ESF Expenditure,WWEG EUROPEAN SOCIAL FUND,NORTH WEST DWP,5000000715,"2,518,723"
Department for Work and Pensions,Corporate,09-Sep-11,HOSTING,Corporate IT,HP ENTERPRISE SERVICES UK LTD,2022445387,"2,480,798"
Department for Work and Pensions,"Pension, Disability Carers Services",30-Sep-11,ACCOMMODATION,"Pensions, Disability & Carers Service",TELEREAL TRILLIUM,2022696615,"2,449,145"
Department for Work and Pensions,European Social Fund,13-Sep-11,ESF Expenditure,WWEG EUROPEAN SOCIAL FUND,NORTH EAST DWP,5000000714,"2,410,072"
Department for Work and Pensions,Employment Programmes,29-Sep-11,GRANTS IN AID,WWEG EMPLOYMENT PROGRAMMES,REMPLOY LTD,2022691059,"2,350,000"
Department for Work and Pensions,European Social Fund,21-Sep-11,ESF Expenditure,WWEG EUROPEAN SOCIAL FUND,SKILLS FUNDING AGENCY,5000000726,"2,291,382"
Department for Work and Pensions,Jobcentre Plus,30-Sep-11,ACCOMMODATION,Jobcentre Plus,TELEREAL TRILLIUM,2022696615,"2,063,543"
Department for Work and Pensions,European Social Fund,13-Sep-11,ESF Expenditure,WWEG EUROPEAN SOCIAL FUND,SKILLS FUNDING AGENCY,5000000717,"1,904,055"
Department for Work and Pensions,Corporate,13-Sep-11,COMPUTER SERVICES,Corporate IT,BT GLOBAL SERVICES,2022453239,"1,840,061"
Department for Work and Pensions,Corporate,09-Sep-11,SIAM,Corporate IT,HP ENTERPRISE SERVICES UK LTD,2022445387,"1,813,927"
Department for Work and Pensions,Jobcentre Plus,20-Sep-11,MEDICAL SERVICES,Jobcentre Plus,ATOS HEALTHCARE,2022537196,"1,762,497"
Department for Work and Pensions,Corporate,13-Sep-11,IS/IT,Corporate IT,HP ENTERPRISE SERVICES UK LTD,2022455951,"1,737,051"
Department for Work and Pensions,Corporate,05-Sep-11,COMPUTER SERVICES,Corporate & Support Services,CABINET OFFICE,2002785,"1,670,826"
Department for Work and Pensions,Jobcentre Plus,30-Sep-11,ACCOMMODATION,Jobcentre Plus,TELEREAL TRILLIUM,2022696618,"1,664,019"
Department for Work and Pensions,European Social Fund,13-Sep-11,ESF Expenditure,WWEG EUROPEAN SOCIAL FUND,YORKSHIRE & HUMBER DWP,5000000719,"1,637,247"
Department for Work and Pensions,Corporate,05-Sep-11,COMPUTER SERVICES,Corporate & Support Services,CABINET OFFICE,2002785,"1,601,593"
Department for Work and Pensions,Corporate,01-Sep-11,COMPUTER SERVICES,GROUP FINANCE,HP ENTERPRISE SERVICES UK LTD,2022361068,"1,600,000"
Department for Work and Pensions,European Social Fund,05-Sep-11,ESF Expenditure,WWEG EUROPEAN SOCIAL FUND,SOUTH WEST DWP,5000000707,"1,545,684"
Department for Work and Pensions,Corporate,21-Sep-11,AOS CONTRACTED OUT SERVICES,Shared Services,CABINET OFFICE,2022553072,"1,506,136"
Department for Work and Pensions,Corporate,13-Sep-11,COMPUTER SERVICES,Corporate IT,HP ENTERPRISE SERVICES UK LTD,2022455951,"1,486,560"
Department for Work and Pensions,Corporate,16-Sep-11,COMPUTER SERVICES,UNIVERSAL CREDIT,ACCENTURE UK LTD,2022528858,"1,417,706"
Department for Work and Pensions,European Social Fund,13-Sep-11,ESF Expenditure,WWEG EUROPEAN SOCIAL FUND,SOUTH EAST DWP,5000000718,"1,399,800"
Department for Work and Pensions,Jobcentre Plus,12-Sep-11,COMPUTER SERVICES,Jobcentre Plus,HP ENTERPRISE SERVICES UK LTD,2022449797,"1,281,966"
Department for Work and Pensions,Corporate,29-Sep-11,COMPUTER SERVICES,Corporate IT,ACCENTURE UK LTD,2022689278,"1,250,937"
Department for Work and Pensions,European Social Fund,13-Sep-11,ESF Expenditure,WWEG EUROPEAN SOCIAL FUND,EAST OF ENGLAND DWP,5000000713,"1,240,651"
Department for Work and Pensions,European Social Fund,05-Sep-11,ESF Expenditure,WWEG EUROPEAN SOCIAL FUND,EAST MIDLANDS DWP,5000000705,"1,224,696"
Department for Work and Pensions,Corporate,30-Sep-11,ACCOMMODATION,GROUP FINANCE,TELEREAL TRILLIUM,2022696615,"1,215,431"
Department for Work and Pensions,European Social Fund,27-Sep-11,ESF Expenditure,WWEG EUROPEAN SOCIAL FUND,SKILLS FUNDING AGENCY,5000000728,"1,206,210"
Department for Work and Pensions,Jobcentre Plus,30-Sep-11,MEDICAL SERVICES,Jobcentre Plus,ATOS HEALTHCARE,2022693435,"1,203,802"
Department for Work and Pensions,Corporate,13-Sep-11,OTHER GOODS AND SERVICES,WWG SUMMARY,VALUATION OFFICE AGENCY,2002796,"1,200,000"
Department for Work and Pensions,Corporate,19-Sep-11,HOSTING,Corporate IT,HP ENTERPRISE SERVICES UK LTD,2022534845,"1,186,588"
Department for Work and Pensions,Corporate,23-Sep-11,AOS CONTRACTED OUT SERVICES,Shared Services,CAPITA BUSINESS SERVICES LTD,2022612197,"1,174,653"
Department for Work and Pensions,Employment Programmes,09-Sep-11,Hepl for unemployed people,WWEG EMPLOYMENT PROGRAMMES,SKILLS FUNDING AGENCY,1004951,"1,120,804"
Department for Work and Pensions,Corporate,08-Sep-11,CONTRACTED OUT SERVICES,GROUP FINANCE,XEROX UK LTD 3W,2022443482,"1,113,821"
Department for Work and Pensions,Corporate,06-Sep-11,COMPUTER SERVICES,Corporate IT,XEROX UK LTD 3W,2022373440,"1,075,479"
Department for Work and Pensions,Jobcentre Plus,19-Sep-11,POSTAGE,Jobcentre Plus,TNT UK LTD,2022535934,"1,037,009"
Department for Work and Pensions,Housing Benefits,14-Sep-11,Housing Benefit Admin,WWG Housing Benefit,BIRMINGHAM CITY COUNCIL,2022523951,"1,032,452"
Department for Work and Pensions,Jobcentre Plus,15-Sep-11,ACCOMMODATION,Jobcentre Plus,TELEREAL TRILLIUM,2022527125,"980,424"
Department for Work and Pensions,Corporate,30-Sep-11,TRADE DEBTORS,"Pensions, Disability & Carers Service",TELEREAL TRILLIUM,2022696617,"963,289"
Department for Work and Pensions,Employment Programmes,23-Sep-11,YOUNG PERSON'S GUARANTEE,WWEG EMPLOYMENT PROGRAMMES,SALFORD CITY  COUNCIL,2022614714,"937,800"
Department for Work and Pensions,Corporate,12-Sep-11,TELEPHONE AND POSTAGE,GROUP FINANCE,ROYAL MAIL GROUP PLC,2022451319,"936,703"
Department for Work and Pensions,Corporate,14-Sep-11,MISCELLANEOUS EXPENDITURE,Corporate & Support Services,NATCEN,2022505062,"896,611"
Department for Work and Pensions,Corporate,19-Sep-11,TELEPHONE AND POSTAGE,GROUP FINANCE,UK MAIL,2022535941,"882,872"
Department for Work and Pensions,Corporate,26-Sep-11,COMPUTER SERVICES,Corporate IT,HP ENTERPRISE SERVICES UK LTD,2022617567,"851,000"
Department for Work and Pensions,Corporate,13-Sep-11,COMPUTER SERVICES,Corporate IT,HP ENTERPRISE SERVICES UK LTD,2022455951,"831,060"
Department for Work and Pensions,Corporate,15-Sep-11,IS/IT,UNIVERSAL CREDIT,SPECIALIST COMPUTER CENTRES PLC,2022527056,"824,665"
Department for Work and Pensions,Housing Benefits,14-Sep-11,Housing Benefit Admin,WWG Housing Benefit,CITY OF GLASGOW,2022523999,"789,476"
Department for Work and Pensions,Corporate,05-Sep-11,COMPUTER SERVICES,Corporate & Support Services,CABINET OFFICE,2002785,"738,713"
Department for Work and Pensions,"Pension, Disability Carers Services",12-Sep-11,AOS CONTRACTED OUT SERVICES,"Pensions, Disability & Carers Service",BALFOUR BEATTY WORKPLACE LTD,2022446887,"711,857"
Department for Work and Pensions,Corporate,30-Sep-11,ACCOMMODATION,GROUP FINANCE,TELEREAL TRILLIUM,2022696615,"700,791"
Department for Work and Pensions,European Social Fund,08-Sep-11,ESF Expenditure,WWEG EUROPEAN SOCIAL FUND,EAST OF ENGLAND DEVELOPMENT AGENCY,5000000710,"687,036"
Department for Work and Pensions,Corporate,13-Sep-11,APPS DEV,CHANGE MANAGEMENT DIRECTORATE,HP ENTERPRISE SERVICES UK LTD,2022455951,"656,723"
Department for Work and Pensions,Employment Programmes,29-Sep-11,Financial Assets,WWEG EMPLOYMENT PROGRAMMES,GREATER LONDON ENTERPRISE,2022690054,"656,623"
Department for Work and Pensions,Corporate,19-Sep-11,OTHER MAJOR CONTRACTS,GROUP FINANCE,SANTANDER,1004953,"649,947"
Department for Work and Pensions,Housing Benefits,14-Sep-11,Housing Benefit Admin,WWG Housing Benefit,LIVERPOOL CITY COUNCIL,2022524100,"625,683"
Department for Work and Pensions,Corporate,08-Sep-11,COMPUTER SERVICES,Shared Services,FUJITSU SERVICES LTD,2022441783,"589,272"
Department for Work and Pensions,"Pension, Disability Carers Services",08-Sep-11,TEMPORARY (TEMP) STAFF COSTS,"Pensions, Disability & Carers Service",CLUB 24 LTD T/A VENTURA,2022440013,"586,103"
Department for Work and Pensions,Corporate,06-Sep-11,INTRA DWP PAYABLES,"Pensions, Disability & Carers Service",INDEPENDENT LIVING FUND,1004946,"580,000"
Department for Work and Pensions,Employment Programmes,01-Sep-11,YOUNG PERSON'S GUARANTEE,WWEG EMPLOYMENT PROGRAMMES,KNOWSLEY METROPOLITAN BOROUGH COUNCIL,2022361269,"579,431"
Department for Work and Pensions,Employment Programmes,20-Sep-11,INTRA DWP PAYABLES,"Pensions, Disability & Carers Service",DWP,2002805,"578,286"
Department for Work and Pensions,Housing Benefits,14-Sep-11,Housing Benefit Admin,WWG Housing Benefit,LEEDS CITY COUNCIL,2022524095,"559,512"
Department for Work and Pensions,Corporate,30-Sep-11,ACCOMMODATION,GROUP FINANCE,TELEREAL TRILLIUM,2022696615,"544,805"
Department for Work and Pensions,Corporate,09-Sep-11,COMPUTER SERVICES,Corporate IT,HP ENTERPRISE SERVICES UK LTD,2022445387,"542,601"
Department for Work and Pensions,European Social Fund,30-Sep-11,INTRA DWP PAYABLES,WWEG EUROPEAN SOCIAL FUND,SCOTTISH GOVERNMENT,2002819,"540,195"
Department for Work and Pensions,Corporate,30-Sep-11,ACCOMMODATION,GROUP FINANCE,TELEREAL TRILLIUM,2022696615,"538,835"
Department for Work and Pensions,"Pension, Disability Carers Services",22-Sep-11,OTHER EXPENDITURE,"Pensions, Disability & Carers Service",ATOS ORIGIN IT SERVICES UK,2022607811,"531,482"
Department for Work and Pensions,Housing Benefits,14-Sep-11,Housing Benefit Admin,WWG Housing Benefit,MANCHESTER CITY COUNCIL,2022524133,"521,148"
Department for Work and Pensions,Corporate,12-Sep-11,COMPUTER SERVICES,Corporate IT,HP ENTERPRISE SERVICES UK LTD,2022449797,"519,957"
Department for Work and Pensions,Corporate,30-Sep-11,ACCOMMODATION,Shared Services,TELEREAL TRILLIUM,2022696615,"519,336"
Department for Work and Pensions,Employment Programmes,26-Sep-11,YOUNG PERSON'S GUARANTEE,WWEG EMPLOYMENT PROGRAMMES,BIRMINGHAM CITY COUNCIL,2022616243,"510,900"
Department for Work and Pensions,Corporate,29-Sep-11,Accommodation Costs,GROUP FINANCE,STANDARD LIFE INVESTMENTS,2022691277,"492,161"
Department for Work and Pensions,Jobcentre Plus,23-Sep-11,CONTRACTED OUT SERVICES,Jobcentre Plus,CAPITA BUSINESS SERVICES LTD,2022612198,"485,156"
Department for Work and Pensions,Employment Programmes,12-Sep-11,YOUNG PERSON'S GUARANTEE,WWEG EMPLOYMENT PROGRAMMES,BIRMINGHAM CITY COUNCIL,2022446913,"482,250"
Department for Work and Pensions,Employment Programmes,15-Sep-11,YOUNG PERSON'S GUARANTEE,WWEG EMPLOYMENT PROGRAMMES,BIRMINGHAM CITY COUNCIL,2022524544,"475,050"
Department for Work and Pensions,Corporate,16-Sep-11,COMPUTER SERVICES,Corporate IT,HP ENTERPRISE SERVICES UK LTD,2022530910,"463,082"
Department for Work and Pensions,Jobcentre Plus,02-Sep-11,EMPLOYMENT PROGRAMMES,"Pensions, Disability & Carers Service",A4E LTD,2022363019,"447,522"
Department for Work and Pensions,Housing Benefits,14-Sep-11,Housing Benefit Admin,WWG Housing Benefit,DURHAM COUNCIL,2022524028,"446,708"
Department for Work and Pensions,Housing Benefits,14-Sep-11,Housing Benefit Admin,WWG Housing Benefit,BRADFORD METROPOLITAN BOROUGH COUNCIL,2022523964,"443,966"
Department for Work and Pensions,Jobcentre Plus,23-Sep-11,AOS CONTRACTED OUT SERVICES,Jobcentre Plus,VERTEX DATA SCIENCE LTD,2022614873,"439,059"
Department for Work and Pensions,Corporate,20-Sep-11,OTHER EXPENDITURE,Shared Services,XAFINITY CLAYBROOK,2022541078,"427,764"
Department for Work and Pensions,Corporate,12-Sep-11,APPS DEV,GROUP FINANCE,HP ENTERPRISE SERVICES UK LTD,2022449797,"421,202"
Department for Work and Pensions,Jobcentre Plus,02-Sep-11,EMPLOYMENT PROGRAMMES,"Pensions, Disability & Carers Service",SHAW TRUST LTD,2022364696,"415,027"
Department for Work and Pensions,"Pension, Disability Carers Services",30-Sep-11,ACCOMMODATION,"Pensions, Disability & Carers Service",TELEREAL TRILLIUM,2022696617,"404,113"
Department for Work and Pensions,"Pension, Disability Carers Services",23-Sep-11,OTHER EXPENDITURE,"Pensions, Disability & Carers Service",ATOS ORIGIN IT SERVICES UK LTD,2022612030,"401,702"
Department for Work and Pensions,Corporate,09-Sep-11,MISCELLANEOUS EXPENDITURE,"Pensions, Disability & Carers Service",HM REVENUE & CUSTOMS,2002792,"400,000"
Department for Work and Pensions,Corporate,15-Sep-11,COMPUTER SERVICES,Corporate IT,ATOS ORIGIN IT SERVICES UK LTD,2022524500,"398,874"
Department for Work and Pensions,Employment Programmes,12-Sep-11,EP PROVIDER PAYMENT - NON-WORK PROGRAMME,WWEG EMPLOYMENT PROGRAMMES,A4E LTD,2022446785,"397,015"
Department for Work and Pensions,Employment Programmes,30-Sep-11,EP PROVIDER PAYMENT - NON-WORK PROGRAMME,WWEG EMPLOYMENT PROGRAMMES,SHAW TRUST,2022696486,"392,600"
Department for Work and Pensions,Housing Benefits,14-Sep-11,Housing Benefit Admin,WWG Housing Benefit,LONDON BOROUGH OF TOWER HAMLETS,2022524126,"388,535"
Department for Work and Pensions,Corporate,13-Sep-11,COMPUTER SERVICES,Corporate IT,HP ENTERPRISE SERVICES UK LTD,2022455951,"385,483"
Department for Work and Pensions,Corporate,30-Sep-11,COMPUTER SERVICES,Corporate IT,ATOS ORIGIN IT SERVICES UK LTD,2022693436,"382,919"
Department for Work and Pensions,Housing Benefits,14-Sep-11,Housing Benefit Admin,WWG Housing Benefit,SHEFFIELD CITY COUNCIL,2022524213,"382,037"
Department for Work and Pensions,Housing Benefits,14-Sep-11,Housing Benefit Admin,WWG Housing Benefit,LONDON BOROUGH OF LAMBETH,2022524118,"370,235"
Department for Work and Pensions,Housing Benefits,14-Sep-11,Housing Benefit Admin,WWG Housing Benefit,CORNWALL COUNCIL,2022524008,"368,509"
Department for Work and Pensions,Corporate,08-Sep-11,MISCELLANEOUS EXPENDITURE,WWG SUMMARY,OFFICE FOR NATIONAL STATISTICS,2022442849,"367,477"
Department for Work and Pensions,Housing Benefits,14-Sep-11,Housing Benefit Admin,WWG Housing Benefit,LONDON BOROUGH OF LEWISHAM,2022524119,"365,854"
Department for Work and Pensions,Housing Benefits,14-Sep-11,Housing Benefit Admin,WWG Housing Benefit,HACKNEY LBC,2022524067,"364,812"
Department for Work and Pensions,Corporate,30-Sep-11,TRADE DEBTORS,"Pensions, Disability & Carers Service",TELEREAL TRILLIUM,2022696618,"364,405"
Department for Work and Pensions,Housing Benefits,14-Sep-11,Housing Benefit Admin,WWG Housing Benefit,BRISTOL CITY COUNCIL,2022523970,"363,124"
Department for Work and Pensions,Jobcentre Plus,12-Sep-11,APPS DEV,Jobcentre Plus,HP ENTERPRISE SERVICES UK LTD,2022449797,"354,295"
Department for Work and Pensions,Housing Benefits,14-Sep-11,Housing Benefit Admin,WWG Housing Benefit,LONDON BOROUGH OF SOUTHWARK,2022524124,"353,365"
Department for Work and Pensions,Jobcentre Plus,02-Sep-11,EMPLOYMENT PROGRAMMES,"Pensions, Disability & Carers Service",BUSINESS EMPLOYMENT SERVICES TRAINING LTD,2022363119,"353,138"
Department for Work and Pensions,Corporate,30-Sep-11,ACCOMMODATION,GROUP FINANCE,TELEREAL TRILLIUM,2022696617,"345,487"
Department for Work and Pensions,Housing Benefits,14-Sep-11,Housing Benefit Admin,WWG Housing Benefit,LONDON BOROUGH OF NEWHAM,2022524121,"338,233"
Department for Work and Pensions,Housing Benefits,14-Sep-11,Housing Benefit Admin,WWG Housing Benefit,EDINBURGH DISTRICT COUNCIL,2022524045,"338,190"
Department for Work and Pensions,Corporate,20-Sep-11,HOSTING,Corporate IT,HP ENTERPRISE SERVICES UK LTD,2022539097,"337,133"
Department for Work and Pensions,Employment Programmes,01-Sep-11,YOUNG PERSON'S GUARANTEE,WWEG EMPLOYMENT PROGRAMMES,MERTHYR TYDFIL COUNTY BOROUGH COUNCIL,2022362899,"334,800"
Department for Work and Pensions,European Social Fund,27-Sep-11,ESF Expenditure,WWEG EUROPEAN SOCIAL FUND,COMMUNITY FOUNDATION FOR MERSEYSIDE,5000000727,"330,523"
Department for Work and Pensions,Employment Programmes,06-Sep-11,YOUNG PERSON'S GUARANTEE,WWEG EMPLOYMENT PROGRAMMES,NATIONAL SKILLS ACADEMY FOR SPORT & ACTIVE LEISURE,2022372680,"328,500"
Department for Work and Pensions,Housing Benefits,14-Sep-11,Housing Benefit Admin,WWG Housing Benefit,LONDON BOROUGH OF BRENT,2022524104,"317,783"
Department for Work and Pensions,"Pension, Disability Carers Services",23-Sep-11,CONTRACTED OUT SERVICES,"Pensions, Disability & Carers Service",CAPITA BUSINESS SERVICES LTD,2022612198,"315,212"
Department for Work and Pensions,Corporate,13-Sep-11,APPS DEV,UNIVERSAL CREDIT,HP ENTERPRISE SERVICES UK LTD,2022455951,"314,863"
Department for Work and Pensions,Housing Benefits,14-Sep-11,Housing Benefit Admin,WWG Housing Benefit,KIRKLEES METROPOLITAN BOROUGH COUNCIL,2022524092,"311,862"
Department for Work and Pensions,Corporate,30-Sep-11,ACCOMMODATION,GROUP FINANCE,TELEREAL TRILLIUM,2022696615,"307,558"
Department for Work and Pensions,Housing Benefits,14-Sep-11,Housing Benefit Admin,WWG Housing Benefit,SANDWELL BOROUGH COUNCIL,2022524206,"306,783"
Department for Work and Pensions,Housing Benefits,14-Sep-11,Housing Benefit Admin,WWG Housing Benefit,CROYDON PEO%,2022524015,"305,707"
Department for Work and Pensions,Jobcentre Plus,30-Sep-11,ACCOMMODATION,Jobcentre Plus,TELEREAL TRILLIUM,2022696617,"304,991"
Department for Work and Pensions,Housing Benefits,14-Sep-11,Housing Benefit Admin,WWG Housing Benefit,LONDON BOROUGH OF ISLINGTON,2022524116,"302,185"
Department for Work and Pensions,Housing Benefits,14-Sep-11,Housing Benefit Admin,WWG Housing Benefit,LONDON BOROUGH OF EALING,2022524107,"301,452"
Department for Work and Pensions,Housing Benefits,14-Sep-11,Housing Benefit Admin,WWG Housing Benefit,LONDON BOROUGH OF HARINGEY,2022524111,"293,615"
Department for Work and Pensions,Housing Benefits,14-Sep-11,Housing Benefit Admin,WWG Housing Benefit,NOTTINGHAM CITY COUNCIL,2022524170,"293,187"
Department for Work and Pensions,Housing Benefits,14-Sep-11,Housing Benefit Admin,WWG Housing Benefit,LEICESTER CITY COUNCIL,2022524096,"287,913"
Department for Work and Pensions,Housing Benefits,14-Sep-11,Housing Benefit Admin,WWG Housing Benefit,LONDON BOROUGH OF ENFIELD,2022524108,"287,554"
Department for Work and Pensions,Employment Programmes,30-Sep-11,EP PROVIDER PAYMENT - NON-WORK PROGRAMME,WWEG EMPLOYMENT PROGRAMMES,WORKING LINKS,2022696745,"287,358"
Department for Work and Pensions,Corporate,30-Sep-11,ACCOMMODATION,GROUP FINANCE,TELEREAL TRILLIUM,2022696615,"286,709"
Department for Work and Pensions,Employment Programmes,12-Sep-11,RESIDENTIAL TRAINING,WWEG EMPLOYMENT PROGRAMMES,ST LOYES COLLEGE FOUNDATION,2022451644,"286,280"
Department for Work and Pensions,Corporate,30-Sep-11,ACCOMMODATION,GROUP FINANCE,TELEREAL TRILLIUM,2022696617,"284,233"
Department for Work and Pensions,Housing Benefits,14-Sep-11,Housing Benefit Admin,WWG Housing Benefit,NORTH LANARKSHIRE COUNCIL,2022524160,"283,007"
Department for Work and Pensions,Housing Benefits,14-Sep-11,Housing Benefit Admin,WWG Housing Benefit,SUNDERLAND CITY COUNCIL,2022524252,"281,931"
Department for Work and Pensions,Employment Programmes,20-Sep-11,EMPLOYMENT INITIATIVES,WWEG EMPLOYMENT PROGRAMMES,REED IN PARTNERSHIP HACKNEY LTD,2022540466,"279,934"
Department for Work and Pensions,Housing Benefits,14-Sep-11,Housing Benefit Admin,WWG Housing Benefit,WAKEFIELD METROPOLITAN DISTRICT COUNCIL,2022524278,"276,618"
Department for Work and Pensions,Housing Benefits,14-Sep-11,Housing Benefit Admin,WWG Housing Benefit,COVENTRY CITY COUNCIL,2022524012,"276,337"
Department for Work and Pensions,Housing Benefits,14-Sep-11,Housing Benefit Admin,WWG Housing Benefit,KINGSTON UPON HULL CITY COUNCIL,2022524091,"274,061"
Department for Work and Pensions,Corporate,23-Sep-11,COMPUTER SERVICES,UNIVERSAL CREDIT,ATOS ORIGIN IT SERVICES UK LTD,2022612030,"271,993"
Department for Work and Pensions,Housing Benefits,14-Sep-11,Housing Benefit Admin,WWG Housing Benefit,WIRRAL BOROUGH COUNCIL,2022524301,"271,978"
Department for Work and Pensions,Housing Benefits,14-Sep-11,Housing Benefit Admin,WWG Housing Benefit,BRIGHTON & HOVE COUNCIL,2022523969,"271,462"
Department for Work and Pensions,Employment Programmes,30-Sep-11,EP PROVIDER PAYMENT - NON-WORK PROGRAMME,WWEG EMPLOYMENT PROGRAMMES,SHAW TRUST,2022696486,"270,725"
Department for Work and Pensions,Housing Benefits,14-Sep-11,Housing Benefit Admin,WWG Housing Benefit,WALSALL BOROUGH COUNCIL,2022524279,"270,578"
Department for Work and Pensions,Employment Programmes,30-Sep-11,EP PROVIDER PAYMENT - NON-WORK PROGRAMME,WWEG EMPLOYMENT PROGRAMMES,THE PLUSS ORGANISATION,2022696628,"266,240"
Department for Work and Pensions,Employment Programmes,30-Sep-11,EP PROVIDER PAYMENT - NON-WORK PROGRAMME,WWEG EMPLOYMENT PROGRAMMES,SEETEC BUSINESS TECHNOLOGY CENTRE LTD,2022696484,"265,529"
Department for Work and Pensions,Housing Benefits,14-Sep-11,Housing Benefit Admin,WWG Housing Benefit,LONDON BOROUGH OF WANDSWORTH,2022524128,"264,293"
Department for Work and Pensions,Housing Benefits,14-Sep-11,Housing Benefit Admin,WWG Housing Benefit,FIFE COUNCIL,2022524054,"262,739"
Department for Work and Pensions,Employment Programmes,14-Sep-11,RESIDENTIAL TRAINING,WWEG EMPLOYMENT PROGRAMMES,FINCHALE TRAINING COLLEGE,2022477995,"262,603"
Department for Work and Pensions,Corporate,12-Sep-11,AOS CONTRACTED OUT SERVICES,GROUP FINANCE,BALFOUR BEATTY WORKPLACE LTD,2022446887,"261,664"
Department for Work and Pensions,Housing Benefits,14-Sep-11,Housing Benefit Admin,WWG Housing Benefit,LONDON BOROUGH OF GREENWICH,2022524109,"260,369"
Department for Work and Pensions,Employment Programmes,12-Sep-11,YOUNG PERSON'S GUARANTEE,WWEG EMPLOYMENT PROGRAMMES,3SC,2022446584,"259,350"
Department for Work and Pensions,Employment Programmes,30-Sep-11,EP PROVIDER PAYMENT - NON-WORK PROGRAMME,WWEG EMPLOYMENT PROGRAMMES,SHAW TRUST,2022696486,"256,444"
Department for Work and Pensions,Housing Benefits,14-Sep-11,Housing Benefit Admin,WWG Housing Benefit,CARDIFF CITY COUNCIL,2022523982,"255,850"
Department for Work and Pensions,Housing Benefits,14-Sep-11,Housing Benefit Admin,WWG Housing Benefit,LONDON BOROUGH OF CAMDEN,2022524106,"255,078"
Department for Work and Pensions,Employment Programmes,14-Sep-11,YOUNG PERSON'S GUARANTEE,WWEG EMPLOYMENT PROGRAMMES,CITY & COUNTY OF SWANSEA,2022469754,"254,550"
Department for Work and Pensions,Corporate,13-Sep-11,COMPUTER SERVICES,Corporate IT,HP ENTERPRISE SERVICES UK LTD,2022455951,"253,542"
Department for Work and Pensions,Housing Benefits,14-Sep-11,Housing Benefit Admin,WWG Housing Benefit,WOLVERHAMPTON CITY COUNCIL,2022524304,"251,247"
Department for Work and Pensions,Employment Programmes,30-Sep-11,EP PROVIDER PAYMENT - NON-WORK PROGRAMME,WWEG EMPLOYMENT PROGRAMMES,SHAW TRUST,2022696486,"248,095"
Department for Work and Pensions,Housing Benefits,14-Sep-11,Housing Benefit Admin,WWG Housing Benefit,LONDON BOROUGH OF BARNET,2022524102,"246,635"
Department for Work and Pensions,Employment Programmes,01-Sep-11,EU PROGRAMMES,WWEG EMPLOYMENT PROGRAMMES,A4E LTD,2022359622,"245,345"
Department for Work and Pensions,Housing Benefits,14-Sep-11,Housing Benefit Admin,WWG Housing Benefit,NEWCASTLE CITY COUNCIL,2022524150,"244,177"
Department for Work and Pensions,Housing Benefits,14-Sep-11,Housing Benefit Admin,WWG Housing Benefit,DONCASTER METROPOLITAN BOROUGH COUNCIL,2022524023,"242,625"
Department for Work and Pensions,Employment Programmes,08-Sep-11,Financial Assets,WWEG EMPLOYMENT PROGRAMMES,CDFA,2022439993,"241,714"
Department for Work and Pensions,Housing Benefits,14-Sep-11,Housing Benefit Admin,WWG Housing Benefit,SALFORD CITY COUNCIL,2022524205,"240,644"
Department for Work and Pensions,Employment Programmes,30-Sep-11,EP PROVIDER PAYMENT - NON-WORK PROGRAMME,WWEG EMPLOYMENT PROGRAMMES,THE PLUSS ORGANISATION,2022696628,"240,164"
Department for Work and Pensions,Housing Benefits,14-Sep-11,Housing Benefit Admin,WWG Housing Benefit,SOUTH LANARKSHIRE COUNCIL,2022524228,"239,641"
Department for Work and Pensions,Corporate,16-Sep-11,COMPUTER SERVICES,Corporate IT,TELEFONICA O2 UK LTD,2022532077,"238,859"
Department for Work and Pensions,Employment Programmes,12-Sep-11,RESIDENTIAL TRAINING,WWEG EMPLOYMENT PROGRAMMES,QUEEN ELIZABETHS FOUNDATION TRAINING COLLEGE,2022451142,"237,977"
Department for Work and Pensions,Corporate,01-Sep-11,BANKING AND ENCASHMENT COSTS,GROUP FINANCE,HSBC BANK PLC,2022361069,"236,438"
Department for Work and Pensions,Corporate,29-Sep-11,COMPUTER SERVICES,GROUP FINANCE,ACCENTURE UK LTD,2022689278,"236,092"
Department for Work and Pensions,Employment Programmes,30-Sep-11,EP PROVIDER PAYMENT - NON-WORK PROGRAMME,WWEG EMPLOYMENT PROGRAMMES,ADVANCE HOUSING & SUPPORT LTD,2022693409,"235,101"
Department for Work and Pensions,Housing Benefits,14-Sep-11,Housing Benefit Admin,WWG Housing Benefit,CITY OF WESTMINSTER,2022524000,"235,056"
Department for Work and Pensions,Corporate,09-Sep-11,COMPUTER SERVICES,Corporate IT,HP ENTERPRISE SERVICES UK LTD,2022445387,"234,040"
Department for Work and Pensions,Employment Programmes,30-Sep-11,EP PROVIDER PAYMENT - NON-WORK PROGRAMME,WWEG EMPLOYMENT PROGRAMMES,SHAW TRUST,2022696486,"232,886"
Department for Work and Pensions,Housing Benefits,14-Sep-11,Housing Benefit Admin,WWG Housing Benefit,LONDON BOROUGH OF WALTHAM FOREST,2022524127,"232,821"
Department for Work and Pensions,Housing Benefits,14-Sep-11,Housing Benefit Admin,WWG Housing Benefit,WIGAN BOROUGH COUNCIL,2022524297,"231,937"
Department for Work and Pensions,Jobcentre Plus,23-Sep-11,EU PROGRAMMES,Jobcentre Plus,GATESHEAD COUNCIL,2022613686,"231,245"
Department for Work and Pensions,Housing Benefits,14-Sep-11,Housing Benefit Admin,WWG Housing Benefit,WILTSHIRE COUNCIL,2022524298,"229,642"
Department for Work and Pensions,Employment Programmes,30-Sep-11,EP PROVIDER PAYMENT - NON-WORK PROGRAMME,WWEG EMPLOYMENT PROGRAMMES,SHAW TRUST,2022696486,"227,867"
Department for Work and Pensions,Corporate,12-Sep-11,APPS DEV,CHANGE MANAGEMENT DIRECTORATE,HP ENTERPRISE SERVICES UK LTD,2022449797,"224,595"
Department for Work and Pensions,European Social Fund,13-Sep-11,ESF Expenditure,WWEG EUROPEAN SOCIAL FUND,EAST OF ENGLAND DEVELOPMENT AGENCY,5000000712,"223,911"
Department for Work and Pensions,Corporate,01-Sep-11,BANKING AND ENCASHMENT COSTS,GROUP FINANCE,HSBC BANK PLC,2022361070,"223,081"
Department for Work and Pensions,Corporate,20-Sep-11,APPS DEV,Corporate IT,HP ENTERPRISE SERVICES UK LTD,2022539097,"221,827"
Department for Work and Pensions,Housing Benefits,14-Sep-11,Housing Benefit Admin,WWG Housing Benefit,DUDLEY METROPOLITAN BOROUGH COUNCIL,2022524025,"221,667"
Department for Work and Pensions,Housing Benefits,14-Sep-11,Housing Benefit Admin,WWG Housing Benefit,STOKE ON TRENT CITY COUNCIL,2022524248,"219,935"
Department for Work and Pensions,"Pension, Disability Carers Services",07-Sep-11,CONTRACTED OUT OFFICE SERVICES,"Pensions, Disability & Carers Service",BALFOUR BEATTY WORKPLACE LTD,2022380591,"219,065"
Department for Work and Pensions,Corporate,12-Sep-11,AOS CONTRACTED OUT SERVICES,Shared Services,BALFOUR BEATTY WORKPLACE LTD,2022446887,"217,779"
Department for Work and Pensions,Housing Benefits,14-Sep-11,Housing Benefit Admin,WWG Housing Benefit,BOLTON METROPOLITAN BOROUGH COUNCIL,2022523957,"217,405"
Department for Work and Pensions,Housing Benefits,14-Sep-11,Housing Benefit Admin,WWG Housing Benefit,SEFTON METROPOLITAN BOROUGH COUNCIL,2022524210,"216,843"
Department for Work and Pensions,Employment Programmes,30-Sep-11,EP PROVIDER PAYMENT - NON-WORK PROGRAMME,WWEG EMPLOYMENT PROGRAMMES,WORKING LINKS,2022696745,"216,437"
Department for Work and Pensions,Corporate,16-Sep-11,COMPUTER SERVICES,UNIVERSAL CREDIT,HP ENTERPRISE SERVICES UK LTD,2022530910,"215,468"
Department for Work and Pensions,Housing Benefits,14-Sep-11,Housing Benefit Admin,WWG Housing Benefit,NORTHUMBERLAND COUNCIL,2022524168,"212,210"
Department for Work and Pensions,Employment Programmes,30-Sep-11,EP PROVIDER PAYMENT - NON-WORK PROGRAMME,WWEG EMPLOYMENT PROGRAMMES,SHAW TRUST,2022696486,"211,557"
Department for Work and Pensions,Employment Programmes,30-Sep-11,EP PROVIDER PAYMENT - NON-WORK PROGRAMME,WWEG EMPLOYMENT PROGRAMMES,MOMENTUM SCOTLAND,2022695910,"206,916"
Department for Work and Pensions,Employment Programmes,30-Sep-11,EP PROVIDER PAYMENT - NON-WORK PROGRAMME,WWEG EMPLOYMENT PROGRAMMES,SHAW TRUST,2022696486,"206,252"
Department for Work and Pensions,"Pension, Disability Carers Services",30-Sep-11,ACCOMMODATION,"Pensions, Disability & Carers Service",TELEREAL TRILLIUM,2022696618,"205,163"
Department for Work and Pensions,Corporate,13-Sep-11,COMPUTER SERVICES,UNIVERSAL CREDIT,HP ENTERPRISE SERVICES UK LTD,2022455951,"204,261"
Department for Work and Pensions,European Social Fund,02-Sep-11,ESF Expenditure,WWEG EUROPEAN SOCIAL FUND,CORNWALL COLLEGE,5000000703,"204,093"
Department for Work and Pensions,Employment Programmes,30-Sep-11,EP PROVIDER PAYMENT - NON-WORK PROGRAMME,WWEG EMPLOYMENT PROGRAMMES,SHAW TRUST,2022696486,"203,539"
Department for Work and Pensions,Jobcentre Plus,08-Sep-11,EMPLOYMENT PROGRAMMES,"Pensions, Disability & Carers Service",REED IN PARTNERSHIP,2022443039,"203,169"
Department for Work and Pensions,Jobcentre Plus,02-Sep-11,EMPLOYMENT PROGRAMMES,"Pensions, Disability & Carers Service",TRAINING WEST LANCASHIRE LTD,2022364799,"203,129"
Department for Work and Pensions,Employment Programmes,20-Sep-11,EMPLOYMENT INITIATIVES,WWEG EMPLOYMENT PROGRAMMES,WORKING LINKS,2022541069,"202,476"
Department for Work and Pensions,Housing Benefits,14-Sep-11,Housing Benefit Admin,WWG Housing Benefit,PLYMOUTH CITY COUNCIL,2022524180,"202,462"
Department for Work and Pensions,Housing Benefits,14-Sep-11,Housing Benefit Admin,WWG Housing Benefit,LONDON BOROUGH OF HOUNSLOW,2022524115,"201,896"
Department for Work and Pensions,Jobcentre Plus,02-Sep-11,EMPLOYMENT PROGRAMMES,"Pensions, Disability & Carers Service",SENCIA LTD,2022364688,"201,797"
Department for Work and Pensions,Employment Programmes,06-Sep-11,YOUNG PERSON'S GUARANTEE,WWEG EMPLOYMENT PROGRAMMES,NORTH LANARKSHIRE COUNCIL,2022372702,"201,600"
Department for Work and Pensions,Employment Programmes,30-Sep-11,EP PROVIDER PAYMENT - NON-WORK PROGRAMME,WWEG EMPLOYMENT PROGRAMMES,SHAW TRUST,2022696486,"201,565"
Department for Work and Pensions,Housing Benefits,14-Sep-11,Housing Benefit Admin,WWG Housing Benefit,LONDON BOROUGH OF HILLINGDON,2022524114,"201,509"
Department for Work and Pensions,Corporate,27-Sep-11,IS/IT,Corporate IT,SPECIALIST COMPUTER CENTRES PLC,1004959,"201,310"
Department for Work and Pensions,Corporate,15-Sep-11,TRADE DEBTORS,"Pensions, Disability & Carers Service",TELEREAL TRILLIUM,2022527125,"200,283"
Department for Work and Pensions,Housing Benefits,14-Sep-11,Housing Benefit Admin,WWG Housing Benefit,ROTHERHAM BOROUGH COUNCIL,2022524197,"196,790"
Department for Work and Pensions,Employment Programmes,30-Sep-11,EP PROVIDER PAYMENT - NON-WORK PROGRAMME,WWEG EMPLOYMENT PROGRAMMES,SHAW TRUST,2022696486,"196,103"
Department for Work and Pensions,Corporate,09-Sep-11,IS/IT,Corporate IT,HP ENTERPRISE SERVICES UK LTD,2022445387,"195,416"
Department for Work and Pensions,Employment Programmes,30-Sep-11,EP PROVIDER PAYMENT - NON-WORK PROGRAMME,WWEG EMPLOYMENT PROGRAMMES,SHAW TRUST,2022696486,"194,319"
Department for Work and Pensions,Employment Programmes,23-Sep-11,EMPLOYMENT INITIATIVES,WWEG EMPLOYMENT PROGRAMMES,REED IN PARTNERSHIP HACKNEY LTD,2022614530,"191,600"
Department for Work and Pensions,Housing Benefits,14-Sep-11,Housing Benefit Admin,WWG Housing Benefit,EAST RIDING OF YORKSHIRE BOROUGH COUNCIL,2022524040,"191,497"
Department for Work and Pensions,Housing Benefits,14-Sep-11,Housing Benefit Admin,WWG Housing Benefit,CHESHIRE WEST & CHESTER COUNCIL,2022523992,"191,385"
Department for Work and Pensions,Corporate,22-Sep-11,PRINCES YOUTH TRUST,WWG SUMMARY,THE FIT FOR WORK TEAM,2022610187,"191,250"
Department for Work and Pensions,Housing Benefits,14-Sep-11,Housing Benefit Admin,WWG Housing Benefit,MEDWAY TOWNS COUNCIL,2022524135,"191,188"
Department for Work and Pensions,Housing Benefits,14-Sep-11,Housing Benefit Admin,WWG Housing Benefit,TAMESIDE BOROUGH COUNCIL,2022524257,"191,093"
Department for Work and Pensions,Housing Benefits,14-Sep-11,Housing Benefit Admin,WWG Housing Benefit,LONDON BOROUGH OF HAMMERSMITH & FULHAM,2022524110,"190,663"
Department for Work and Pensions,Employment Programmes,30-Sep-11,EP PROVIDER PAYMENT - NON-WORK PROGRAMME,WWEG EMPLOYMENT PROGRAMMES,WORKING LINKS,2022696745,"190,548"
Department for Work and Pensions,Corporate,13-Sep-11,AMS,Corporate IT,HP ENTERPRISE SERVICES UK LTD,2022455951,"190,409"
Department for Work and Pensions,Employment Programmes,06-Sep-11,YOUNG PERSON'S GUARANTEE,WWEG EMPLOYMENT PROGRAMMES,GOOLE DEVELOPMENT TRUST,2022371861,"189,750"
Department for Work and Pensions,Housing Benefits,14-Sep-11,Housing Benefit Admin,WWG Housing Benefit,SOUTHAMPTON CITY COUNCIL,2022524236,"187,775"
Department for Work and Pensions,Housing Benefits,14-Sep-11,Housing Benefit Admin,WWG Housing Benefit,PORTSMOUTH CITY COUNCIL,2022524182,"187,378"
Department for Work and Pensions,Corporate,13-Sep-11,PRINTING STATIONERY IT CONSUMABLES,GROUP FINANCE,XEROX UK LTD 3W,2022457977,"187,064"
Department for Work and Pensions,Housing Benefits,14-Sep-11,Housing Benefit Admin,WWG Housing Benefit,RHONDDA CYNON TAFF COUNTY BOROUGH COUNCIL,2022524190,"186,767"
Department for Work and Pensions,Corporate,12-Sep-11,COMPUTER SERVICES,Corporate IT,ATOS ORIGIN IT SERVICES UK LTD,2022446829,"184,248"
Department for Work and Pensions,Corporate,05-Sep-11,COMPUTER SERVICES,Corporate IT,VODAFONE LTD,2022369024,"184,204"
Department for Work and Pensions,Housing Benefits,14-Sep-11,Housing Benefit Admin,WWG Housing Benefit,CHESHIRE EAST BOROUGH COUNCIL,2022523991,"184,198"
Department for Work and Pensions,Jobcentre Plus,08-Sep-11,EMPLOYMENT PROGRAMMES,"Pensions, Disability & Carers Service",BUSINESS EMPLOYMENT SERVICES TRAINING LTD,2022439831,"182,992"
Department for Work and Pensions,Corporate,12-Sep-11,APPS DEV,CHANGE MANAGEMENT DIRECTORATE,HP ENTERPRISE SERVICES UK LTD,2022449797,"182,742"
Department for Work and Pensions,Housing Benefits,14-Sep-11,Housing Benefit Admin,WWG Housing Benefit,STOCKPORT BOROUGH COUNCIL,2022524246,"182,624"
Department for Work and Pensions,"Pension, Disability Carers Services",19-Sep-11,MEDICAL SERVICES,"Pensions, Disability & Carers Service",ATOS HEALTHCARE,2022533246,"181,456"
Department for Work and Pensions,Housing Benefits,14-Sep-11,Housing Benefit Admin,WWG Housing Benefit,LONDON BOROUGH OF HARROW,2022524112,"181,018"
Department for Work and Pensions,Corporate,19-Sep-11,COMPUTER SERVICES,Corporate IT,VODAFONE LTD,2022535974,"181,000"
Department for Work and Pensions,Employment Programmes,30-Sep-11,EP PROVIDER PAYMENT - NON-WORK PROGRAMME,WWEG EMPLOYMENT PROGRAMMES,SHAW TRUST,2022696486,"180,828"
Department for Work and Pensions,Housing Benefits,14-Sep-11,Housing Benefit Admin,WWG Housing Benefit,BARNSLEY BOROUGH COUNCIL,2022523944,"180,115"
Department for Work and Pensions,"Pension, Disability Carers Services",15-Sep-11,ACCOMMODATION,"Pensions, Disability & Carers Service",TELEREAL TRILLIUM,2022527125,"180,060"
Department for Work and Pensions,Housing Benefits,14-Sep-11,Housing Benefit Admin,WWG Housing Benefit,MILTON KEYNES BOROUGH COUNCIL,2022524144,"178,651"
Department for Work and Pensions,Employment Programmes,30-Sep-11,EP PROVIDER PAYMENT - NON-WORK PROGRAMME,WWEG EMPLOYMENT PROGRAMMES,INGEUS UK LTD,2022695169,"177,668"
Department for Work and Pensions,Jobcentre Plus,02-Sep-11,EMPLOYMENT PROGRAMMES,"Pensions, Disability & Carers Service",CAREERS DEVELOPMENT GROUP,2022363212,"177,345"
Department for Work and Pensions,Housing Benefits,14-Sep-11,Housing Benefit Admin,WWG Housing Benefit,SWANSEA CITY COUNCIL,2022524255,"176,582"
Department for Work and Pensions,Employment Programmes,30-Sep-11,EP PROVIDER PAYMENT - NON-WORK PROGRAMME,WWEG EMPLOYMENT PROGRAMMES,CDG WISE ABILITY LTD,2022693659,"176,265"
Department for Work and Pensions,Corporate,15-Sep-11,ACCOMMODATION,GROUP FINANCE,TELEREAL TRILLIUM,2022527125,"175,529"
Department for Work and Pensions,Housing Benefits,14-Sep-11,Housing Benefit Admin,WWG Housing Benefit,DERBY CITY COUNCIL,2022524021,"175,281"
Department for Work and Pensions,Housing Benefits,14-Sep-11,Housing Benefit Admin,WWG Housing Benefit,ROCHDALE BOROUGH COUNCIL,2022524193,"174,891"
Department for Work and Pensions,Housing Benefits,14-Sep-11,Housing Benefit Admin,WWG Housing Benefit,OLDHAM BOROUGH COUNCIL,2022524173,"174,833"
Department for Work and Pensions,Housing Benefits,14-Sep-11,Housing Benefit Admin,WWG Housing Benefit,LONDON BOROUGH OF KENSINGTON & CHELSEA,2022524117,"173,743"
Department for Work and Pensions,Housing Benefits,14-Sep-11,Housing Benefit Admin,WWG Housing Benefit,LONDON BOROUGH OF BROMLEY,2022524105,"171,631"
Department for Work and Pensions,Employment Programmes,19-Sep-11,YOUNG PERSON'S GUARANTEE,WWEG EMPLOYMENT PROGRAMMES,GROUNDWORK UK,2022534791,"171,150"
Department for Work and Pensions,Housing Benefits,14-Sep-11,Housing Benefit Admin,WWG Housing Benefit,SHROPSHIRE COUNCIL,2022524216,"170,683"
Department for Work and Pensions,Corporate,02-Sep-11,MISCELLANEOUS EXPENDITURE,WWG SUMMARY,DEPARTMENT OF HEALTH,2002783,"170,448"
Department for Work and Pensions,"Pension, Disability Carers Services",13-Sep-11,COMPUTER SERVICES,"Pensions, Disability & Carers Service",HM LAND REGISTRY,2022455948,"170,006"
Department for Work and Pensions,Employment Programmes,30-Sep-11,EP PROVIDER PAYMENT - NON-WORK PROGRAMME,WWEG EMPLOYMENT PROGRAMMES,SHAW TRUST,2022696486,"169,510"
Department for Work and Pensions,Housing Benefits,14-Sep-11,Housing Benefit Admin,WWG Housing Benefit,LONDON BOROUGH OF BARKING & DAGENHAM,2022524101,"169,473"
Department for Work and Pensions,Employment Programmes,20-Sep-11,EMPLOYMENT INITIATIVES,WWEG EMPLOYMENT PROGRAMMES,REED IN PARTNERSHIP HACKNEY LTD,2022540466,"168,026"
Department for Work and Pensions,Housing Benefits,14-Sep-11,Housing Benefit Admin,WWG Housing Benefit,KNOWSLEY BOROUGH COUNCIL,2022524093,"167,742"
Department for Work and Pensions,Corporate,13-Sep-11,APPS DEV,EG SUMMARY,HP ENTERPRISE SERVICES UK LTD,2022455951,"167,668"
Department for Work and Pensions,Housing Benefits,14-Sep-11,Housing Benefit Admin,WWG Housing Benefit,GATESHEAD BOROUGH COUNCIL,2022524059,"167,075"
Department for Work and Pensions,Housing Benefits,14-Sep-11,Housing Benefit Admin,WWG Housing Benefit,LONDON BOROUGH OF REDBRIDGE,2022524122,"164,618"
Department for Work and Pensions,Housing Benefits,14-Sep-11,Housing Benefit Admin,WWG Housing Benefit,BLACKPOOL BOROUGH COUNCIL,2022523954,"162,953"
Department for Work and Pensions,Employment Programmes,02-Sep-11,YOUNG PERSON'S GUARANTEE,WWEG EMPLOYMENT PROGRAMMES,TNG LTD,2022364788,"162,184"
Department for Work and Pensions,Employment Programmes,12-Sep-11,EP PROVIDER PAYMENT - NON-WORK PROGRAMME,WWEG EMPLOYMENT PROGRAMMES,A4E LTD,2022446785,"162,046"
Department for Work and Pensions,Employment Programmes,30-Sep-11,EP PROVIDER PAYMENT - NON-WORK PROGRAMME,WWEG EMPLOYMENT PROGRAMMES,SHAW TRUST,2022696486,"161,662"
Department for Work and Pensions,Employment Programmes,30-Sep-11,EP PROVIDER PAYMENT - NON-WORK PROGRAMME,WWEG EMPLOYMENT PROGRAMMES,WORKING LINKS,2022696745,"160,678"
Department for Work and Pensions,Corporate,08-Sep-11,STAFF COSTS,Corporate & Support Services,RIGHT CORECARE,2022443047,"158,823"
Department for Work and Pensions,Housing Benefits,14-Sep-11,Housing Benefit Admin,WWG Housing Benefit,BOURNEMOUTH BOROUGH COUNCIL,2022523962,"157,665"
Department for Work and Pensions,Housing Benefits,14-Sep-11,Housing Benefit Admin,WWG Housing Benefit,MIDDLESBROUGH COUNCIL,2022524142,"157,582"
Department for Work and Pensions,Housing Benefits,14-Sep-11,Housing Benefit Admin,WWG Housing Benefit,CALDERDALE BOROUGH COUNCIL,2022523978,"157,069"
Department for Work and Pensions,Employment Programmes,22-Sep-11,EMPLOYMENT INITIATIVES,WWEG EMPLOYMENT PROGRAMMES,THE WISE GROUP,2022610192,"155,156"
Department for Work and Pensions,Housing Benefits,14-Sep-11,Housing Benefit Admin,WWG Housing Benefit,NORTH TYNESIDE BOROUGH COUNCIL,2022524164,"154,947"
Department for Work and Pensions,Corporate,15-Sep-11,COMPUTER SERVICES,Corporate IT,ATOS ORIGIN IT SERVICES UK LTD,2022524500,"154,876"
Department for Work and Pensions,Corporate,30-Sep-11,COMPUTER SERVICES,Corporate IT,ATOS ORIGIN IT SERVICES UK LTD,2022693436,"154,876"
Department for Work and Pensions,Housing Benefits,14-Sep-11,Housing Benefit Admin,WWG Housing Benefit,RENFREWSHIRE COUNCIL,2022524189,"154,503"
Department for Work and Pensions,Corporate,12-Sep-11,APPS DEV,CHANGE MANAGEMENT DIRECTORATE,HP ENTERPRISE SERVICES UK LTD,2022449797,"154,422"
Department for Work and Pensions,Housing Benefits,14-Sep-11,Housing Benefit Admin,WWG Housing Benefit,PETERBOROUGH CITY COUNCIL,2022524179,"154,406"
Department for Work and Pensions,Housing Benefits,14-Sep-11,Housing Benefit Admin,WWG Housing Benefit,DUNDEE CITY COUNCIL,2022524027,"153,546"
Department for Work and Pensions,Employment Programmes,02-Sep-11,YOUNG PERSON'S GUARANTEE,WWEG EMPLOYMENT PROGRAMMES,THE INTRAINING GROUP,2022364779,"153,267"
Department for Work and Pensions,Housing Benefits,14-Sep-11,Housing Benefit Admin,WWG Housing Benefit,ST HELENS BOROUGH COUNCIL,2022524241,"153,140"
Department for Work and Pensions,Housing Benefits,14-Sep-11,Housing Benefit Admin,WWG Housing Benefit,NORTHAMPTON BOROUGH COUNCIL,2022524167,"152,650"
Department for Work and Pensions,Housing Benefits,14-Sep-11,Housing Benefit Admin,WWG Housing Benefit,NORTH EAST LINCOLNSHIRE COUNCIL,2022524157,"152,348"
Department for Work and Pensions,Jobcentre Plus,02-Sep-11,EMPLOYMENT PROGRAMMES,"Pensions, Disability & Carers Service",CAREERS DEVELOPMENT GROUP LTD,2022363213,"149,501"
Department for Work and Pensions,Employment Programmes,02-Sep-11,YOUNG PERSON'S GUARANTEE,WWEG EMPLOYMENT PROGRAMMES,THE INTRAINING GROUP,2022364779,"149,111"
Department for Work and Pensions,Employment Programmes,01-Sep-11,YOUNG PERSON'S GUARANTEE,WWEG EMPLOYMENT PROGRAMMES,DUDLEY MBC,2022360918,"148,650"
Department for Work and Pensions,European Social Fund,05-Sep-11,ESF Expenditure,WWEG EUROPEAN SOCIAL FUND,SOCIAL ENTERPRISE EAST MIDLANDS LTD,5000000706,"147,012"
Department for Work and Pensions,Employment Programmes,30-Sep-11,EP PROVIDER PAYMENT - NON-WORK PROGRAMME,WWEG EMPLOYMENT PROGRAMMES,SHAW TRUST,2022696486,"146,848"
Department for Work and Pensions,Housing Benefits,14-Sep-11,Housing Benefit Admin,WWG Housing Benefit,STOCKTON  BOROUGH COUNCIL,2022524247,"146,783"
Department for Work and Pensions,Housing Benefits,14-Sep-11,Housing Benefit Admin,WWG Housing Benefit,LUTON BOROUGH COUNCIL,2022524129,"146,527"
Department for Work and Pensions,Housing Benefits,14-Sep-11,Housing Benefit Admin,WWG Housing Benefit,HIGHLAND COUNCIL,2022524080,"146,382"
Department for Work and Pensions,Employment Programmes,30-Sep-11,EP PROVIDER PAYMENT - NON-WORK PROGRAMME,WWEG EMPLOYMENT PROGRAMMES,WORKING LINKS,2022696745,"146,316"
Department for Work and Pensions,Housing Benefits,14-Sep-11,Housing Benefit Admin,WWG Housing Benefit,NORTH SOMERSET COUNCIL,2022524163,"146,237"
Department for Work and Pensions,Corporate,26-Sep-11,COMPUTER SERVICES,Corporate IT,ATOS ORIGIN IT SERVICES UK LTD,2022616203,"145,592"
Department for Work and Pensions,Employment Programmes,02-Sep-11,YOUNG PERSON'S GUARANTEE,WWEG EMPLOYMENT PROGRAMMES,THE INTRAINING GROUP,2022364779,"145,200"
Department for Work and Pensions,Housing Benefits,14-Sep-11,Housing Benefit Admin,WWG Housing Benefit,THANET DISTRICT COUNCIL,2022524265,"143,795"
Department for Work and Pensions,Housing Benefits,14-Sep-11,Housing Benefit Admin,WWG Housing Benefit,SOUTHEND ON SEA BOROUGH COUNCIL,2022524237,"143,761"
Department for Work and Pensions,Corporate,12-Sep-11,APPS DEV,Corporate IT,HP ENTERPRISE SERVICES UK LTD,2022449797,"143,319"
Department for Work and Pensions,"Pension, Disability Carers Services",12-Sep-11,TELEPHONE AND POSTAGE,"Pensions, Disability & Carers Service",ROYAL MAIL GROUP PLC,2022451319,"142,328"
Department for Work and Pensions,Jobcentre Plus,06-Sep-11,MEDICAL SERVICES,Jobcentre Plus,ATOS HEALTHCARE,2022370275,"141,790"
Department for Work and Pensions,Housing Benefits,14-Sep-11,Housing Benefit Admin,WWG Housing Benefit,TORBAY  COUNCIL,2022524270,"140,673"
Department for Work and Pensions,Employment Programmes,22-Sep-11,EP PROVIDER PAYMENT - WORK PROGRAMME,WWEG EMPLOYMENT PROGRAMMES,A4E LTD,2022607792,"140,000"
Department for Work and Pensions,Corporate,30-Sep-11,ACCOMMODATION,GROUP FINANCE,TELEREAL TRILLIUM,2022696615,"139,894"
Department for Work and Pensions,Housing Benefits,14-Sep-11,Housing Benefit Admin,WWG Housing Benefit,LONDON BOROUGH OF HAVERING,2022524113,"139,103"
Department for Work and Pensions,Housing Benefits,14-Sep-11,Housing Benefit Admin,WWG Housing Benefit,LONDON BOROUGH OF BEXLEY,2022524103,"138,794"
Department for Work and Pensions,Housing Benefits,14-Sep-11,Housing Benefit Admin,WWG Housing Benefit,SOUTH TYNESIDE METROPOLITAN BOROUGH COUNCIL,2022524235,"138,217"
Department for Work and Pensions,Housing Benefits,14-Sep-11,Housing Benefit Admin,WWG Housing Benefit,SOUTH GLOUCESTERSHIRE COUNCIL,2022524223,"137,635"
Department for Work and Pensions,Jobcentre Plus,09-Sep-11,EU PROGRAMMES,Jobcentre Plus,NORTH LONDON LTD,2022445552,"137,160"
Department for Work and Pensions,"Pension, Disability Carers Services",30-Sep-11,MEDICAL SERVICES,"Pensions, Disability & Carers Service",ATOS HEALTHCARE,2022693435,"136,929"
Department for Work and Pensions,Housing Benefits,14-Sep-11,Housing Benefit Admin,WWG Housing Benefit,TRAFFORD BOROUGH COUNCIL,2022524273,"136,601"
Department for Work and Pensions,Employment Programmes,12-Sep-11,EP PROVIDER PAYMENT - NON-WORK PROGRAMME,WWEG EMPLOYMENT PROGRAMMES,SEETEC BUSINESS TECHNOLOGY CENTRE LTD,2022451604,"135,683"
Department for Work and Pensions,Corporate,19-Sep-11,POSTAGE,GROUP FINANCE,TNT UK LTD,2022535934,"135,452"
Department for Work and Pensions,Housing Benefits,14-Sep-11,Housing Benefit Admin,WWG Housing Benefit,BOROUGH OF TELFORD & WREKIN COUNCIL,2022523959,"134,540"
Department for Work and Pensions,Housing Benefits,14-Sep-11,Housing Benefit Admin,WWG Housing Benefit,BASILDON DISTRICT COUNCIL,2022523946,"133,613"
Department for Work and Pensions,Housing Benefits,14-Sep-11,Housing Benefit Admin,WWG Housing Benefit,LONDON BOROUGH OF MERTON,2022524120,"133,101"
Department for Work and Pensions,Housing Benefits,14-Sep-11,Housing Benefit Admin,WWG Housing Benefit,BURY METROPOLITAN BOROUGH COUNCIL,2022523976,"133,002"
Department for Work and Pensions,Employment Programmes,15-Sep-11,EMPLOYMENT INITIATIVES,WWEG EMPLOYMENT PROGRAMMES,PERTEMPS,2022526737,"132,870"
Department for Work and Pensions,Jobcentre Plus,05-Sep-11,EU PROGRAMMES,Jobcentre Plus,BLUE ORCHID MANAGEMENT CONSULTANTS LTD,2022366470,"132,250"
Department for Work and Pensions,Housing Benefits,14-Sep-11,Housing Benefit Admin,WWG Housing Benefit,SWINDON BOROUGH COUNCIL,2022524256,"131,877"
Department for Work and Pensions,Employment Programmes,02-Sep-11,YOUNG PERSON'S GUARANTEE,WWEG EMPLOYMENT PROGRAMMES,TNG LTD,2022364788,"131,843"
Department for Work and Pensions,Jobcentre Plus,01-Sep-11,EU PROGRAMMES,Jobcentre Plus,BLUE ORCHID MANAGEMENT CONSULTANTS LTD,2022359688,"131,100"
Department for Work and Pensions,Housing Benefits,14-Sep-11,Housing Benefit Admin,WWG Housing Benefit,NORTH AYRSHIRE COUNCIL,2022524153,"131,001"
Department for Work and Pensions,Employment Programmes,15-Sep-11,YOUNG PERSON'S GUARANTEE,WWEG EMPLOYMENT PROGRAMMES,THE SALVATION ARMY,2022527133,"130,421"
Department for Work and Pensions,Jobcentre Plus,12-Sep-11,COMPUTER SERVICES,Jobcentre Plus,HMRC,2022449793,"130,204"
Department for Work and Pensions,Housing Benefits,14-Sep-11,Housing Benefit Admin,WWG Housing Benefit,BLACKBURN BOROUGH COUNCIL,2022523953,"130,093"
Department for Work and Pensions,Housing Benefits,14-Sep-11,Housing Benefit Admin,WWG Housing Benefit,CAERPHILLY COUNTY BOROUGH COUNCIL,2022523977,"129,074"
Department for Work and Pensions,Housing Benefits,14-Sep-11,Housing Benefit Admin,WWG Housing Benefit,LONDON BOROUGH OF SUTTON,2022524125,"129,052"
Department for Work and Pensions,Employment Programmes,20-Sep-11,EMPLOYMENT INITIATIVES,WWEG EMPLOYMENT PROGRAMMES,REED IN PARTNERSHIP HACKNEY LTD,2022540466,"127,224"
Department for Work and Pensions,Housing Benefits,14-Sep-11,Housing Benefit Admin,WWG Housing Benefit,REDCAR & CLEVELAND BOROUGH  COUNCIL,2022524187,"126,622"
Department for Work and Pensions,Housing Benefits,14-Sep-11,Housing Benefit Admin,WWG Housing Benefit,NORWICH CITY COUNCIL,2022524169,"126,542"
Department for Work and Pensions,Corporate,13-Sep-11,APPS DEV,GROUP FINANCE,HP ENTERPRISE SERVICES UK LTD,2022455951,"126,262"
Department for Work and Pensions,Housing Benefits,14-Sep-11,Housing Benefit Admin,WWG Housing Benefit,TENDRING DISTRICT COUNCIL,2022524262,"125,983"
Department for Work and Pensions,Housing Benefits,14-Sep-11,Housing Benefit Admin,WWG Housing Benefit,CENTRAL BEDFORDSHIRE DISTRICT COUNCIL,2022523985,"125,868"
Department for Work and Pensions,Employment Programmes,12-Sep-11,EP PROVIDER PAYMENT - NON-WORK PROGRAMME,WWEG EMPLOYMENT PROGRAMMES,TNG LTD,2022451777,"125,573"
Department for Work and Pensions,Housing Benefits,14-Sep-11,Housing Benefit Admin,WWG Housing Benefit,ABERDEEN CITY COUNCIL,2022523932,"125,393"
Department for Work and Pensions,Jobcentre Plus,29-Sep-11,EMPLOYMENT PROGRAMMES,"Pensions, Disability & Carers Service",WORKING LINKS EMPLOYMENT LTD,2022691488,"125,000"
Department for Work and Pensions,Housing Benefits,14-Sep-11,Housing Benefit Admin,WWG Housing Benefit,WEST LOTHIAN COUNCIL,2022524293,"123,574"
Department for Work and Pensions,Corporate,26-Sep-11,MEDICAL SERVICES,LSPG,GLS SECRETARIAT,2022617507,"123,361"
Department for Work and Pensions,Corporate,01-Sep-11,OTHER PROJECTS,Corporate & Support Services,BBC,2022359673,"122,574"
Department for Work and Pensions,Housing Benefits,14-Sep-11,Housing Benefit Admin,WWG Housing Benefit,NORTH LINCOLNSHIRE COUNCIL,2022524161,"122,277"
Department for Work and Pensions,Jobcentre Plus,02-Sep-11,EMPLOYMENT PROGRAMMES,"Pensions, Disability & Carers Service",TNG NETWORK LTD,2022364790,"121,990"
Department for Work and Pensions,Corporate,30-Sep-11,ACCOMMODATION,GROUP FINANCE,TELEREAL TRILLIUM,2022696617,"121,586"
Department for Work and Pensions,Housing Benefits,14-Sep-11,Housing Benefit Admin,WWG Housing Benefit,CARMARTHENSHIRE COUNTY COUNCIL,2022523983,"121,563"
Department for Work and Pensions,Employment Programmes,20-Sep-11,EMPLOYMENT INITIATIVES,WWEG EMPLOYMENT PROGRAMMES,INGEUS UK LTD,2022539139,"121,302"
Department for Work and Pensions,Housing Benefits,14-Sep-11,Housing Benefit Admin,WWG Housing Benefit,ISLE OF WIGHT COUNTY COUNCIL,2022524088,"121,156"
Department for Work and Pensions,Corporate,13-Sep-11,COMPUTER SERVICES,Corporate IT,ACCENTURE,2022453130,"120,634"
Department for Work and Pensions,Corporate,01-Sep-11,PAYMENTS TO CSAS,Corporate & Support Services,ATOS HEALTHCARE,2022359651,"120,541"
Department for Work and Pensions,Employment Programmes,12-Sep-11,EP PROVIDER PAYMENT - NON-WORK PROGRAMME,WWEG EMPLOYMENT PROGRAMMES,PINNACLE PEOPLE,2022451115,"120,314"
Department for Work and Pensions,Housing Benefits,14-Sep-11,Housing Benefit Admin,WWG Housing Benefit,DUMFRIES & GALLOWAY COUNCIL,2022524026,"120,266"
Department for Work and Pensions,Jobcentre Plus,30-Sep-11,ACCOMMODATION,Jobcentre Plus,TELEREAL TRILLIUM,2022696618,"120,081"
Department for Work and Pensions,Jobcentre Plus,02-Sep-11,EMPLOYMENT PROGRAMMES,"Pensions, Disability & Carers Service",SKILLS TRAINING UK LTD,2022364708,"119,934"
Department for Work and Pensions,Corporate,16-Sep-11,COMPUTER SERVICES,Corporate IT,ORANGE PCS LTD,2022531592,"117,868"
Department for Work and Pensions,Jobcentre Plus,29-Sep-11,EMPLOYMENT PROGRAMMES,"Pensions, Disability & Carers Service",BUSINESS EMPLOYMENT SERVICES TRAINING LTD,2022689396,"117,636"
Department for Work and Pensions,Housing Benefits,14-Sep-11,Housing Benefit Admin,WWG Housing Benefit,SOLIHULL METROPOLITAN BOROUGH COUNCIL,2022524218,"117,560"
Department for Work and Pensions,Housing Benefits,14-Sep-11,Housing Benefit Admin,WWG Housing Benefit,BEDFORD BOROUGH COUNCIL,2022523950,"116,749"
Department for Work and Pensions,Employment Programmes,20-Sep-11,EMPLOYMENT INITIATIVES,WWEG EMPLOYMENT PROGRAMMES,TNG WORKZONE LTD,2022540987,"116,648"
Department for Work and Pensions,Corporate,06-Sep-11,COMPUTER SERVICES,Corporate IT,BT GLOBAL SERVICES,2022370358,"115,553"
Department for Work and Pensions,Housing Benefits,14-Sep-11,Housing Benefit Admin,WWG Housing Benefit,READING BOROUGH COUNCIL,2022524186,"115,026"
Department for Work and Pensions,Jobcentre Plus,15-Sep-11,Accommodation Costs,Jobcentre Plus,CROWN OFFICE & PROCURATOR FISCAL SERVICE,2022524714,"114,366"
Department for Work and Pensions,Housing Benefits,14-Sep-11,Housing Benefit Admin,WWG Housing Benefit,WARRINGTON BOROUGH COUNCIL,2022524280,"114,286"
Department for Work and Pensions,"Pension, Disability Carers Services",13-Sep-11,APPS DEV,"Pensions, Disability & Carers Service",HP ENTERPRISE SERVICES UK LTD,2022455951,"113,411"
Department for Work and Pensions,Corporate,06-Sep-11,ACCOMMODATION COSTS,GROUP FINANCE,TELEREAL TRILLIUM,2022373326,"113,264"
Department for Work and Pensions,Corporate,30-Sep-11,ACCOMMODATION,GROUP FINANCE,TELEREAL TRILLIUM,2022696615,"113,071"
Department for Work and Pensions,Jobcentre Plus,05-Sep-11,EU PROGRAMMES,Jobcentre Plus,WYEA LTD,2022369054,"112,800"
Department for Work and Pensions,Corporate,30-Sep-11,ACCOMMODATION,GROUP FINANCE,TELEREAL TRILLIUM,2022696615,"112,501"
Department for Work and Pensions,Housing Benefits,14-Sep-11,Housing Benefit Admin,WWG Housing Benefit,THURROCK BOROUGH COUNCIL,2022524268,"112,469"
Department for Work and Pensions,Employment Programmes,02-Sep-11,YOUNG PERSON'S GUARANTEE,WWEG EMPLOYMENT PROGRAMMES,SARINA RUSSO JOB ACCESS GB PTY LTD,2022364677,"112,444"
Department for Work and Pensions,Housing Benefits,14-Sep-11,Housing Benefit Admin,WWG Housing Benefit,SLOUGH BOROUGH COUNCIL,2022524217,"112,375"
Department for Work and Pensions,Employment Programmes,09-Sep-11,YOUNG PERSON'S GUARANTEE,WWEG EMPLOYMENT PROGRAMMES,SCOTTISH PREMIER LEAGUE LTD,2022445646,"112,200"
Department for Work and Pensions,Housing Benefits,14-Sep-11,Housing Benefit Admin,WWG Housing Benefit,HALTON BOROUGH COUNCIL,2022524068,"112,183"
Department for Work and Pensions,Housing Benefits,14-Sep-11,Housing Benefit Admin,WWG Housing Benefit,NEATH PORT TALBOT COUNTY BOROUGH COUNCIL,2022524147,"111,346"
Department for Work and Pensions,Jobcentre Plus,22-Sep-11,EMPLOYMENT PROGRAMMES,"Pensions, Disability & Carers Service",INBIZ LTD,2022609192,"111,196"
Department for Work and Pensions,Housing Benefits,14-Sep-11,Housing Benefit Admin,WWG Housing Benefit,ABERDEENSHIRE COUNCIL,2022523933,"110,675"
Department for Work and Pensions,Jobcentre Plus,16-Sep-11,COMPUTER SERVICES,Jobcentre Plus,ACCENTURE UK LTD,2022528858,"110,504"
Department for Work and Pensions,Corporate,23-Sep-11,COMPUTER SERVICES,Shared Services,ATOS ORIGIN IT SERVICES UK LTD,2022612030,"110,329"
Department for Work and Pensions,Employment Programmes,12-Sep-11,EP PROVIDER PAYMENT - NON-WORK PROGRAMME,WWEG EMPLOYMENT PROGRAMMES,REED IN PARTNERSHIP,2022451294,"110,011"
Department for Work and Pensions,Jobcentre Plus,15-Sep-11,EMPLOYMENT PROGRAMMES,"Pensions, Disability & Carers Service",SKILLS TRAINING UK LTD,2022527046,"109,843"
Department for Work and Pensions,Housing Benefits,14-Sep-11,Housing Benefit Admin,WWG Housing Benefit,FALKIRK DISTRICT COUNCIL,2022524051,"109,810"
Department for Work and Pensions,Housing Benefits,14-Sep-11,Housing Benefit Admin,WWG Housing Benefit,NEWPORT CITY COUNCIL,2022524152,"109,795"
Department for Work and Pensions,Employment Programmes,02-Sep-11,YOUNG PERSON'S GUARANTEE,WWEG EMPLOYMENT PROGRAMMES,SARINA RUSSO JOB ACCESS GB PTY LTD,2022364677,"109,778"
Department for Work and Pensions,Employment Programmes,08-Sep-11,RESIDENTIAL TRAINING,WWEG EMPLOYMENT PROGRAMMES,RNCB ROYAL NATIONAL COLLEGE FOR BLIND,2022443050,"109,489"
Department for Work and Pensions,Jobcentre Plus,22-Sep-11,EU PROGRAMMES,Jobcentre Plus,AVANTA ENTERPRISE LTD,2022607814,"109,440"
Department for Work and Pensions,Employment Programmes,19-Sep-11,JSP ESF DEL P COSTS,WWEG EMPLOYMENT PROGRAMMES,WORKING LINKS,2022535996,"109,340"
Department for Work and Pensions,Corporate,02-Sep-11,COMPUTER SERVICES,Corporate IT,ACCENTURE UK LTD,2022363027,"108,374"
Department for Work and Pensions,Corporate,12-Sep-11,COMPUTER SERVICES,Shared Services,FUJITSU SERVICES LTD,2022449613,"108,255"
Department for Work and Pensions,Housing Benefits,14-Sep-11,Housing Benefit Admin,WWG Housing Benefit,EAST LINDSEY DISTRICT COUNCIL,2022524036,"107,744"
Department for Work and Pensions,Housing Benefits,14-Sep-11,Housing Benefit Admin,WWG Housing Benefit,HASTINGS BOROUGH COUNCIL,2022524075,"107,349"
Department for Work and Pensions,Employment Programmes,02-Sep-11,YOUNG PERSON'S GUARANTEE,WWEG EMPLOYMENT PROGRAMMES,TNG LTD,2022364788,"107,114"
Department for Work and Pensions,Corporate,30-Sep-11,ACCOMMODATION,GROUP FINANCE,TELEREAL TRILLIUM,2022696615,"106,692"
Department for Work and Pensions,Employment Programmes,12-Sep-11,EP PROVIDER PAYMENT - NON-WORK PROGRAMME,WWEG EMPLOYMENT PROGRAMMES,PERTEMPS,2022451112,"106,495"
Department for Work and Pensions,Housing Benefits,14-Sep-11,Housing Benefit Admin,WWG Housing Benefit,EAST AYRSHIRE COUNCIL FINANCE DEPARTMENT,2022524029,"105,756"
Department for Work and Pensions,Housing Benefits,14-Sep-11,Housing Benefit Admin,WWG Housing Benefit,BRIDGEND COUNTY BOROUGH COUNCIL,2022523968,"105,740"
Department for Work and Pensions,Employment Programmes,19-Sep-11,YOUNG PERSON'S GUARANTEE,WWEG EMPLOYMENT PROGRAMMES,GOOLE DEVELOPMENT TRUST,2022534788,"105,450"
Department for Work and Pensions,Jobcentre Plus,22-Sep-11,EMPLOYMENT PROGRAMMES,"Pensions, Disability & Carers Service",A4E LTD,2022607793,"105,274"
Department for Work and Pensions,Employment Programmes,02-Sep-11,YOUNG PERSON'S GUARANTEE,WWEG EMPLOYMENT PROGRAMMES,TBG LEARNING LTD,2022364775,"105,111"
Department for Work and Pensions,Jobcentre Plus,23-Sep-11,EU PROGRAMMES,Jobcentre Plus,IXION HOLDINGS LTD,2022613760,"105,000"
Department for Work and Pensions,Corporate,16-Sep-11,COMPUTER SERVICES,CHANGE MANAGEMENT DIRECTORATE,ACCENTURE,2022528857,"103,466"
Department for Work and Pensions,Housing Benefits,14-Sep-11,Housing Benefit Admin,WWG Housing Benefit,HARTLEPOOL BOROUGH COUNCIL,2022524074,"103,357"
Department for Work and Pensions,Housing Benefits,14-Sep-11,Housing Benefit Admin,WWG Housing Benefit,WEST DUNBARTONSHIRE COUNCIL,2022524290,"103,105"
Department for Work and Pensions,Housing Benefits,14-Sep-11,Housing Benefit Admin,WWG Housing Benefit,HEREFORDSHIRE COUNCIL,2022524077,"102,338"
Department for Work and Pensions,Employment Programmes,12-Sep-11,EP PROVIDER PAYMENT - NON-WORK PROGRAMME,WWEG EMPLOYMENT PROGRAMMES,PINNACLE PEOPLE,2022451115,"102,155"
Department for Work and Pensions,Employment Programmes,13-Sep-11,YOUNG PERSON'S GUARANTEE,WWEG EMPLOYMENT PROGRAMMES,DUDLEY MBC,2022455600,"102,150"
Department for Work and Pensions,Housing Benefits,14-Sep-11,Housing Benefit Admin,WWG Housing Benefit,LONDON BOROUGH OF RICHMOND UPON THAMES,2022524123,"102,105"
Department for Work and Pensions,Jobcentre Plus,02-Sep-11,EMPLOYMENT PROGRAMMES,"Pensions, Disability & Carers Service",TNG BUSINESS SUPPORT LTD.,2022364787,"102,048"
Department for Work and Pensions,Employment Programmes,12-Sep-11,EP PROVIDER PAYMENT - NON-WORK PROGRAMME,WWEG EMPLOYMENT PROGRAMMES,STANDGUIDE LTD,2022451646,"101,669"
Department for Work and Pensions,Housing Benefits,14-Sep-11,Housing Benefit Admin,WWG Housing Benefit,CITY OF YORK COUNCIL,2022524001,"101,543"
Department for Work and Pensions,Jobcentre Plus,29-Sep-11,EMPLOYMENT PROGRAMMES,"Pensions, Disability & Carers Service",INBIZ LTD,2022690136,"101,441"
Department for Work and Pensions,Employment Programmes,21-Sep-11,YOUNG PERSON'S GUARANTEE,WWEG EMPLOYMENT PROGRAMMES,LEEDS CITY COUNCIL,2022581121,"101,400"
Department for Work and Pensions,Employment Programmes,12-Sep-11,RESIDENTIAL TRAINING,WWEG EMPLOYMENT PROGRAMMES,PORTLAND COLLEGE,2022451126,"101,258"
Department for Work and Pensions,Corporate,06-Sep-11,OTHER EXPENDITURE,Corporate IT,PA CONSULTING GROUP,2022372793,"100,624"
Department for Work and Pensions,Employment Programmes,02-Sep-11,YOUNG PERSON'S GUARANTEE,WWEG EMPLOYMENT PROGRAMMES,GROUNDWORK UK,2022363798,"100,311"
Department for Work and Pensions,Housing Benefits,14-Sep-11,Housing Benefit Admin,WWG Housing Benefit,SCARBOROUGH BOROUGH COUNCIL,2022524207,"100,215"
Department for Work and Pensions,Corporate,01-Sep-11,OTHER PROJECTS,Corporate & Support Services,BBC,2022359672,"100,173"
Department for Work and Pensions,Housing Benefits,14-Sep-11,Housing Benefit Admin,WWG Housing Benefit,PRESTON BOROUGH COUNCIL,2022524184,"100,099"
Department for Work and Pensions,Jobcentre Plus,29-Sep-11,EMPLOYMENT PROGRAMMES,"Pensions, Disability & Carers Service",WORKING LINKS,2022691486,"99,839"
Department for Work and Pensions,Housing Benefits,14-Sep-11,Housing Benefit Admin,WWG Housing Benefit,BATH & NORTH EAST SOMERSET COUNCIL,2022523949,"99,037"
Department for Work and Pensions,Corporate,09-Sep-11,COMPUTER SERVICES,Shared Services,FUJITSU SERVICES,2022445364,"98,962"
Department for Work and Pensions,Housing Benefits,14-Sep-11,Housing Benefit Admin,WWG Housing Benefit,ARUN DISTRICT COUNCIL,2022523939,"98,951"
Department for Work and Pensions,"Pension, Disability Carers Services",21-Sep-11,CONTRACTED OUT SERVICES,"Pensions, Disability & Carers Service",PROMOTIONAL LOGISTICS LTD,2022590496,"98,904"
Department for Work and Pensions,Jobcentre Plus,13-Sep-11,APPS DEV,Jobcentre Plus,HP ENTERPRISE SERVICES UK LTD,2022455951,"98,682"
Department for Work and Pensions,Employment Programmes,20-Sep-11,EMPLOYMENT INITIATIVES,WWEG EMPLOYMENT PROGRAMMES,WORKING LINKS,2022541069,"97,932"
Department for Work and Pensions,Housing Benefits,14-Sep-11,Housing Benefit Admin,WWG Housing Benefit,KINGS LYNN & WEST NORFOLK BOROUGH COUNCIL,2022524090,"97,628"
Department for Work and Pensions,Jobcentre Plus,13-Sep-11,APPS DEV,Jobcentre Plus,HP ENTERPRISE SERVICES UK LTD,2022455951,"96,153"
Department for Work and Pensions,Housing Benefits,14-Sep-11,Housing Benefit Admin,WWG Housing Benefit,COLCHESTER BOROUGH COUNCIL,2022524003,"95,771"
Department for Work and Pensions,Housing Benefits,14-Sep-11,Housing Benefit Admin,WWG Housing Benefit,IPSWICH BOROUGH COUNCIL,2022524086,"95,545"
Department for Work and Pensions,Housing Benefits,14-Sep-11,Housing Benefit Admin,WWG Housing Benefit,SOUTH SOMERSET DISTRICT COUNCIL,2022524233,"95,157"
Department for Work and Pensions,Employment Programmes,12-Sep-11,EP PROVIDER PAYMENT - NON-WORK PROGRAMME,WWEG EMPLOYMENT PROGRAMMES,A4E LTD,2022446785,"95,028"
Department for Work and Pensions,Jobcentre Plus,02-Sep-11,EMPLOYMENT PROGRAMMES,"Pensions, Disability & Carers Service",MBW TRAINING SERVICES,2022364304,"94,975"
Department for Work and Pensions,Housing Benefits,14-Sep-11,Housing Benefit Admin,WWG Housing Benefit,SWALE BOROUGH COUNCIL,2022524254,"93,818"
Department for Work and Pensions,Housing Benefits,14-Sep-11,Housing Benefit Admin,WWG Housing Benefit,GLOUCESTER CITY COUNCIL,2022524061,"93,271"
Department for Work and Pensions,Corporate,30-Sep-11,ACCOMMODATION,Shared Services,TELEREAL TRILLIUM,2022696617,"93,185"
Department for Work and Pensions,Jobcentre Plus,02-Sep-11,EMPLOYMENT PROGRAMMES,"Pensions, Disability & Carers Service",SEETEC BUSINESS TECHNOLOGY CENTRE LTD,2022364687,"93,085"
Department for Work and Pensions,Housing Benefits,14-Sep-11,Housing Benefit Admin,WWG Housing Benefit,ROYAL BOROUGH OF KINGSTON UPON THAMES,2022524198,"92,853"
Department for Work and Pensions,Employment Programmes,12-Sep-11,EP PROVIDER PAYMENT - NON-WORK PROGRAMME,WWEG EMPLOYMENT PROGRAMMES,A4E LTD,2022446785,"92,745"
Department for Work and Pensions,Jobcentre Plus,22-Sep-11,EMPLOYMENT PROGRAMMES,"Pensions, Disability & Carers Service",SHAW TRUST LTD,2022610097,"92,741"
Department for Work and Pensions,Jobcentre Plus,02-Sep-11,EMPLOYMENT PROGRAMMES,"Pensions, Disability & Carers Service",BTCV ENTERPRISES LTD,2022363116,"92,581"
Department for Work and Pensions,Jobcentre Plus,02-Sep-11,EMPLOYMENT PROGRAMMES,"Pensions, Disability & Carers Service",THE INTRAINING GROUP,2022364778,"92,210"
Department for Work and Pensions,Corporate,05-Sep-11,COMPUTER SERVICES,Corporate IT,BT GLOBAL SERVICES,2022366477,"91,640"
Department for Work and Pensions,Corporate,20-Sep-11,Accommodation Costs,GROUP FINANCE,SOUTHERN ELECTRIC PLC,2022540849,"91,377"
Department for Work and Pensions,Housing Benefits,14-Sep-11,Housing Benefit Admin,WWG Housing Benefit,GREAT YARMOUTH COUNCIL,2022524064,"91,238"
Department for Work and Pensions,Housing Benefits,14-Sep-11,Housing Benefit Admin,WWG Housing Benefit,BRAINTREE DISTRICT COUNCIL,2022523965,"91,224"
Department for Work and Pensions,Employment Programmes,12-Sep-11,RESIDENTIAL TRAINING,WWEG EMPLOYMENT PROGRAMMES,QUEEN ALEXANDRA COLLEGE,2022451141,"90,413"
Department for Work and Pensions,European Social Fund,27-Sep-11,ESF Expenditure,WWEG EUROPEAN SOCIAL FUND,WEST MERCIA PROBATION SERVICE,5000000730,"90,225"
Department for Work and Pensions,Corporate,26-Sep-11,PROFESSIONAL FEES,Corporate & Support Services,ORC INTERNATIONAL LTD,2022618120,"89,986"
Department for Work and Pensions,Corporate,29-Sep-11,AOS CONTRACTED OUT SERVICES,Corporate & Support Services,CAPITA BUSINESS SERVICES LTD,2022689503,"89,666"
Department for Work and Pensions,Employment Programmes,14-Sep-11,RESIDENTIAL TRAINING,WWEG EMPLOYMENT PROGRAMMES,DONCASTER DEAF TRUST,2022473634,"89,611"
Department for Work and Pensions,Housing Benefits,14-Sep-11,Housing Benefit Admin,WWG Housing Benefit,WAVENEY DISTRICT COUNCIL,2022524283,"89,606"
Department for Work and Pensions,Jobcentre Plus,15-Sep-11,EMPLOYMENT PROGRAMMES,"Pensions, Disability & Carers Service",CAREERS DEVELOPMENT GROUP LTD,2022524679,"88,913"
Department for Work and Pensions,Employment Programmes,28-Sep-11,YOUNG PERSON'S GUARANTEE,WWEG EMPLOYMENT PROGRAMMES,NORFOLK COUNTY COUNCIL,2022670303,"88,650"
Department for Work and Pensions,Housing Benefits,14-Sep-11,Housing Benefit Admin,WWG Housing Benefit,LANCASTER CITY COUNCIL,2022524094,"88,544"
Department for Work and Pensions,Corporate,02-Sep-11,EMPLOYMENT ZONES,GROUP FINANCE,STREET UK LTD,2022364726,"88,200"
Department for Work and Pensions,Corporate,07-Sep-11,AOS CONTRACTED OUT SERVICES,Shared Services,CAPITA BUSINESS SERVICES LTD,2022385324,"88,150"
Department for Work and Pensions,Housing Benefits,14-Sep-11,Housing Benefit Admin,WWG Housing Benefit,BURNLEY BOROUGH COUNCIL,2022523975,"88,067"
Department for Work and Pensions,Housing Benefits,14-Sep-11,Housing Benefit Admin,WWG Housing Benefit,EASTBOURNE BOROUGH COUNCIL,2022524042,"87,969"
Department for Work and Pensions,Employment Programmes,12-Sep-11,EP PROVIDER PAYMENT - NON-WORK PROGRAMME,WWEG EMPLOYMENT PROGRAMMES,ESG HOLDINGS LTD,2022449570,"87,418"
Department for Work and Pensions,Housing Benefits,14-Sep-11,Housing Benefit Admin,WWG Housing Benefit,SOUTH AYRSHIRE COUNCIL,2022524219,"87,382"
Department for Work and Pensions,Housing Benefits,14-Sep-11,Housing Benefit Admin,WWG Housing Benefit,INVERCLYDE DISTRICT COUNCIL,2022524085,"86,800"
Department for Work and Pensions,Housing Benefits,14-Sep-11,Housing Benefit Admin,WWG Housing Benefit,OXFORD CITY COUNCIL,2022524175,"86,447"
Department for Work and Pensions,Employment Programmes,02-Sep-11,YOUNG PERSON'S GUARANTEE,WWEG EMPLOYMENT PROGRAMMES,A4E LTD,2022363018,"86,400"
Department for Work and Pensions,Employment Programmes,02-Sep-11,YOUNG PERSON'S GUARANTEE,WWEG EMPLOYMENT PROGRAMMES,SARINA RUSSO JOB ACCESS GB PTY LTD,2022364677,"86,111"
Department for Work and Pensions,Housing Benefits,14-Sep-11,Housing Benefit Admin,WWG Housing Benefit,FLINTSHIRE COUNTY COUNCIL,2022524055,"85,757"
Department for Work and Pensions,Employment Programmes,26-Sep-11,YOUNG PERSON'S GUARANTEE,WWEG EMPLOYMENT PROGRAMMES,LONDON BOROUGH OF EALING,2022617916,"85,500"
Department for Work and Pensions,Jobcentre Plus,15-Sep-11,EMPLOYMENT PROGRAMMES,"Pensions, Disability & Carers Service",SHAW TRUST LTD,2022527035,"85,288"
Department for Work and Pensions,Housing Benefits,14-Sep-11,Housing Benefit Admin,WWG Housing Benefit,PERTH & KINROSS COUNCIL,2022524178,"85,118"
Department for Work and Pensions,Housing Benefits,14-Sep-11,Housing Benefit Admin,WWG Housing Benefit,POOLE BOROUGH COUNCIL,2022524181,"85,056"
Department for Work and Pensions,Housing Benefits,14-Sep-11,Housing Benefit Admin,WWG Housing Benefit,DARLINGTON BOROUGH COUNCIL,2022524017,"84,596"
Department for Work and Pensions,Housing Benefits,14-Sep-11,Housing Benefit Admin,WWG Housing Benefit,BASINGSTOKE DISTRICT COUNCIL,2022523947,"84,281"
Department for Work and Pensions,"Pension, Disability Carers Services",12-Sep-11,TELEPHONE AND POSTAGE,"Pensions, Disability & Carers Service",ROYAL MAIL GROUP PLC,2022451319,"84,140"
Department for Work and Pensions,Housing Benefits,14-Sep-11,Housing Benefit Admin,WWG Housing Benefit,NUNEATON BOROUGH COUNCIL,2022524171,"83,851"
Department for Work and Pensions,Housing Benefits,14-Sep-11,Housing Benefit Admin,WWG Housing Benefit,WYCOMBE DISTRICT COUNCIL,2022524309,"83,612"
Department for Work and Pensions,Housing Benefits,14-Sep-11,Housing Benefit Admin,WWG Housing Benefit,DACORUM BOROUGH COUNCIL,2022524016,"83,545"
Department for Work and Pensions,Corporate,15-Sep-11,UNALLOCATED BUDGET GROUP,WWG SUMMARY,MOTABILITY,1004952,"83,330"
Department for Work and Pensions,Employment Programmes,12-Sep-11,EP PROVIDER PAYMENT - NON-WORK PROGRAMME,WWEG EMPLOYMENT PROGRAMMES,INGEUS UK LTD,2022449843,"83,221"
Department for Work and Pensions,Housing Benefits,14-Sep-11,Housing Benefit Admin,WWG Housing Benefit,HUNTINGDON DISTRICT COUNCIL,2022524083,"83,110"
Department for Work and Pensions,Housing Benefits,14-Sep-11,Housing Benefit Admin,WWG Housing Benefit,AYLESBURY VALE DISTRICT COUNCIL,2022523942,"83,036"
Department for Work and Pensions,Housing Benefits,14-Sep-11,Housing Benefit Admin,WWG Housing Benefit,ASHFIELD DISTRICT COUNCIL,2022523940,"82,987"
Department for Work and Pensions,Employment Programmes,12-Sep-11,EP PROVIDER PAYMENT - NON-WORK PROGRAMME,WWEG EMPLOYMENT PROGRAMMES,JHP GROUP LTD,2022450145,"82,941"
Department for Work and Pensions,Housing Benefits,14-Sep-11,Housing Benefit Admin,WWG Housing Benefit,NEW FOREST DISTRICT COUNCIL,2022524148,"82,865"
Department for Work and Pensions,Housing Benefits,14-Sep-11,Housing Benefit Admin,WWG Housing Benefit,CHELMSFORD BOROUGH COUNCIL,2022523988,"82,804"
Department for Work and Pensions,Employment Programmes,12-Sep-11,EU PROGRAMMES,WWEG EMPLOYMENT PROGRAMMES,ST HELENS CHAMBERS LTD,2022451643,"82,800"
Department for Work and Pensions,Jobcentre Plus,26-Sep-11,MEDICAL SERVICES,Jobcentre Plus,ATOS HEALTHCARE,2022616202,"82,676"
Department for Work and Pensions,Housing Benefits,14-Sep-11,Housing Benefit Admin,WWG Housing Benefit,CANTERBURY CITY COUNCIL,2022523981,"82,650"
Department for Work and Pensions,Housing Benefits,14-Sep-11,Housing Benefit Admin,WWG Housing Benefit,MANSFIELD DISTRICT COUNCIL,2022524134,"82,260"
Department for Work and Pensions,Corporate,30-Sep-11,ACCOMMODATION,GROUP FINANCE,TELEREAL TRILLIUM,2022696615,"82,062"
Department for Work and Pensions,Employment Programmes,15-Sep-11,YOUNG PERSON'S GUARANTEE,WWEG EMPLOYMENT PROGRAMMES,DUDLEY MBC,2022525813,"81,750"
Department for Work and Pensions,Housing Benefits,14-Sep-11,Housing Benefit Admin,WWG Housing Benefit,CONWY COUNTY BOROUGH  COUNCIL,2022524005,"81,715"
Department for Work and Pensions,Housing Benefits,14-Sep-11,Housing Benefit Admin,WWG Housing Benefit,PENDLE BOROUGH COUNCIL,2022524177,"81,549"
Department for Work and Pensions,Employment Programmes,29-Sep-11,YOUNG PERSON'S GUARANTEE,WWEG EMPLOYMENT PROGRAMMES,KENT COUNTY COUNCIL,2022690450,"81,450"
Department for Work and Pensions,Jobcentre Plus,15-Sep-11,ACCOMMODATION,Jobcentre Plus,TELEREAL TRILLIUM,2022527125,"81,119"
Department for Work and Pensions,Housing Benefits,14-Sep-11,Housing Benefit Admin,WWG Housing Benefit,SHEPWAY DISTRICT COUNCIL,2022524214,"80,796"
Department for Work and Pensions,Corporate,13-Sep-11,APPS DEV,Corporate IT,HP ENTERPRISE SERVICES UK LTD,2022455951,"80,516"
Department for Work and Pensions,Housing Benefits,14-Sep-11,Housing Benefit Admin,WWG Housing Benefit,CHESTERFIELD BOROUGH COUNCIL,2022523993,"80,324"
Department for Work and Pensions,Housing Benefits,14-Sep-11,Housing Benefit Admin,WWG Housing Benefit,HAVANT BOROUGH COUNCIL,2022524076,"80,318"
Department for Work and Pensions,Employment Programmes,22-Sep-11,YOUNG PERSON'S GUARANTEE,WWEG EMPLOYMENT PROGRAMMES,DUDLEY MBC,2022608986,"80,250"
Department for Work and Pensions,Housing Benefits,14-Sep-11,Housing Benefit Admin,WWG Housing Benefit,SCOTTISH BORDERS COUNCIL,2022524208,"80,001"
Department for Work and Pensions,Employment Programmes,08-Sep-11,EP PROVIDER PAYMENT - NON-WORK PROGRAMME,WWEG EMPLOYMENT PROGRAMMES,SERCO LTD,2022443284,"79,650"
Department for Work and Pensions,Housing Benefits,14-Sep-11,Housing Benefit Admin,WWG Housing Benefit,CRAWLEY BOROUGH COUNCIL,2022524014,"79,563"
Department for Work and Pensions,Jobcentre Plus,13-Sep-11,APPS DEV,Jobcentre Plus,HP ENTERPRISE SERVICES UK LTD,2022455951,"79,454"
Department for Work and Pensions,Housing Benefits,14-Sep-11,Housing Benefit Admin,WWG Housing Benefit,WREXHAM COUNTY BOROUGH COUNCIL,2022524307,"79,405"
Department for Work and Pensions,Jobcentre Plus,21-Sep-11,EU PROGRAMMES,Jobcentre Plus,BUSINESS IN THE COMMUNITY,2022548366,"79,344"
Department for Work and Pensions,Employment Programmes,15-Sep-11,YOUNG PERSON'S GUARANTEE,WWEG EMPLOYMENT PROGRAMMES,WILTSHIRE COUNCIL,2022527194,"78,595"
Department for Work and Pensions,Employment Programmes,09-Sep-11,YOUNG PERSON'S GUARANTEE,WWEG EMPLOYMENT PROGRAMMES,INSPIRE FUTURES LTD,2022445391,"78,593"
Department for Work and Pensions,Housing Benefits,14-Sep-11,Housing Benefit Admin,WWG Housing Benefit,TORFAEN BOROUGH COUNCIL,2022524271,"78,577"
Department for Work and Pensions,Housing Benefits,14-Sep-11,Housing Benefit Admin,WWG Housing Benefit,CHERWELL DISTRICT COUNCIL,2022523990,"78,566"
Department for Work and Pensions,Housing Benefits,14-Sep-11,Housing Benefit Admin,WWG Housing Benefit,BRECKLAND DISTRICT COUNCIL,2022523966,"78,508"
Department for Work and Pensions,Housing Benefits,14-Sep-11,Housing Benefit Admin,WWG Housing Benefit,MAIDSTONE BOROUGH COUNCIL,2022524130,"78,478"
Department for Work and Pensions,Housing Benefits,14-Sep-11,Housing Benefit Admin,WWG Housing Benefit,GWYNEDD COUNCIL,2022524066,"77,986"
Department for Work and Pensions,"Pension, Disability Carers Services",12-Sep-11,APPS DEV,"Pensions, Disability & Carers Service",HP ENTERPRISE SERVICES UK LTD,2022449797,"77,622"
Department for Work and Pensions,Housing Benefits,14-Sep-11,Housing Benefit Admin,WWG Housing Benefit,WEST BERKSHIRE COUNCIL,2022524287,"77,607"
Department for Work and Pensions,Jobcentre Plus,02-Sep-11,EMPLOYMENT PROGRAMMES,"Pensions, Disability & Carers Service",TRIAGE CENTRAL LTD,2022364806,"77,578"
Department for Work and Pensions,"Pension, Disability Carers Services",22-Sep-11,AOS CONTRACTED OUT SERVICES,"Pensions, Disability & Carers Service",XEROX UK LTD,2022610270,"77,521"
Department for Work and Pensions,Corporate,09-Sep-11,Consultancy Fee,LSPG,EVERSHEDS SOLICITORS,2022445354,"77,356"
Department for Work and Pensions,Jobcentre Plus,29-Sep-11,EMPLOYMENT PROGRAMMES,"Pensions, Disability & Carers Service",INGEUS UK LTD,2022690137,"77,191"
Department for Work and Pensions,Housing Benefits,14-Sep-11,Housing Benefit Admin,WWG Housing Benefit,WYRE BOROUGH COUNCIL,2022524310,"76,857"
Department for Work and Pensions,Housing Benefits,14-Sep-11,Housing Benefit Admin,WWG Housing Benefit,DOVER DISTRICT COUNCIL,2022524024,"76,750"
Department for Work and Pensions,Housing Benefits,14-Sep-11,Housing Benefit Admin,WWG Housing Benefit,CHARNWOOD BOROUGH COUNCIL,2022523987,"76,664"
Department for Work and Pensions,Housing Benefits,14-Sep-11,Housing Benefit Admin,WWG Housing Benefit,VALE OF GLAMORGAN COUNCIL,2022524276,"76,596"
Department for Work and Pensions,Housing Benefits,14-Sep-11,Housing Benefit Admin,WWG Housing Benefit,PEMBROKESHIRE COUNTY COUNCIL,2022524176,"76,544"
Department for Work and Pensions,Housing Benefits,14-Sep-11,Housing Benefit Admin,WWG Housing Benefit,TEIGNBRIDGE DISTRICT COUNCIL,2022524261,"75,813"
Department for Work and Pensions,Corporate,30-Sep-11,ACCOMMODATION,GROUP FINANCE,TELEREAL TRILLIUM,2022696615,"75,288"
Department for Work and Pensions,Housing Benefits,14-Sep-11,Housing Benefit Admin,WWG Housing Benefit,BASSETLAW DISTRICT COUNCIL,2022523948,"75,257"
Department for Work and Pensions,Housing Benefits,14-Sep-11,Housing Benefit Admin,WWG Housing Benefit,NORTH HERTFORDSHIRE DISTRICT COUNCIL,2022524158,"74,925"
Department for Work and Pensions,Jobcentre Plus,13-Sep-11,COMPUTER SERVICES,Jobcentre Plus,STERIA,2022457735,"74,687"
Department for Work and Pensions,Corporate,13-Sep-11,APPS DEV,GROUP FINANCE,HP ENTERPRISE SERVICES UK LTD,2022455951,"74,654"
Department for Work and Pensions,Corporate,16-Sep-11,TEMPORARY (TEMP) STAFF COSTS,Corporate IT,CAPITA RESOURCING LTD,2022529065,"74,448"
Department for Work and Pensions,Housing Benefits,14-Sep-11,Housing Benefit Admin,WWG Housing Benefit,NEWCASTLE UNDER LYME BOROUGH COUNCIL,2022524151,"74,074"
Department for Work and Pensions,Housing Benefits,14-Sep-11,Housing Benefit Admin,WWG Housing Benefit,EREWASH BOROUGH COUNCIL,2022524049,"73,888"
Department for Work and Pensions,"Pension, Disability Carers Services",22-Sep-11,AOS CONTRACTED OUT SERVICES,"Pensions, Disability & Carers Service",PROMOTIONAL LOGISTICS LTD,2022609842,"73,748"
Department for Work and Pensions,Housing Benefits,14-Sep-11,Housing Benefit Admin,WWG Housing Benefit,HYNDBURN BOROUGH COUNCIL,2022524084,"73,690"
Department for Work and Pensions,Housing Benefits,14-Sep-11,Housing Benefit Admin,WWG Housing Benefit,AMBER VALLEY BOROUGH COUNCIL,2022523936,"73,477"
Department for Work and Pensions,Employment Programmes,06-Sep-11,EP PROVIDER PAYMENT - NON-WORK PROGRAMME,WWEG EMPLOYMENT PROGRAMMES,SERCO LTD,2022373181,"73,440"
Department for Work and Pensions,Employment Programmes,22-Sep-11,YOUNG PERSON'S GUARANTEE,WWEG EMPLOYMENT PROGRAMMES,KNOWSLEY METROPOLITAN BOROUGH COUNCIL,2022609445,"73,200"
Department for Work and Pensions,Housing Benefits,14-Sep-11,Housing Benefit Admin,WWG Housing Benefit,FENLAND DISTRICT COUNCIL,2022524053,"73,019"
Department for Work and Pensions,Housing Benefits,14-Sep-11,Housing Benefit Admin,WWG Housing Benefit,EXETER CITY COUNCIL,2022524050,"72,846"
Department for Work and Pensions,Housing Benefits,14-Sep-11,Housing Benefit Admin,WWG Housing Benefit,LINCOLN CITY COUNCIL,2022524099,"72,808"
Department for Work and Pensions,Housing Benefits,14-Sep-11,Housing Benefit Admin,WWG Housing Benefit,ANGUS COUNCIL,2022523937,"72,682"
Department for Work and Pensions,Employment Programmes,12-Sep-11,EP PROVIDER PAYMENT - NON-WORK PROGRAMME,WWEG EMPLOYMENT PROGRAMMES,JHP GROUP LTD,2022450145,"72,639"
Department for Work and Pensions,"Pension, Disability Carers Services",12-Sep-11,TELEPHONE AND POSTAGE,"Pensions, Disability & Carers Service",ROYAL MAIL GROUP PLC,2022451319,"72,622"
Department for Work and Pensions,Corporate,12-Sep-11,AOS CONTRACTED OUT SERVICES,Shared Services,COMMERCIAL COLLECTION SERVICES LTD,2022447166,"72,572"
Department for Work and Pensions,Housing Benefits,14-Sep-11,Housing Benefit Admin,WWG Housing Benefit,HARROGATE BOROUGH COUNCIL,2022524072,"72,421"
Department for Work and Pensions,Jobcentre Plus,22-Sep-11,EMPLOYMENT PROGRAMMES,"Pensions, Disability & Carers Service",WORKING LINKS EMPLOYMENT LTD,2022610268,"72,274"
Department for Work and Pensions,Housing Benefits,14-Sep-11,Housing Benefit Admin,WWG Housing Benefit,POWYS COUNTY COUNCIL,2022524183,"72,208"
Department for Work and Pensions,Housing Benefits,14-Sep-11,Housing Benefit Admin,WWG Housing Benefit,WYRE FOREST DISTRICT COUNCIL,2022524311,"71,827"
Department for Work and Pensions,Corporate,20-Sep-11,PRINCES YOUTH TRUST,WWG SUMMARY,ROYAL COLLEGE OF GENERAL PRACTITIONERS,2022540484,"71,520"
Department for Work and Pensions,Employment Programmes,12-Sep-11,EP PROVIDER PAYMENT - NON-WORK PROGRAMME,WWEG EMPLOYMENT PROGRAMMES,JHP GROUP LTD,2022450145,"71,410"
Department for Work and Pensions,Jobcentre Plus,22-Sep-11,EMPLOYMENT PROGRAMMES,"Pensions, Disability & Carers Service",THE WISE GROUP,2022610193,"71,381"
Department for Work and Pensions,Housing Benefits,14-Sep-11,Housing Benefit Admin,WWG Housing Benefit,EAST STAFFORDSHIRE DISTRICT COUNCIL,2022524041,"71,233"
Department for Work and Pensions,Jobcentre Plus,12-Sep-11,APPS DEV,Jobcentre Plus,HP ENTERPRISE SERVICES UK LTD,2022449797,"71,075"
Department for Work and Pensions,Housing Benefits,14-Sep-11,Housing Benefit Admin,WWG Housing Benefit,SEDGEMOOR DISTRICT COUNCIL,2022524209,"71,065"
Department for Work and Pensions,Jobcentre Plus,02-Sep-11,EMPLOYMENT PROGRAMMES,"Pensions, Disability & Carers Service",BTCV,2022363114,"70,535"
Department for Work and Pensions,Housing Benefits,14-Sep-11,Housing Benefit Admin,WWG Housing Benefit,SOUTH KESTEVEN DISTRICT COUNCIL,2022524226,"70,457"
Department for Work and Pensions,Corporate,26-Sep-11,PRINTING STATIONERY IT CONSUMABLES,GROUP FINANCE,XEROX UK LTD 3W,2022618623,"70,142"
Department for Work and Pensions,Jobcentre Plus,02-Sep-11,EMPLOYMENT PROGRAMMES,"Pensions, Disability & Carers Service",WORKING LINKS,2022364872,"70,137"
Department for Work and Pensions,Housing Benefits,14-Sep-11,Housing Benefit Admin,WWG Housing Benefit,GEDLING BOROUGH COUNCIL,2022524060,"70,119"
Department for Work and Pensions,Housing Benefits,14-Sep-11,Housing Benefit Admin,WWG Housing Benefit,HARLOW DISTRICT COUNCIL,2022524071,"69,793"
Department for Work and Pensions,Housing Benefits,14-Sep-11,Housing Benefit Admin,WWG Housing Benefit,WORTHING BOROUGH COUNCIL,2022524306,"69,308"
Department for Work and Pensions,Housing Benefits,14-Sep-11,Housing Benefit Admin,WWG Housing Benefit,CHELTENHAM BOROUGH COUNCIL,2022523989,"68,832"
Department for Work and Pensions,Jobcentre Plus,22-Sep-11,EMPLOYMENT PROGRAMMES,"Pensions, Disability & Carers Service",BUSINESS EMPLOYMENT SERVICES TRAINING LTD,2022607880,"68,746"
Department for Work and Pensions,Housing Benefits,14-Sep-11,Housing Benefit Admin,WWG Housing Benefit,CAMBRIDGE CITY COUNCIL,2022523979,"68,579"
Department for Work and Pensions,Employment Programmes,05-Sep-11,YOUNG PERSON'S GUARANTEE,WWEG EMPLOYMENT PROGRAMMES,NEWPORT CITY COUNCIL,2022370086,"68,550"
Department for Work and Pensions,Corporate,23-Sep-11,EMPLOYMENT ZONES,GROUP FINANCE,DERBYLOANS,2022612345,"68,550"
Department for Work and Pensions,Employment Programmes,05-Sep-11,EP PROVIDER PAYMENT - NON-WORK PROGRAMME,WWEG EMPLOYMENT PROGRAMMES,SERCO LTD,2022368893,"68,499"
Department for Work and Pensions,Employment Programmes,06-Sep-11,EP PROVIDER PAYMENT - NON-WORK PROGRAMME,WWEG EMPLOYMENT PROGRAMMES,SERCO LTD,2022373181,"68,499"
Department for Work and Pensions,Housing Benefits,14-Sep-11,Housing Benefit Admin,WWG Housing Benefit,DENBIGHSHIRE COUNTY COUNCIL,2022524020,"68,208"
Department for Work and Pensions,Corporate,26-Sep-11,IS/IT,Corporate IT,SPECIALIST COMPUTER CENTRES PLC,2022618460,"68,099"
Department for Work and Pensions,Housing Benefits,14-Sep-11,Housing Benefit Admin,WWG Housing Benefit,GRAVESHAM BOROUGH COUNCIL,2022524063,"67,731"
Department for Work and Pensions,Housing Benefits,14-Sep-11,Housing Benefit Admin,WWG Housing Benefit,WEST LANCASHIRE DISTRICT COUNCIL,2022524291,"66,807"
Department for Work and Pensions,Housing Benefits,14-Sep-11,Housing Benefit Admin,WWG Housing Benefit,BROXBOURNE BOROUGH COUNCIL,2022523973,"66,664"
Department for Work and Pensions,Jobcentre Plus,23-Sep-11,COMPUTER SERVICES,Jobcentre Plus,ATOS ORIGIN IT SERVICES UK LTD,2022612030,"66,612"
Department for Work and Pensions,Housing Benefits,14-Sep-11,Housing Benefit Admin,WWG Housing Benefit,GUILDFORD BOROUGH COUNCIL,2022524065,"66,363"
Department for Work and Pensions,Employment Programmes,20-Sep-11,EMPLOYMENT INITIATIVES,WWEG EMPLOYMENT PROGRAMMES,WORKING LINKS,2022541069,"66,332"
Department for Work and Pensions,Housing Benefits,14-Sep-11,Housing Benefit Admin,WWG Housing Benefit,WARWICK DISTRICT COUNCIL,2022524281,"66,314"
Department for Work and Pensions,Housing Benefits,14-Sep-11,Housing Benefit Admin,WWG Housing Benefit,REIGATE & BANSTEAD BOROUGH COUNCIL,2022524188,"66,240"
Department for Work and Pensions,Housing Benefits,14-Sep-11,Housing Benefit Admin,WWG Housing Benefit,EAST DEVON DISTRICT COUNCIL,2022524031,"66,196"
Department for Work and Pensions,Housing Benefits,14-Sep-11,Housing Benefit Admin,WWG Housing Benefit,ASHFORD BOROUGH COUNCIL,2022523941,"66,138"
Department for Work and Pensions,Jobcentre Plus,15-Sep-11,EMPLOYMENT PROGRAMMES,"Pensions, Disability & Carers Service",CORNWALL COUNTY COUNCIL,2022524709,"65,591"
Department for Work and Pensions,Jobcentre Plus,22-Sep-11,EMPLOYMENT PROGRAMMES,"Pensions, Disability & Carers Service",REED IN PARTNERSHIP,2022609911,"65,377"
Department for Work and Pensions,Housing Benefits,14-Sep-11,Housing Benefit Admin,WWG Housing Benefit,TAUNTON DEANE BOROUGH COUNCIL,2022524260,"65,246"
Department for Work and Pensions,Employment Programmes,12-Sep-11,EP PROVIDER PAYMENT - WORK PROGRAMME,WWEG EMPLOYMENT PROGRAMMES,BEST LTD,2022446907,"65,200"
Department for Work and Pensions,Housing Benefits,14-Sep-11,Housing Benefit Admin,WWG Housing Benefit,NORTH DEVON DISTRICT COUNCIL,2022524154,"64,957"
Department for Work and Pensions,Corporate,30-Sep-11,ACCOMMODATION,GROUP FINANCE,TELEREAL TRILLIUM,2022696618,"64,600"
Department for Work and Pensions,Housing Benefits,14-Sep-11,Housing Benefit Admin,WWG Housing Benefit,WORCESTER CITY COUNCIL,2022524305,"64,477"
Department for Work and Pensions,Corporate,19-Sep-11,TELEPHONE AND POSTAGE,GROUP FINANCE,UK MAIL,2022535941,"64,369"
Department for Work and Pensions,Housing Benefits,14-Sep-11,Housing Benefit Admin,WWG Housing Benefit,WELWYN HATFIELD DISTRICT COUNCIL,2022524286,"64,239"
Department for Work and Pensions,Housing Benefits,14-Sep-11,Housing Benefit Admin,WWG Housing Benefit,NORTH NORFOLK DISTRICT COUNCIL,2022524162,"64,072"
Department for Work and Pensions,Housing Benefits,14-Sep-11,Housing Benefit Admin,WWG Housing Benefit,MENDIP DISTRICT COUNCIL,2022524137,"64,055"
Department for Work and Pensions,Housing Benefits,14-Sep-11,Housing Benefit Admin,WWG Housing Benefit,CITY OF CARLISLE DISTRICT COUNCIL,2022523998,"63,983"
Department for Work and Pensions,Housing Benefits,14-Sep-11,Housing Benefit Admin,WWG Housing Benefit,WINDSOR & MAIDENHEAD BOROUGH COUNCIL,2022524300,"63,911"
Department for Work and Pensions,Employment Programmes,12-Sep-11,EP PROVIDER PAYMENT - NON-WORK PROGRAMME,WWEG EMPLOYMENT PROGRAMMES,A4E LTD,2022446785,"63,650"
Department for Work and Pensions,Housing Benefits,14-Sep-11,Housing Benefit Admin,WWG Housing Benefit,BLAENAU GWENT COUNTY BOROUGH COUNCIL,2022523955,"63,461"
Department for Work and Pensions,Housing Benefits,14-Sep-11,Housing Benefit Admin,WWG Housing Benefit,EPPING FOREST DISTRICT COUNCIL,2022524047,"63,296"
Department for Work and Pensions,Jobcentre Plus,22-Sep-11,EMPLOYMENT PROGRAMMES,"Pensions, Disability & Carers Service",PERTEMPS EMPLOYMENT ALLIANCE,2022609835,"63,233"
Department for Work and Pensions,Jobcentre Plus,06-Sep-11,Accommodation Costs,Jobcentre Plus,VALUATION OFFICE AGENCY,2022373384,"63,232"
Department for Work and Pensions,Jobcentre Plus,22-Sep-11,EMPLOYMENT PROGRAMMES,"Pensions, Disability & Carers Service",BTCV ENTERPRISES LTD,2022607878,"63,231"
Department for Work and Pensions,Housing Benefits,14-Sep-11,Housing Benefit Admin,WWG Housing Benefit,CANNOCK CHASE DISTRICT COUNCIL,2022523980,"63,108"
Department for Work and Pensions,Corporate,05-Sep-11,INTRA DWP PAYABLES,"Pensions, Disability & Carers Service",EUROPEAN SOCIAL FUND,2002786,"63,015"
Department for Work and Pensions,Employment Programmes,28-Sep-11,YOUNG PERSON'S GUARANTEE,WWEG EMPLOYMENT PROGRAMMES,BARNARDOS,2022631091,"63,000"
Department for Work and Pensions,Jobcentre Plus,29-Sep-11,EMPLOYMENT PROGRAMMES,"Pensions, Disability & Carers Service",SKILLS TRAINING UK LTD,2022691264,"62,885"
Department for Work and Pensions,Housing Benefits,14-Sep-11,Housing Benefit Admin,WWG Housing Benefit,HERTSMERE BOROUGH COUNCIL,2022524078,"62,878"
Department for Work and Pensions,Housing Benefits,14-Sep-11,Housing Benefit Admin,WWG Housing Benefit,ARGYLL & BUTE COUNCIL,2022523938,"62,865"
Department for Work and Pensions,Jobcentre Plus,02-Sep-11,EMPLOYMENT PROGRAMMES,"Pensions, Disability & Carers Service",PROSPECTS,2022364468,"61,796"
Department for Work and Pensions,Housing Benefits,14-Sep-11,Housing Benefit Admin,WWG Housing Benefit,ALLERDALE DISTRICT COUNCIL,2022523935,"61,755"
Department for Work and Pensions,Housing Benefits,14-Sep-11,Housing Benefit Admin,WWG Housing Benefit,WEALDEN DISTRICT COUNCIL,2022524285,"61,582"
Department for Work and Pensions,Housing Benefits,14-Sep-11,Housing Benefit Admin,WWG Housing Benefit,NEWARK DISTRICT COUNCIL,2022524149,"61,494"
Department for Work and Pensions,Employment Programmes,26-Sep-11,YOUNG PERSON'S GUARANTEE,WWEG EMPLOYMENT PROGRAMMES,SWINDON BOROUGH COUNCIL,2022618478,"60,900"
Department for Work and Pensions,Jobcentre Plus,16-Sep-11,COMPUTER SERVICES,Jobcentre Plus,SPECIALIST COMPUTER CENTRES PLC,2022531993,"60,677"
Department for Work and Pensions,Housing Benefits,14-Sep-11,Housing Benefit Admin,WWG Housing Benefit,TONBRIDGE & MALLING DISTRICT COUNCIL,2022524269,"60,672"
Department for Work and Pensions,Housing Benefits,14-Sep-11,Housing Benefit Admin,WWG Housing Benefit,CHICHESTER DISTRICT COUNCIL,2022523994,"60,573"
Department for Work and Pensions,Corporate,26-Sep-11,Intangible Assets,WWG SUMMARY,CAPGEMINI UK PLC,2022616377,"60,488"
Department for Work and Pensions,Housing Benefits,14-Sep-11,Housing Benefit Admin,WWG Housing Benefit,EAST HERTFORDSHIRE DISTRICT COUNCIL,2022524035,"60,402"
Department for Work and Pensions,Employment Programmes,12-Sep-11,EP PROVIDER PAYMENT - NON-WORK PROGRAMME,WWEG EMPLOYMENT PROGRAMMES,JHP GROUP LTD,2022450145,"60,145"
Department for Work and Pensions,Housing Benefits,14-Sep-11,Housing Benefit Admin,WWG Housing Benefit,GOSPORT BOROUGH COUNCIL,2022524062,"59,919"
Department for Work and Pensions,Jobcentre Plus,13-Sep-11,EU PROGRAMMES,Jobcentre Plus,OUTSET CIC,2022457060,"59,840"
Department for Work and Pensions,Corporate,30-Sep-11,ACCOMMODATION,GROUP FINANCE,TELEREAL TRILLIUM,2022696617,"59,691"
Department for Work and Pensions,Housing Benefits,14-Sep-11,Housing Benefit Admin,WWG Housing Benefit,WATFORD BOROUGH COUNCIL,2022524282,"59,615"
Department for Work and Pensions,Housing Benefits,14-Sep-11,Housing Benefit Admin,WWG Housing Benefit,STEVENAGE BOROUGH COUNCIL,2022524244,"59,462"
Department for Work and Pensions,Housing Benefits,14-Sep-11,Housing Benefit Admin,WWG Housing Benefit,SOUTH NORFOLK DISTRICT COUNCIL,2022524229,"59,382"
Department for Work and Pensions,Employment Programmes,06-Sep-11,EP PROVIDER PAYMENT - NON-WORK PROGRAMME,WWEG EMPLOYMENT PROGRAMMES,SERCO LTD,2022373181,"59,255"
Department for Work and Pensions,Housing Benefits,14-Sep-11,Housing Benefit Admin,WWG Housing Benefit,SUFFOLK COASTAL DISTRICT COUNCIL,2022524251,"59,230"
Department for Work and Pensions,Employment Programmes,12-Sep-11,EP PROVIDER PAYMENT - WORK PROGRAMME,WWEG EMPLOYMENT PROGRAMMES,INGEUS UK LTD,2022449843,"59,200"
Department for Work and Pensions,Housing Benefits,14-Sep-11,Housing Benefit Admin,WWG Housing Benefit,EAST LOTHIAN DISTRICT COUNCIL,2022524037,"58,888"
Department for Work and Pensions,Jobcentre Plus,29-Sep-11,EMPLOYMENT PROGRAMMES,"Pensions, Disability & Carers Service",CORNWALL COUNTY COUNCIL,2022689529,"58,333"
Department for Work and Pensions,Employment Programmes,07-Sep-11,EP PROVIDER PAYMENT - NON-WORK PROGRAMME,WWEG EMPLOYMENT PROGRAMMES,SKILLS TRAINING UK LIMITED,2022432818,"58,328"
Department for Work and Pensions,Employment Programmes,22-Sep-11,EMPLOYMENT INITIATIVES,WWEG EMPLOYMENT PROGRAMMES,SENCIA LTD,2022610090,"58,000"
Department for Work and Pensions,Housing Benefits,14-Sep-11,Housing Benefit Admin,WWG Housing Benefit,BRACKNELL FOREST BOROUGH COUNCIL,2022523963,"57,945"
Department for Work and Pensions,Housing Benefits,14-Sep-11,Housing Benefit Admin,WWG Housing Benefit,ROTHER DISTRICT COUNCIL,2022524196,"57,903"
Department for Work and Pensions,Corporate,12-Sep-11,IS/IT,Corporate IT,HP ENTERPRISE SERVICES UK LTD,2022449797,"57,758"
Department for Work and Pensions,Employment Programmes,15-Sep-11,YOUNG PERSON'S GUARANTEE,WWEG EMPLOYMENT PROGRAMMES,SHROPSHIRE COUNCIL,2022527040,"57,750"
Department for Work and Pensions,Corporate,13-Sep-11,APPS DEV,Corporate IT,HP ENTERPRISE SERVICES UK LTD,2022455951,"57,664"
Department for Work and Pensions,Jobcentre Plus,02-Sep-11,EMPLOYMENT PROGRAMMES,"Pensions, Disability & Carers Service",INBIZ LTD,2022363856,"57,540"
Department for Work and Pensions,Employment Programmes,05-Sep-11,EP PROVIDER PAYMENT - NON-WORK PROGRAMME,WWEG EMPLOYMENT PROGRAMMES,SKILLS TRAINING UK LIMITED,2022368906,"57,513"
Department for Work and Pensions,Employment Programmes,12-Sep-11,EP PROVIDER PAYMENT - NON-WORK PROGRAMME,WWEG EMPLOYMENT PROGRAMMES,A4E LTD,2022446785,"57,372"
Department for Work and Pensions,Employment Programmes,01-Sep-11,EP PROVIDER PAYMENT - NON-WORK PROGRAMME,WWEG EMPLOYMENT PROGRAMMES,SERCO LTD,2022361754,"57,348"
Department for Work and Pensions,Housing Benefits,14-Sep-11,Housing Benefit Admin,WWG Housing Benefit,BROXTOWE BOROUGH COUNCIL,2022523974,"57,302"
Department for Work and Pensions,Housing Benefits,14-Sep-11,Housing Benefit Admin,WWG Housing Benefit,STRATFORD ON AVON DISTRICT COUNCIL,2022524249,"57,238"
Department for Work and Pensions,Housing Benefits,14-Sep-11,Housing Benefit Admin,WWG Housing Benefit,RUGBY BOROUGH COUNCIL,2022524199,"57,209"
Department for Work and Pensions,Corporate,23-Sep-11,COMPUTER SERVICES,Corporate IT,ACCENTURE UK LTD,2022612004,"57,103"
Department for Work and Pensions,Housing Benefits,14-Sep-11,Housing Benefit Admin,WWG Housing Benefit,BARROW BOROUGH COUNCIL,2022523945,"56,861"
Department for Work and Pensions,Corporate,02-Sep-11,COMPUTER SERVICES,Shared Services,ATOS ORIGIN IT SERVICES UK LTD,2022363060,"56,756"
Department for Work and Pensions,Housing Benefits,14-Sep-11,Housing Benefit Admin,WWG Housing Benefit,ST EDMUNDSBURY BOROUGH COUNCIL,2022524240,"56,680"
Department for Work and Pensions,Employment Programmes,12-Sep-11,EP PROVIDER PAYMENT - NON-WORK PROGRAMME,WWEG EMPLOYMENT PROGRAMMES,INGEUS UK LTD,2022449843,"56,474"
Department for Work and Pensions,Housing Benefits,14-Sep-11,Housing Benefit Admin,WWG Housing Benefit,CHORLEY BOROUGH COUNCIL,2022523996,"56,458"
Department for Work and Pensions,Housing Benefits,14-Sep-11,Housing Benefit Admin,WWG Housing Benefit,LEWES DISTRICT COUNCIL,2022524097,"56,193"
Department for Work and Pensions,Housing Benefits,14-Sep-11,Housing Benefit Admin,WWG Housing Benefit,BOROUGH OF REDDITCH,2022523958,"56,169"
Department for Work and Pensions,"Pension, Disability Carers Services",12-Sep-11,APPS DEV,"Pensions, Disability & Carers Service",HP ENTERPRISE SERVICES UK LTD,2022449797,"56,067"
Department for Work and Pensions,Housing Benefits,14-Sep-11,Housing Benefit Admin,WWG Housing Benefit,TUNBRIDGE WELLS BOROUGH COUNCIL,2022524274,"55,959"
Department for Work and Pensions,Corporate,02-Sep-11,BANKING AND ENCASHMENT COSTS,GROUP FINANCE,HSBC BANK PLC,2022363837,"55,918"
Department for Work and Pensions,Housing Benefits,14-Sep-11,Housing Benefit Admin,WWG Housing Benefit,RUSHMOOR BOROUGH COUNCIL,2022524202,"55,901"
Department for Work and Pensions,Housing Benefits,14-Sep-11,Housing Benefit Admin,WWG Housing Benefit,WYCHAVON DISTRICT COUNCIL,2022524308,"55,778"
Department for Work and Pensions,Employment Programmes,12-Sep-11,FND,WWEG EMPLOYMENT PROGRAMMES,WELSH ASSEMBLY GOVERNMENT,2022452874,"55,709"
Department for Work and Pensions,Corporate,20-Sep-11,APPS DEV,Shared Services,ACCENTURE,2022537160,"55,675"
Department for Work and Pensions,Jobcentre Plus,22-Sep-11,EMPLOYMENT PROGRAMMES,"Pensions, Disability & Carers Service",WORKING LINKS,2022610266,"55,571"
Department for Work and Pensions,Housing Benefits,14-Sep-11,Housing Benefit Admin,WWG Housing Benefit,STROUD DISTRICT COUNCIL,2022524250,"55,411"
Department for Work and Pensions,Jobcentre Plus,29-Sep-11,EU PROGRAMMES,Jobcentre Plus,PINNACLE PEOPLE,2022690952,"55,300"
Department for Work and Pensions,Employment Programmes,05-Sep-11,EP PROVIDER PAYMENT - WORK PROGRAMME,WWEG EMPLOYMENT PROGRAMMES,BEST LTD,2022366467,"55,200"
Department for Work and Pensions,Employment Programmes,07-Sep-11,EP PROVIDER PAYMENT - NON-WORK PROGRAMME,WWEG EMPLOYMENT PROGRAMMES,INGEUS UK LTD,2022397327,"55,188"
Department for Work and Pensions,Housing Benefits,14-Sep-11,Housing Benefit Admin,WWG Housing Benefit,ELMBRIDGE BOROUGH COUNCIL,2022524046,"55,151"
Department for Work and Pensions,Housing Benefits,14-Sep-11,Housing Benefit Admin,WWG Housing Benefit,SOUTH RIBBLE BOROUGH COUNCIL C,2022524232,"54,828"
Department for Work and Pensions,Housing Benefits,14-Sep-11,Housing Benefit Admin,WWG Housing Benefit,WEST LINDSEY DISTRICT COUNCIL,2022524292,"54,699"
Department for Work and Pensions,Corporate,12-Sep-11,COMPUTER SERVICES,Shared Services,FUJITSU SERVICES LTD,2022449613,"54,529"
Department for Work and Pensions,Housing Benefits,14-Sep-11,Housing Benefit Admin,WWG Housing Benefit,BOROUGH OF WELLINGBOROUGH,2022523960,"54,483"
Department for Work and Pensions,Jobcentre Plus,02-Sep-11,EMPLOYMENT PROGRAMMES,"Pensions, Disability & Carers Service",TNG NETWORK LTD,2022364791,"54,380"
Department for Work and Pensions,Housing Benefits,14-Sep-11,Housing Benefit Admin,WWG Housing Benefit,EASTLEIGH BOROUGH COUNCIL,2022524043,"54,293"
Department for Work and Pensions,Housing Benefits,14-Sep-11,Housing Benefit Admin,WWG Housing Benefit,TEST VALLEY BOROUGH COUNCIL,2022524263,"54,275"
Department for Work and Pensions,Housing Benefits,14-Sep-11,Housing Benefit Admin,WWG Housing Benefit,MIDLOTHIAN COUNCIL,2022524143,"54,224"
Department for Work and Pensions,Housing Benefits,14-Sep-11,Housing Benefit Admin,WWG Housing Benefit,BOLSOVER DISTRICT COUNCIL,2022523956,"54,204"
Department for Work and Pensions,Employment Programmes,05-Sep-11,EP PROVIDER PAYMENT - WORK PROGRAMME,WWEG EMPLOYMENT PROGRAMMES,INGEUS UK LTD,2022368049,"54,000"
Department for Work and Pensions,Employment Programmes,12-Sep-11,EP PROVIDER PAYMENT - WORK PROGRAMME,WWEG EMPLOYMENT PROGRAMMES,INGEUS UK LTD,2022449843,"54,000"
Department for Work and Pensions,Housing Benefits,14-Sep-11,Housing Benefit Admin,WWG Housing Benefit,DARTFORD BOROUGH COUNCIL,2022524018,"53,981"
Department for Work and Pensions,Housing Benefits,14-Sep-11,Housing Benefit Admin,WWG Housing Benefit,HIGH PEAK BOROUGH COUNCIL,2022524079,"53,861"
Department for Work and Pensions,Corporate,15-Sep-11,TOTAL SUPPLIES & SERVICES,Corporate & Support Services,ASE CORPORATE EYECARE LTD,2022524496,"53,773"
Department for Work and Pensions,Housing Benefits,14-Sep-11,Housing Benefit Admin,WWG Housing Benefit,KETTERING BOROUGH COUNCIL,2022524089,"53,668"
Department for Work and Pensions,Jobcentre Plus,23-Sep-11,JOBCENTRE PLUS PATHWAYS TO WORK,Jobcentre Plus,A4E LTD,614624,"53,547"
Department for Work and Pensions,Jobcentre Plus,02-Sep-11,EMPLOYMENT PROGRAMMES,"Pensions, Disability & Carers Service",THE WISE GROUP,2022364785,"53,542"
Department for Work and Pensions,Housing Benefits,14-Sep-11,Housing Benefit Admin,WWG Housing Benefit,STAFFORD BOROUGH COUNCIL,2022524242,"53,477"
Department for Work and Pensions,Housing Benefits,14-Sep-11,Housing Benefit Admin,WWG Housing Benefit,ST ALBANS DISTRICT COUNCIL,2022524239,"53,217"
Department for Work and Pensions,Employment Programmes,02-Sep-11,EP PROVIDER PAYMENT - WORK PROGRAMME,WWEG EMPLOYMENT PROGRAMMES,WORKING LINKS,2022364871,"53,200"
Department for Work and Pensions,Housing Benefits,14-Sep-11,Housing Benefit Admin,WWG Housing Benefit,SEVENOAKS DISTRICT COUNCIL,2022524212,"52,703"
Department for Work and Pensions,Employment Programmes,21-Sep-11,EU PROGRAMMES,WWEG EMPLOYMENT PROGRAMMES,WEST LOTHIAN COUNCIL,2022605067,"52,572"
Department for Work and Pensions,Housing Benefits,14-Sep-11,Housing Benefit Admin,WWG Housing Benefit,NORTH EAST DERBYSHIRE DISTRICT COUNCIL,2022524156,"52,479"
Department for Work and Pensions,Housing Benefits,14-Sep-11,Housing Benefit Admin,WWG Housing Benefit,VALE OF WHITE HORSE DISTRICT COUNCIL,2022524277,"52,472"
Department for Work and Pensions,Employment Programmes,12-Sep-11,EP PROVIDER PAYMENT - WORK PROGRAMME,WWEG EMPLOYMENT PROGRAMMES,INGEUS UK LTD,2022449843,"52,400"
Department for Work and Pensions,"Pension, Disability Carers Services",21-Sep-11,MEDICAL SERVICES,"Pensions, Disability & Carers Service",ATOS HEALTHCARE,2022547268,"52,269"
Department for Work and Pensions,Jobcentre Plus,22-Sep-11,EMPLOYMENT PROGRAMMES,"Pensions, Disability & Carers Service",CAREERS DEVELOPMENT GROUP LTD,2022607982,"52,155"
Department for Work and Pensions,Housing Benefits,14-Sep-11,Housing Benefit Admin,WWG Housing Benefit,WEYMOUTH & PORTLAND BOROUGH COUNCIL,2022524296,"52,141"
Department for Work and Pensions,Employment Programmes,12-Sep-11,EP PROVIDER PAYMENT - NON-WORK PROGRAMME,WWEG EMPLOYMENT PROGRAMMES,INGEUS UK LTD,2022449843,"52,086"
Department for Work and Pensions,Employment Programmes,01-Sep-11,YOUNG PERSON'S GUARANTEE,WWEG EMPLOYMENT PROGRAMMES,SOLIHULL METROPOLITAN BOROUGH COUNCIL,2022361766,"52,050"
Department for Work and Pensions,Jobcentre Plus,15-Sep-11,EMPLOYMENT PROGRAMMES,"Pensions, Disability & Carers Service",REMPLOY,2022526827,"51,907"
Department for Work and Pensions,Housing Benefits,14-Sep-11,Housing Benefit Admin,WWG Housing Benefit,BROADLAND DISTRICT COUNCIL,2022523971,"51,871"
Department for Work and Pensions,Housing Benefits,14-Sep-11,Housing Benefit Admin,WWG Housing Benefit,WEST DORSET DISTRICT COUNCIL,2022524289,"51,703"
Department for Work and Pensions,Corporate,26-Sep-11,MISCELLANEOUS EXPENDITURE,Corporate & Support Services,RS CONSULTING LTD,2022618296,"51,650"
Department for Work and Pensions,"Pension, Disability Carers Services",26-Sep-11,CONTRACTED OUT SERVICES,"Pensions, Disability & Carers Service",PROMOTIONAL LOGISTICS LTD,2022618197,"51,643"
Department for Work and Pensions,Employment Programmes,19-Sep-11,EP PROVIDER PAYMENT - WORK PROGRAMME,WWEG EMPLOYMENT PROGRAMMES,WORKING LINKS,2022535996,"51,600"
Department for Work and Pensions,Housing Benefits,14-Sep-11,Housing Benefit Admin,WWG Housing Benefit,MID SUSSEX DISTRICT COUNCIL,2022524141,"51,302"
Department for Work and Pensions,Housing Benefits,14-Sep-11,Housing Benefit Admin,WWG Housing Benefit,CASTLE POINT DISTRICT COUNCIL,2022523984,"51,273"
Department for Work and Pensions,Housing Benefits,14-Sep-11,Housing Benefit Admin,WWG Housing Benefit,SOUTH HOLLAND DISTRICT COUNCIL,2022524225,"51,269"
Department for Work and Pensions,Jobcentre Plus,15-Sep-11,EMPLOYMENT PROGRAMMES,"Pensions, Disability & Carers Service",A4E LTD,2022524468,"51,233"
Department for Work and Pensions,Employment Programmes,12-Sep-11,EP PROVIDER PAYMENT - WORK PROGRAMME,WWEG EMPLOYMENT PROGRAMMES,INGEUS UK LTD,2022449843,"51,200"
Department for Work and Pensions,Employment Programmes,13-Sep-11,EP PROVIDER PAYMENT - WORK PROGRAMME,WWEG EMPLOYMENT PROGRAMMES,WORKING LINKS,2022457973,"51,200"
Department for Work and Pensions,Housing Benefits,14-Sep-11,Housing Benefit Admin,WWG Housing Benefit,EAST HAMPSHIRE DISTRICT COUNCIL,2022524034,"51,086"
Department for Work and Pensions,Housing Benefits,14-Sep-11,Housing Benefit Admin,WWG Housing Benefit,MERTHYR TYDFIL BOROUGH COUNCIL,2022524138,"50,998"
Department for Work and Pensions,Housing Benefits,14-Sep-11,Housing Benefit Admin,WWG Housing Benefit,ROSSENDALE BOROUGH COUNCIL,2022524195,"50,717"
Department for Work and Pensions,European Social Fund,27-Sep-11,ESF Expenditure,WWEG EUROPEAN SOCIAL FUND,UNIVERSITY OF SUNDERLAND,5000000729,"50,680"
Department for Work and Pensions,Corporate,19-Sep-11,TOTAL IT & EQUIPMENT COSTS,Corporate IT,METHODS CONSULTING LTD,2022535412,"50,672"
Department for Work and Pensions,Corporate,12-Sep-11,TELEPHONE AND POSTAGE,GROUP FINANCE,ROYAL MAIL GROUP PLC,2022451319,"50,580"
Department for Work and Pensions,Employment Programmes,12-Sep-11,YOUNG PERSON'S GUARANTEE,WWEG EMPLOYMENT PROGRAMMES,THE ROYAL SOCIETY OF WILDLIFE TRUSTS,2022451764,"50,550"
Department for Work and Pensions,Jobcentre Plus,08-Sep-11,EMPLOYMENT PROGRAMMES,"Pensions, Disability & Carers Service",THE INTRAINING GROUP,2022443387,"50,522"
Department for Work and Pensions,Employment Programmes,12-Sep-11,EP PROVIDER PAYMENT - WORK PROGRAMME,WWEG EMPLOYMENT PROGRAMMES,JHP GROUP LTD,2022450145,"50,400"
Department for Work and Pensions,Jobcentre Plus,15-Sep-11,EMPLOYMENT PROGRAMMES,"Pensions, Disability & Carers Service",TOMORROWS PEOPLE TRUST LTD,2022527144,"50,239"
Department for Work and Pensions,Housing Benefits,14-Sep-11,Housing Benefit Admin,WWG Housing Benefit,WAVERLEY BOROUGH COUNCIL,2022524284,"50,074"
Department for Work and Pensions,Corporate,20-Sep-11,TEMPORARY (TEMP) STAFF COSTS,GROUP FINANCE,SANCTUARY GROUP,2022540804,"50,026"
Department for Work and Pensions,Employment Programmes,28-Sep-11,EP PROVIDER PAYMENT - WORK PROGRAMME,WWEG EMPLOYMENT PROGRAMMES,WORKING LINKS,2022686485,"50,000"
Department for Work and Pensions,Jobcentre Plus,29-Sep-11,EMPLOYMENT PROGRAMMES,"Pensions, Disability & Carers Service",R BROWNING,2022690978,"49,873"
Department for Work and Pensions,Corporate,30-Sep-11,MANAGEMENT CONSULTANCY,Corporate IT,BRAMBLE CC LTD,2022693490,"49,626"
Department for Work and Pensions,Housing Benefits,14-Sep-11,Housing Benefit Admin,WWG Housing Benefit,SOUTH STAFFORDSHIRE DISTRICT COUNCIL,2022524234,"49,608"
Department for Work and Pensions,Employment Programmes,01-Sep-11,EP PROVIDER PAYMENT - WORK PROGRAMME,WWEG EMPLOYMENT PROGRAMMES,A4E LTD,2022359621,"49,600"
Department for Work and Pensions,Employment Programmes,06-Sep-11,EP PROVIDER PAYMENT - WORK PROGRAMME,WWEG EMPLOYMENT PROGRAMMES,JHP GROUP LTD,2022372161,"49,600"
Department for Work and Pensions,Housing Benefits,14-Sep-11,Housing Benefit Admin,WWG Housing Benefit,NORTH WEST LEICESTER DISTRICT COUNCIL,2022524166,"49,400"
Department for Work and Pensions,Employment Programmes,07-Sep-11,EP PROVIDER PAYMENT - NON-WORK PROGRAMME,WWEG EMPLOYMENT PROGRAMMES,SERCO LTD,2022432781,"49,383"
Department for Work and Pensions,Housing Benefits,14-Sep-11,Housing Benefit Admin,WWG Housing Benefit,CORBY BOROUGH COUNCIL,2022524007,"49,279"
Department for Work and Pensions,Housing Benefits,14-Sep-11,Housing Benefit Admin,WWG Housing Benefit,HORSHAM DISTRICT COUNCIL,2022524082,"49,267"
Department for Work and Pensions,Employment Programmes,19-Sep-11,EP PROVIDER PAYMENT - WORK PROGRAMME,WWEG EMPLOYMENT PROGRAMMES,INGEUS UK LTD,2022534874,"49,200"
Department for Work and Pensions,Housing Benefits,14-Sep-11,Housing Benefit Admin,WWG Housing Benefit,HINCKLEY & BOSWORTH BOROUGH COUNCIL,2022524081,"49,143"
Department for Work and Pensions,Housing Benefits,14-Sep-11,Housing Benefit Admin,WWG Housing Benefit,SOUTH CAMBRIDGESHIRE DISTRICT COUNCIL,2022524221,"49,139"
Department for Work and Pensions,Employment Programmes,05-Sep-11,EP PROVIDER PAYMENT - NON-WORK PROGRAMME,WWEG EMPLOYMENT PROGRAMMES,INGEUS UK LTD,2022368049,"49,056"
Department for Work and Pensions,Corporate,30-Sep-11,ACCOMMODATION,GROUP FINANCE,TELEREAL TRILLIUM,2022696615,"48,963"
Department for Work and Pensions,Corporate,28-Sep-11,COMPUTER SERVICES,Corporate IT,CAPGEMINI UK PLC,2022635762,"48,913"
Department for Work and Pensions,Jobcentre Plus,15-Sep-11,EMPLOYMENT PROGRAMMES,"Pensions, Disability & Carers Service",SEETEC BUSINESS TECHNOLOGY CENTRE LTD,2022527026,"48,881"
Department for Work and Pensions,Housing Benefits,14-Sep-11,Housing Benefit Admin,WWG Housing Benefit,FOREST OF DEAN DISTRICT COUNCIL,2022524057,"48,808"
Department for Work and Pensions,Employment Programmes,12-Sep-11,EP PROVIDER PAYMENT - NON-WORK PROGRAMME,WWEG EMPLOYMENT PROGRAMMES,CAPITAL TRAINING GROUP LTD,2022447119,"48,748"
Department for Work and Pensions,Corporate,12-Sep-11,BANKING AND ENCASHMENT COSTS,GROUP FINANCE,VOCALINK,2022451850,"48,626"
Department for Work and Pensions,Corporate,30-Sep-11,ACCOMMODATION,GROUP FINANCE,TELEREAL TRILLIUM,2022696617,"48,599"
Department for Work and Pensions,Corporate,30-Sep-11,TEMPORARY (TEMP) STAFF COSTS,Corporate IT,CAPITA RESOURCING LTD,2022693655,"48,444"
Department for Work and Pensions,Housing Benefits,14-Sep-11,Housing Benefit Admin,WWG Housing Benefit,SPELTHORNE BOROUGH COUNCIL,2022524238,"48,436"
Department for Work and Pensions,Corporate,26-Sep-11,COMPUTER SERVICES,Corporate IT,ACCENTURE UK LTD,2022616175,"48,341"
Department for Work and Pensions,Housing Benefits,14-Sep-11,Housing Benefit Admin,WWG Housing Benefit,NORTH KESTEVEN DISTRICT COUNCIL,2022524159,"48,177"
Department for Work and Pensions,Housing Benefits,14-Sep-11,Housing Benefit Admin,WWG Housing Benefit,SOUTH OXFORDSHIRE DISTRICT COUNCIL,2022524231,"48,080"
Department for Work and Pensions,Housing Benefits,14-Sep-11,Housing Benefit Admin,WWG Housing Benefit,THE MORAY COUNCIL,2022524266,"47,965"
Department for Work and Pensions,Jobcentre Plus,22-Sep-11,EMPLOYMENT PROGRAMMES,"Pensions, Disability & Carers Service",BIRMINGHAM CHAMBER TRAINING,2022607860,"47,823"
Department for Work and Pensions,Employment Programmes,02-Sep-11,YOUNG PERSON'S GUARANTEE,WWEG EMPLOYMENT PROGRAMMES,PROSPECT SERVICES LTD,2022364467,"47,800"
Department for Work and Pensions,Housing Benefits,14-Sep-11,Housing Benefit Admin,WWG Housing Benefit,LICHFIELD DISTRICT COUNCIL,2022524098,"47,741"
Department for Work and Pensions,Housing Benefits,14-Sep-11,Housing Benefit Admin,WWG Housing Benefit,COPELAND BOROUGH COUNCIL,2022524006,"47,635"
Department for Work and Pensions,Employment Programmes,07-Sep-11,EP PROVIDER PAYMENT - NON-WORK PROGRAMME,WWEG EMPLOYMENT PROGRAMMES,SKILLS TRAINING UK LIMITED,2022432818,"47,405"
Department for Work and Pensions,Employment Programmes,06-Sep-11,EP PROVIDER PAYMENT - NON-WORK PROGRAMME,WWEG EMPLOYMENT PROGRAMMES,SERCO LTD,2022373181,"47,125"
Department for Work and Pensions,Housing Benefits,14-Sep-11,Housing Benefit Admin,WWG Housing Benefit,EAST DUNBARTONSHIRE COUNCIL,2022524033,"46,979"
Department for Work and Pensions,European Social Fund,06-Sep-11,ESF Expenditure,WWEG EUROPEAN SOCIAL FUND,SHEFFIELD CITY COUNCIL,5000000708,"46,925"
Department for Work and Pensions,Employment Programmes,01-Sep-11,EP PROVIDER PAYMENT - WORK PROGRAMME,WWEG EMPLOYMENT PROGRAMMES,A4E LTD,2022359621,"46,800"
Department for Work and Pensions,Employment Programmes,01-Sep-11,EP PROVIDER PAYMENT - WORK PROGRAMME,WWEG EMPLOYMENT PROGRAMMES,WORKING LINKS,2022361899,"46,800"
Department for Work and Pensions,Employment Programmes,09-Sep-11,YOUNG PERSON'S GUARANTEE,WWEG EMPLOYMENT PROGRAMMES,THE NATIONAL TRUST,2022445684,"46,800"
Department for Work and Pensions,Jobcentre Plus,29-Sep-11,EMPLOYMENT PROGRAMMES,"Pensions, Disability & Carers Service",SHAW TRUST LTD,2022691255,"46,698"
Department for Work and Pensions,Corporate,13-Sep-11,NETWORK,CHANGE MANAGEMENT DIRECTORATE,BT GLOBAL SERVICES,2022453239,"46,632"
Department for Work and Pensions,Corporate,30-Sep-11,ACCOMMODATION,GROUP FINANCE,TELEREAL TRILLIUM,2022696618,"46,562"
Department for Work and Pensions,Jobcentre Plus,02-Sep-11,EMPLOYMENT PROGRAMMES,"Pensions, Disability & Carers Service",BOURNEMOUTH & POOLE COLLEGE,2022363108,"46,502"
Department for Work and Pensions,Housing Benefits,14-Sep-11,Housing Benefit Admin,WWG Housing Benefit,MONMOUTHSHIRE COUNTY  COUNCIL,2022524146,"46,448"
Department for Work and Pensions,Corporate,23-Sep-11,CONTRACTED OUT SERVICES,Shared Services,CAPITA BUSINESS SERVICES LTD,2022612198,"46,442"
Department for Work and Pensions,Employment Programmes,07-Sep-11,EP PROVIDER PAYMENT - WORK PROGRAMME,WWEG EMPLOYMENT PROGRAMMES,WORKING LINKS,2022437132,"46,400"
Department for Work and Pensions,Employment Programmes,12-Sep-11,EP PROVIDER PAYMENT - WORK PROGRAMME,WWEG EMPLOYMENT PROGRAMMES,A4E LTD,2022446785,"46,400"
Department for Work and Pensions,Employment Programmes,29-Sep-11,EP PROVIDER PAYMENT - WORK PROGRAMME,WWEG EMPLOYMENT PROGRAMMES,INGEUS UK LTD,2022690138,"46,400"
Department for Work and Pensions,Corporate,02-Sep-11,COMPUTER SERVICES,Corporate IT,VIRGIN MEDIA LTD,2022364845,"46,296"
Department for Work and Pensions,Housing Benefits,14-Sep-11,Housing Benefit Admin,WWG Housing Benefit,SOUTH HAMS DISTRICT COUNCIL,2022524224,"46,266"
Department for Work and Pensions,Housing Benefits,14-Sep-11,Housing Benefit Admin,WWG Housing Benefit,STIRLING COUNCIL,2022524245,"46,099"
Department for Work and Pensions,Housing Benefits,14-Sep-11,Housing Benefit Admin,WWG Housing Benefit,WEST OXFORDSHIRE DISTRICT COUNCIL,2022524294,"46,058"
Department for Work and Pensions,Employment Programmes,02-Sep-11,EP PROVIDER PAYMENT - WORK PROGRAMME,WWEG EMPLOYMENT PROGRAMMES,A4E LTD,2022363018,"46,000"
Department for Work and Pensions,Employment Programmes,16-Sep-11,EP PROVIDER PAYMENT - WORK PROGRAMME,WWEG EMPLOYMENT PROGRAMMES,A4E LTD,2022528856,"46,000"
Department for Work and Pensions,Employment Programmes,26-Sep-11,EP PROVIDER PAYMENT - WORK PROGRAMME,WWEG EMPLOYMENT PROGRAMMES,INGEUS UK LTD,2022617586,"46,000"
Department for Work and Pensions,Corporate,13-Sep-11,NETWORK,Corporate IT,BT GLOBAL SERVICES,2022453239,"45,896"
Department for Work and Pensions,Housing Benefits,14-Sep-11,Housing Benefit Admin,WWG Housing Benefit,WOKINGHAM DISTRICT COUNCIL,2022524303,"45,811"
Department for Work and Pensions,Jobcentre Plus,08-Sep-11,EMPLOYMENT PROGRAMMES,"Pensions, Disability & Carers Service",WORKING LINKS,2022443477,"45,775"
Department for Work and Pensions,Corporate,16-Sep-11,EMPLOYMENT ZONES,GROUP FINANCE,UNIFY CREDIT UNION LTD,2022532095,"45,750"
Department for Work and Pensions,Jobcentre Plus,12-Sep-11,APPS DEV,Jobcentre Plus,HP ENTERPRISE SERVICES UK LTD,2022449797,"45,717"
Department for Work and Pensions,Employment Programmes,07-Sep-11,EP PROVIDER PAYMENT - NON-WORK PROGRAMME,WWEG EMPLOYMENT PROGRAMMES,SERCO LTD,2022432781,"45,711"
Department for Work and Pensions,Housing Benefits,14-Sep-11,Housing Benefit Admin,WWG Housing Benefit,WOKING BOROUGH COUNCIL,2022524302,"45,675"
Department for Work and Pensions,Employment Programmes,07-Sep-11,EP PROVIDER PAYMENT - WORK PROGRAMME,WWEG EMPLOYMENT PROGRAMMES,BEST LTD,2022380602,"45,600"
Department for Work and Pensions,Employment Programmes,12-Sep-11,EP PROVIDER PAYMENT - WORK PROGRAMME,WWEG EMPLOYMENT PROGRAMMES,A4E LTD,2022446785,"45,600"
Department for Work and Pensions,Employment Programmes,12-Sep-11,EP PROVIDER PAYMENT - WORK PROGRAMME,WWEG EMPLOYMENT PROGRAMMES,AVANTA ENTERPRISE LTD,2022446831,"45,600"
Department for Work and Pensions,Housing Benefits,14-Sep-11,Housing Benefit Admin,WWG Housing Benefit,ISLE OF ANGLESEY COUNTY COUNCIL,2022524087,"45,478"
Department for Work and Pensions,Jobcentre Plus,29-Sep-11,EMPLOYMENT PROGRAMMES,"Pensions, Disability & Carers Service",THE INTRAINING GROUP,2022691344,"45,281"
Department for Work and Pensions,Employment Programmes,15-Sep-11,EP PROVIDER PAYMENT - WORK PROGRAMME,WWEG EMPLOYMENT PROGRAMMES,REHAB JOBFIT,2022526826,"45,200"
Department for Work and Pensions,Corporate,30-Sep-11,ACCOMMODATION,GROUP FINANCE,TELEREAL TRILLIUM,2022696615,"45,190"
Department for Work and Pensions,Housing Benefits,14-Sep-11,Housing Benefit Admin,WWG Housing Benefit,TAMWORTH BOROUGH COUNCIL,2022524258,"44,914"
Department for Work and Pensions,Corporate,30-Sep-11,COMPUTER SERVICES,CHANGE MANAGEMENT DIRECTORATE,ACCENTURE,2022693403,"44,866"
Department for Work and Pensions,Housing Benefits,14-Sep-11,Housing Benefit Admin,WWG Housing Benefit,WINCHESTER CITY COUNCIL,2022524299,"44,807"
Department for Work and Pensions,Corporate,08-Sep-11,AOS CONTRACTED OUT SERVICES,Shared Services,IQOR RECOVERY SERVICES LTD,2022441964,"44,757"
Department for Work and Pensions,Corporate,08-Sep-11,PRINTING STATIONERY IT CONSUMABLES,Corporate & Support Services,XEROX UK LTD 3W,2022443482,"44,600"
Department for Work and Pensions,Jobcentre Plus,15-Sep-11,EMPLOYMENT PROGRAMMES,"Pensions, Disability & Carers Service",COMMUNITY  LINKS,2022524705,"44,432"
Department for Work and Pensions,Housing Benefits,14-Sep-11,Housing Benefit Admin,WWG Housing Benefit,EAST NORTHANTS DISTRICT COUNCIL,2022524038,"44,176"
Department for Work and Pensions,Jobcentre Plus,06-Sep-11,EU PROGRAMMES,Jobcentre Plus,PINNACLE PEOPLE,2022372805,"44,080"
Department for Work and Pensions,Jobcentre Plus,05-Sep-11,APPS DEV,Jobcentre Plus,ACCENTURE,2022366397,"44,016"
Department for Work and Pensions,Employment Programmes,01-Sep-11,EP PROVIDER PAYMENT - WORK PROGRAMME,WWEG EMPLOYMENT PROGRAMMES,BEST LTD,2022359681,"44,000"
Department for Work and Pensions,Employment Programmes,20-Sep-11,EP PROVIDER PAYMENT - WORK PROGRAMME,WWEG EMPLOYMENT PROGRAMMES,A4E LTD,2022537151,"44,000"
Department for Work and Pensions,Corporate,30-Sep-11,ACCOMMODATION,GROUP FINANCE,TELEREAL TRILLIUM,2022696618,"43,862"
Department for Work and Pensions,Corporate,30-Sep-11,ACCOMMODATION,GROUP FINANCE,TELEREAL TRILLIUM,2022696615,"43,861"
Department for Work and Pensions,Corporate,08-Sep-11,AOS CONTRACTED OUT SERVICES,Shared Services,CREDIT SOLUTIONS,2022440028,"43,756"
Department for Work and Pensions,Employment Programmes,12-Sep-11,EP PROVIDER PAYMENT - NON-WORK PROGRAMME,WWEG EMPLOYMENT PROGRAMMES,WORKING LINKS,2022451898,"43,546"
Department for Work and Pensions,Housing Benefits,14-Sep-11,Housing Benefit Admin,WWG Housing Benefit,BOSTON BOROUGH COUNCIL,2022523961,"43,363"
Department for Work and Pensions,Jobcentre Plus,02-Sep-11,EMPLOYMENT PROGRAMMES,"Pensions, Disability & Carers Service",SHAW TRUST LTD,2022364697,"43,312"
Department for Work and Pensions,Housing Benefits,14-Sep-11,Housing Benefit Admin,WWG Housing Benefit,FAREHAM BOROUGH COUNCIL,2022524052,"43,228"
Department for Work and Pensions,Employment Programmes,05-Sep-11,EP PROVIDER PAYMENT - WORK PROGRAMME,WWEG EMPLOYMENT PROGRAMMES,INGEUS UK LTD,2022368049,"43,200"
Department for Work and Pensions,Employment Programmes,21-Sep-11,EP PROVIDER PAYMENT - WORK PROGRAMME,WWEG EMPLOYMENT PROGRAMMES,INGEUS UK LTD,2022565140,"43,200"
Department for Work and Pensions,Corporate,07-Sep-11,MANAGEMENT CONSULTANCY,Corporate IT,BRAMBLE CC LTD,2022380619,"43,062"
Department for Work and Pensions,Employment Programmes,05-Sep-11,EP PROVIDER PAYMENT - NON-WORK PROGRAMME,WWEG EMPLOYMENT PROGRAMMES,WORKING LINKS,2022369052,"42,999"
Department for Work and Pensions,Employment Programmes,07-Sep-11,EP PROVIDER PAYMENT - NON-WORK PROGRAMME,WWEG EMPLOYMENT PROGRAMMES,WORKING LINKS,2022437132,"42,999"
Department for Work and Pensions,Employment Programmes,12-Sep-11,EP PROVIDER PAYMENT - WORK PROGRAMME,WWEG EMPLOYMENT PROGRAMMES,MAXIMUS EMPLOYMENT UK LTD,2022450791,"42,800"
Department for Work and Pensions,Employment Programmes,12-Sep-11,EP PROVIDER PAYMENT - WORK PROGRAMME,WWEG EMPLOYMENT PROGRAMMES,SEETEC BUSINESS TECHNOLOGY CENTRE LTD,2022451604,"42,800"
Department for Work and Pensions,Employment Programmes,20-Sep-11,EP PROVIDER PAYMENT - WORK PROGRAMME,WWEG EMPLOYMENT PROGRAMMES,BEST LTD,2022537270,"42,800"
Department for Work and Pensions,Housing Benefits,14-Sep-11,Housing Benefit Admin,WWG Housing Benefit,CEREDIGION COUNTY COUNCIL,2022523986,"42,774"
Department for Work and Pensions,Employment Programmes,13-Sep-11,YOUNG PERSON'S GUARANTEE,WWEG EMPLOYMENT PROGRAMMES,WOLVERHAMPTON CITY COUNCIL,2022457970,"42,750"
Department for Work and Pensions,Employment Programmes,07-Sep-11,YOUNG PERSON'S GUARANTEE,WWEG EMPLOYMENT PROGRAMMES,HASTINGS BOROUGH COUNCIL,2022396841,"42,450"
Department for Work and Pensions,Housing Benefits,14-Sep-11,Housing Benefit Admin,WWG Housing Benefit,THREE RIVERS DISTRICT COUNCIL,2022524267,"42,440"
Department for Work and Pensions,Employment Programmes,07-Sep-11,YOUNG PERSON'S GUARANTEE,WWEG EMPLOYMENT PROGRAMMES,WALSALL METROPOLITAN BOROUGH COUNCIL,2022437119,"42,300"
Department for Work and Pensions,Corporate,29-Sep-11,Office Supplies printing and publicity,CHANGE MANAGEMENT DIRECTORATE,COI TRADING FUND,2022689525,"42,211"
Department for Work and Pensions,Housing Benefits,14-Sep-11,Housing Benefit Admin,WWG Housing Benefit,STAFFORDSHIRE MOORLANDS DISTRICT COUNCIL,2022524243,"42,195"
Department for Work and Pensions,Employment Programmes,20-Sep-11,EP PROVIDER PAYMENT - WORK PROGRAMME,WWEG EMPLOYMENT PROGRAMMES,CAREERS DEVELOPMENT GROUP,2022537522,"42,000"
Department for Work and Pensions,Corporate,22-Sep-11,AOS CONTRACTED OUT SERVICES,Shared Services,EXPERIAN LTD,2022609046,"42,000"
Department for Work and Pensions,Employment Programmes,27-Sep-11,EP PROVIDER PAYMENT - WORK PROGRAMME,WWEG EMPLOYMENT PROGRAMMES,INGEUS UK LTD,2022621967,"42,000"
Department for Work and Pensions,Housing Benefits,14-Sep-11,Housing Benefit Admin,WWG Housing Benefit,TORRIDGE DISTRICT COUNCIL,2022524272,"41,926"
Department for Work and Pensions,Corporate,30-Sep-11,TEMPORARY (TEMP) STAFF COSTS,Corporate IT,CAPITA RESOURCING LTD,2022693655,"41,814"
Department for Work and Pensions,Jobcentre Plus,06-Sep-11,Accommodation Costs,Jobcentre Plus,COPELAND BOROUGH COUNCIL,2022370558,"41,797"
Department for Work and Pensions,Corporate,30-Sep-11,ACCOMMODATION,GROUP FINANCE,TELEREAL TRILLIUM,2022696615,"41,784"
Department for Work and Pensions,Housing Benefits,14-Sep-11,Housing Benefit Admin,WWG Housing Benefit,SOUTH LAKELAND DISTRICT COUNCIL,2022524227,"41,699"
Department for Work and Pensions,Housing Benefits,14-Sep-11,Housing Benefit Admin,WWG Housing Benefit,RUNNYMEDE BOROUGH COUNCIL,2022524200,"41,666"
Department for Work and Pensions,Corporate,12-Sep-11,TEMPORARY (TEMP) STAFF COSTS,GROUP FINANCE,CAPITA RESOURCING LTD,2022447117,"41,567"
Department for Work and Pensions,Housing Benefits,14-Sep-11,Housing Benefit Admin,WWG Housing Benefit,BABERGH DISTRICT COUNCIL,2022523943,"41,488"
Department for Work and Pensions,Corporate,30-Sep-11,ACCOMMODATION,GROUP FINANCE,TELEREAL TRILLIUM,2022696618,"41,442"
Department for Work and Pensions,Corporate,02-Sep-11,COMPUTER SERVICES,Corporate IT,HUTCHISON 3G UK LTD,2022363838,"41,432"
Department for Work and Pensions,Housing Benefits,14-Sep-11,Housing Benefit Admin,WWG Housing Benefit,COTSWOLD DISTRICT COUNCIL,2022524010,"41,367"
Department for Work and Pensions,Employment Programmes,08-Sep-11,YOUNG PERSON'S GUARANTEE,WWEG EMPLOYMENT PROGRAMMES,SWINDON BOROUGH COUNCIL,2022443305,"41,250"
Department for Work and Pensions,Employment Programmes,09-Sep-11,YOUNG PERSON'S GUARANTEE,WWEG EMPLOYMENT PROGRAMMES,DORSET COUNTY COUNCIL,2022445008,"41,250"
Department for Work and Pensions,Corporate,13-Sep-11,AOS CONTRACTED OUT SERVICES,Shared Services,FAIRFAX SOLICITORS LTD,2022455765,"41,177"
Department for Work and Pensions,Employment Programmes,28-Sep-11,YOUNG PERSON'S GUARANTEE,WWEG EMPLOYMENT PROGRAMMES,SWINDON BOROUGH COUNCIL,2022682288,"41,100"
Department for Work and Pensions,Housing Benefits,14-Sep-11,Housing Benefit Admin,WWG Housing Benefit,TEWKESBURY BOROUGH COUNCIL,2022524264,"41,076"
Department for Work and Pensions,Jobcentre Plus,15-Sep-11,EMPLOYMENT PROGRAMMES,"Pensions, Disability & Carers Service",CAREERS DEVELOPMENT GROUP,2022524678,"40,982"
Department for Work and Pensions,Employment Programmes,06-Sep-11,Financial Assets,WWEG EMPLOYMENT PROGRAMMES,THE ENTERPRISE FUND LTD,2022373327,"40,843"
Department for Work and Pensions,Employment Programmes,20-Sep-11,EP PROVIDER PAYMENT - WORK PROGRAMME,WWEG EMPLOYMENT PROGRAMMES,WORKING LINKS,2022541071,"40,800"
Department for Work and Pensions,Employment Programmes,28-Sep-11,EP PROVIDER PAYMENT - WORK PROGRAMME,WWEG EMPLOYMENT PROGRAMMES,INGEUS UK LTD,2022647378,"40,800"
Department for Work and Pensions,European Social Fund,08-Sep-11,ESF Expenditure,WWEG EUROPEAN SOCIAL FUND,SKILLS FUNDING AGENCY,5000000711,"40,781"
Department for Work and Pensions,Employment Programmes,21-Sep-11,YOUNG PERSON'S GUARANTEE,WWEG EMPLOYMENT PROGRAMMES,STOKE ON TRENT CITY COUNCIL,2022600773,"40,752"
Department for Work and Pensions,Housing Benefits,14-Sep-11,Housing Benefit Admin,WWG Housing Benefit,MID DEVON DISTRICT COUNCIL,2022524139,"40,537"
Department for Work and Pensions,Housing Benefits,14-Sep-11,Housing Benefit Admin,WWG Housing Benefit,EAST CAMBRIDGESHIRE DISTRICT COUNCIL,2022524030,"40,444"
Department for Work and Pensions,Housing Benefits,14-Sep-11,Housing Benefit Admin,WWG Housing Benefit,SOUTH DERBYSHIRE DISTRICT COUNCIL,2022524222,"40,436"
Department for Work and Pensions,Employment Programmes,08-Sep-11,EP PROVIDER PAYMENT - WORK PROGRAMME,WWEG EMPLOYMENT PROGRAMMES,WORKING LINKS,2022443478,"40,400"
Department for Work and Pensions,Employment Programmes,23-Sep-11,EP PROVIDER PAYMENT - WORK PROGRAMME,WWEG EMPLOYMENT PROGRAMMES,INGEUS UK LTD,2022613756,"40,400"
Department for Work and Pensions,Corporate,19-Sep-11,COMPUTER SERVICES,Corporate IT,HUTCHISON 3G UK LTD,2022534847,"40,326"
Department for Work and Pensions,Corporate,29-Sep-11,Accommodation Costs,GROUP FINANCE,TRILLIUM DEVELOPMENT HOLDINGS LTD,2022691376,"40,183"
Department for Work and Pensions,Jobcentre Plus,22-Sep-11,EMPLOYMENT PROGRAMMES,"Pensions, Disability & Carers Service",CAREERS DEVELOPMENT GROUP,2022607981,"40,056"
Department for Work and Pensions,Jobcentre Plus,29-Sep-11,EMPLOYMENT PROGRAMMES,"Pensions, Disability & Carers Service",BTCV,2022689394,"40,051"
Department for Work and Pensions,Housing Benefits,14-Sep-11,Housing Benefit Admin,WWG Housing Benefit,RUSHCLIFFE BOROUGH COUNCIL,2022524201,"39,778"
Department for Work and Pensions,Employment Programmes,12-Sep-11,EP PROVIDER PAYMENT - WORK PROGRAMME,WWEG EMPLOYMENT PROGRAMMES,A4E LTD,2022446785,"39,600"
Department for Work and Pensions,Employment Programmes,16-Sep-11,EP PROVIDER PAYMENT - WORK PROGRAMME,WWEG EMPLOYMENT PROGRAMMES,REHAB JOBFIT,2022531773,"39,600"
Department for Work and Pensions,Employment Programmes,20-Sep-11,EP PROVIDER PAYMENT - WORK PROGRAMME,WWEG EMPLOYMENT PROGRAMMES,INGEUS UK LTD,2022539140,"39,600"
Department for Work and Pensions,Employment Programmes,21-Sep-11,EP PROVIDER PAYMENT - WORK PROGRAMME,WWEG EMPLOYMENT PROGRAMMES,A4E LTD,2022547199,"39,600"
Department for Work and Pensions,Employment Programmes,12-Sep-11,RESIDENTIAL TRAINING,WWEG EMPLOYMENT PROGRAMMES,RNIB ROYAL NATIONAL INSTITUTE FOR THE BLIND,2022451315,"39,543"
Department for Work and Pensions,Housing Benefits,14-Sep-11,Housing Benefit Admin,WWG Housing Benefit,CLACKMANNANSHIRE COUNCIL,2022524002,"39,489"
Department for Work and Pensions,Corporate,30-Sep-11,ACCOMMODATION,GROUP FINANCE,TELEREAL TRILLIUM,2022696615,"39,441"
Department for Work and Pensions,Housing Benefits,14-Sep-11,Housing Benefit Admin,WWG Housing Benefit,HAMBLETON DISTRICT COUNCIL,2022524069,"39,421"
Department for Work and Pensions,Jobcentre Plus,13-Sep-11,APPS DEV,Jobcentre Plus,HP ENTERPRISE SERVICES UK LTD,2022455951,"39,238"
Department for Work and Pensions,Corporate,26-Sep-11,TEMPORARY (TEMP) STAFF COSTS,Corporate IT,CAPITA RESOURCING LTD,2022616379,"39,231"
Department for Work and Pensions,Employment Programmes,12-Sep-11,EP PROVIDER PAYMENT - WORK PROGRAMME,WWEG EMPLOYMENT PROGRAMMES,WORKING LINKS,2022451898,"39,200"
Department for Work and Pensions,Employment Programmes,16-Sep-11,EP PROVIDER PAYMENT - WORK PROGRAMME,WWEG EMPLOYMENT PROGRAMMES,INGEUS UK LTD,2022530928,"39,200"
Department for Work and Pensions,Employment Programmes,23-Sep-11,EP PROVIDER PAYMENT - WORK PROGRAMME,WWEG EMPLOYMENT PROGRAMMES,G4S REGIONAL MANAGEMENT UK & I LTD,2022613685,"39,200"
Department for Work and Pensions,Employment Programmes,29-Sep-11,EP PROVIDER PAYMENT - WORK PROGRAMME,WWEG EMPLOYMENT PROGRAMMES,INGEUS UK LTD,2022690138,"39,200"
Department for Work and Pensions,Corporate,13-Sep-11,COMPUTER SERVICES,CHANGE MANAGEMENT DIRECTORATE,HP ENTERPRISE SERVICES UK LTD,2022455951,"38,846"
Department for Work and Pensions,Employment Programmes,14-Sep-11,EP PROVIDER PAYMENT - WORK PROGRAMME,WWEG EMPLOYMENT PROGRAMMES,SEETEC BUSINESS TECHNOLOGY CENTRE LTD,2022517232,"38,800"
Department for Work and Pensions,Employment Programmes,23-Sep-11,EP PROVIDER PAYMENT - WORK PROGRAMME,WWEG EMPLOYMENT PROGRAMMES,JHP GROUP LTD,2022613918,"38,800"
Department for Work and Pensions,Employment Programmes,07-Sep-11,EP PROVIDER PAYMENT - NON-WORK PROGRAMME,WWEG EMPLOYMENT PROGRAMMES,A4E LTD,2022379472,"38,610"
Department for Work and Pensions,Employment Programmes,15-Sep-11,YOUNG PERSON'S GUARANTEE,WWEG EMPLOYMENT PROGRAMMES,HARTLEPOOL BOROUGH COUNCIL,2022526002,"38,550"
Department for Work and Pensions,Housing Benefits,14-Sep-11,Housing Benefit Admin,WWG Housing Benefit,MID SUFFOLK DISTRICT COUNCIL,2022524140,"38,488"
Department for Work and Pensions,Employment Programmes,08-Sep-11,EP PROVIDER PAYMENT - WORK PROGRAMME,WWEG EMPLOYMENT PROGRAMMES,INGEUS UK LTD,2022441960,"38,400"
Department for Work and Pensions,Employment Programmes,14-Sep-11,EP PROVIDER PAYMENT - WORK PROGRAMME,WWEG EMPLOYMENT PROGRAMMES,INGEUS UK LTD,2022481794,"38,400"
Department for Work and Pensions,Jobcentre Plus,02-Sep-11,EMPLOYMENT PROGRAMMES,"Pensions, Disability & Carers Service",SEETEC,2022364685,"38,379"
Department for Work and Pensions,Housing Benefits,14-Sep-11,Housing Benefit Admin,WWG Housing Benefit,EAST DORSET DISTRICT COUNCIL,2022524032,"38,262"
Department for Work and Pensions,Employment Programmes,06-Sep-11,EP PROVIDER PAYMENT - NON-WORK PROGRAMME,WWEG EMPLOYMENT PROGRAMMES,SERCO LTD,2022373181,"38,212"
Department for Work and Pensions,Employment Programmes,05-Sep-11,YOUNG PERSON'S GUARANTEE,WWEG EMPLOYMENT PROGRAMMES,WEST DUNBARTONSHIRE COUNCIL,2022369042,"38,090"
Department for Work and Pensions,Employment Programmes,01-Sep-11,EP PROVIDER PAYMENT - WORK PROGRAMME,WWEG EMPLOYMENT PROGRAMMES,WORKING LINKS,2022361899,"38,000"
Department for Work and Pensions,Employment Programmes,05-Sep-11,EP PROVIDER PAYMENT - WORK PROGRAMME,WWEG EMPLOYMENT PROGRAMMES,WORKING LINKS,2022369052,"38,000"
Department for Work and Pensions,Employment Programmes,22-Sep-11,EP PROVIDER PAYMENT - WORK PROGRAMME,WWEG EMPLOYMENT PROGRAMMES,BEST LTD,2022607853,"38,000"
Department for Work and Pensions,Employment Programmes,08-Sep-11,YOUNG PERSON'S GUARANTEE,WWEG EMPLOYMENT PROGRAMMES,WOLSELEY COMMUNITY ECONOMIC DEVELOPMENT TRUST,2022443475,"37,970"
Department for Work and Pensions,Housing Benefits,14-Sep-11,Housing Benefit Admin,WWG Housing Benefit,FYLDE BOROUGH COUNCIL,2022524058,"37,921"
Department for Work and Pensions,Corporate,14-Sep-11,STAFF COSTS,Corporate & Support Services,FLETCHER CONSULTANCY,2022478001,"37,860"
Department for Work and Pensions,Housing Benefits,14-Sep-11,Housing Benefit Admin,WWG Housing Benefit,SELBY DISTRICT COUNCIL,2022524211,"37,652"
Department for Work and Pensions,Employment Programmes,08-Sep-11,YOUNG PERSON'S GUARANTEE,WWEG EMPLOYMENT PROGRAMMES,SHROPSHIRE COUNCIL,2022443287,"37,650"
Department for Work and Pensions,Employment Programmes,07-Sep-11,EP PROVIDER PAYMENT - NON-WORK PROGRAMME,WWEG EMPLOYMENT PROGRAMMES,SERCO LTD,2022432781,"37,638"
Department for Work and Pensions,Employment Programmes,02-Sep-11,EP PROVIDER PAYMENT - NON-WORK PROGRAMME,WWEG EMPLOYMENT PROGRAMMES,MAXIMUS EMPLOYMENT UK LTD,2022364303,"37,609"
Department for Work and Pensions,Employment Programmes,01-Sep-11,EP PROVIDER PAYMENT - WORK PROGRAMME,WWEG EMPLOYMENT PROGRAMMES,INGEUS UK LTD,2022361089,"37,600"
Department for Work and Pensions,Employment Programmes,15-Sep-11,EP PROVIDER PAYMENT - WORK PROGRAMME,WWEG EMPLOYMENT PROGRAMMES,INGEUS UK LTD,2022526034,"37,600"
Department for Work and Pensions,Employment Programmes,21-Sep-11,EP PROVIDER PAYMENT - WORK PROGRAMME,WWEG EMPLOYMENT PROGRAMMES,INGEUS UK LTD,2022565140,"37,600"
Department for Work and Pensions,Employment Programmes,12-Sep-11,YOUNG PERSON'S GUARANTEE,WWEG EMPLOYMENT PROGRAMMES,SOLIHULL METROPOLITAN BOROUGH COUNCIL,2022451633,"37,500"
Department for Work and Pensions,Jobcentre Plus,02-Sep-11,EMPLOYMENT PROGRAMMES,"Pensions, Disability & Carers Service",BTCV ENTERPRISES LTD,2022363115,"37,476"
Department for Work and Pensions,Jobcentre Plus,12-Sep-11,APPS DEV,Jobcentre Plus,HP ENTERPRISE SERVICES UK LTD,2022449797,"37,453"
Department for Work and Pensions,Employment Programmes,07-Sep-11,EP PROVIDER PAYMENT - NON-WORK PROGRAMME,WWEG EMPLOYMENT PROGRAMMES,SERCO LTD,2022432781,"37,375"
Department for Work and Pensions,Jobcentre Plus,08-Sep-11,EMPLOYMENT PROGRAMMES,"Pensions, Disability & Carers Service",SCVO,2022443279,"37,274"
Department for Work and Pensions,Housing Benefits,14-Sep-11,Housing Benefit Admin,WWG Housing Benefit,CHILTERN DISTRICT COUNCIL,2022523995,"37,274"
Department for Work and Pensions,Employment Programmes,13-Sep-11,EP PROVIDER PAYMENT - WORK PROGRAMME,WWEG EMPLOYMENT PROGRAMMES,REHAB JOBFIT,2022457358,"37,200"
Department for Work and Pensions,Employment Programmes,15-Sep-11,EP PROVIDER PAYMENT - WORK PROGRAMME,WWEG EMPLOYMENT PROGRAMMES,INGEUS UK LTD,2022526034,"37,200"
Department for Work and Pensions,Employment Programmes,22-Sep-11,EP PROVIDER PAYMENT - WORK PROGRAMME,WWEG EMPLOYMENT PROGRAMMES,INGEUS UK LTD,2022609195,"37,200"
Department for Work and Pensions,Housing Benefits,14-Sep-11,Housing Benefit Admin,WWG Housing Benefit,ROCHFORD DISTRICT COUNCIL,2022524194,"36,812"
Department for Work and Pensions,Employment Programmes,16-Sep-11,EP PROVIDER PAYMENT - WORK PROGRAMME,WWEG EMPLOYMENT PROGRAMMES,INGEUS UK LTD,2022530928,"36,800"
Department for Work and Pensions,Employment Programmes,05-Sep-11,EP PROVIDER PAYMENT - NON-WORK PROGRAMME,WWEG EMPLOYMENT PROGRAMMES,SERCO LTD,2022368893,"36,720"
Department for Work and Pensions,"Pension, Disability Carers Services",14-Sep-11,Accommodation Costs,"Pensions, Disability & Carers Service",SOUTHERN ELECTRIC PLC,2022517294,"36,667"
Department for Work and Pensions,Employment Programmes,30-Sep-11,EP PROVIDER PAYMENT - WORK PROGRAMME,WWEG EMPLOYMENT PROGRAMMES,BEST LTD,2022693484,"36,400"
Department for Work and Pensions,Employment Programmes,30-Sep-11,EP PROVIDER PAYMENT - WORK PROGRAMME,WWEG EMPLOYMENT PROGRAMMES,INGEUS UK LTD,2022695169,"36,400"
Department for Work and Pensions,Housing Benefits,14-Sep-11,Housing Benefit Admin,WWG Housing Benefit,BROMSGROVE DISTRICT COUNCIL,2022523972,"36,360"
Department for Work and Pensions,Corporate,26-Sep-11,TEMPORARY (TEMP) STAFF COSTS,Corporate IT,CAPITA RESOURCING LTD,2022616379,"36,337"
Department for Work and Pensions,Housing Benefits,14-Sep-11,Housing Benefit Admin,WWG Housing Benefit,BLABY DISTRICT COUNCIL,2022523952,"36,318"
Department for Work and Pensions,Employment Programmes,16-Sep-11,ACCESS TO WORK,WWEG EMPLOYMENT PROGRAMMES,SCOUT ENTERPRISES WESTERN LTD,2022531969,"36,165"
Department for Work and Pensions,Jobcentre Plus,02-Sep-11,EMPLOYMENT PROGRAMMES,"Pensions, Disability & Carers Service",INGEUS UK LTD,2022363860,"36,113"
Department for Work and Pensions,Jobcentre Plus,08-Sep-11,EMPLOYMENT PROGRAMMES,"Pensions, Disability & Carers Service",BIRMINGHAM CHAMBER TRAINING,2022439810,"36,070"
Department for Work and Pensions,Housing Benefits,14-Sep-11,Housing Benefit Admin,WWG Housing Benefit,ADUR DISTRICT COUNCIL,2022523934,"36,057"
Department for Work and Pensions,Housing Benefits,14-Sep-11,Housing Benefit Admin,WWG Housing Benefit,MALVERN HILLS DISTRICT COUNCIL,2022524132,"35,954"
Department for Work and Pensions,Corporate,13-Sep-11,APPS DEV,Corporate & Support Services,HP ENTERPRISE SERVICES UK LTD,2022455951,"35,921"
Department for Work and Pensions,Jobcentre Plus,29-Sep-11,EMPLOYMENT PROGRAMMES,"Pensions, Disability & Carers Service",TNG LTD,2022691367,"35,901"
Department for Work and Pensions,Jobcentre Plus,01-Sep-11,OTHER GOODS AND SERVICES,Jobcentre Plus,VALUATION OFFICE AGENCY,2022361845,"35,880"
Department for Work and Pensions,Corporate,29-Sep-11,Office Supplies printing and publicity,UNIVERSAL CREDIT,COI TRADING FUND,2022689525,"35,813"
Department for Work and Pensions,Employment Programmes,01-Sep-11,YOUNG PERSON'S GUARANTEE,WWEG EMPLOYMENT PROGRAMMES,NORTH LINCOLNSHIRE COUNCIL,2022361504,"35,700"
Department for Work and Pensions,Employment Programmes,06-Sep-11,EP PROVIDER PAYMENT - WORK PROGRAMME,WWEG EMPLOYMENT PROGRAMMES,WORKING LINKS,2022373434,"35,600"
Department for Work and Pensions,Employment Programmes,19-Sep-11,EP PROVIDER PAYMENT - WORK PROGRAMME,WWEG EMPLOYMENT PROGRAMMES,INGEUS UK LTD,2022534874,"35,600"
Department for Work and Pensions,Corporate,07-Sep-11,IS/IT,CHANGE MANAGEMENT DIRECTORATE,COMPUTACENTER UK LTD,2022385374,"35,559"
Department for Work and Pensions,Employment Programmes,26-Sep-11,YOUNG PERSON'S GUARANTEE,WWEG EMPLOYMENT PROGRAMMES,SWINDON BOROUGH COUNCIL,2022618477,"35,550"
Department for Work and Pensions,Corporate,30-Sep-11,ACCOMMODATION,Shared Services,TELEREAL TRILLIUM,2022696618,"35,505"
Department for Work and Pensions,Housing Benefits,14-Sep-11,Housing Benefit Admin,WWG Housing Benefit,EAST RENFREWSHIRE COUNCIL,2022524039,"35,320"
Department for Work and Pensions,Employment Programmes,07-Sep-11,EP PROVIDER PAYMENT - NON-WORK PROGRAMME,WWEG EMPLOYMENT PROGRAMMES,INGEUS UK LTD,2022397327,"35,282"
Department for Work and Pensions,Employment Programmes,07-Sep-11,EP PROVIDER PAYMENT - WORK PROGRAMME,WWEG EMPLOYMENT PROGRAMMES,A4E LTD,2022379472,"35,200"
Department for Work and Pensions,Employment Programmes,23-Sep-11,EP PROVIDER PAYMENT - WORK PROGRAMME,WWEG EMPLOYMENT PROGRAMMES,BEST LTD,2022612074,"35,200"
Department for Work and Pensions,Housing Benefits,14-Sep-11,Housing Benefit Admin,WWG Housing Benefit,DAVENTRY DISTRICT COUNCIL,2022524019,"34,956"
Department for Work and Pensions,Employment Programmes,16-Sep-11,YOUNG PERSON'S GUARANTEE,WWEG EMPLOYMENT PROGRAMMES,CARDIFF CITY COUNCIL,2022533044,"34,800"
Department for Work and Pensions,Employment Programmes,22-Sep-11,EP PROVIDER PAYMENT - WORK PROGRAMME,WWEG EMPLOYMENT PROGRAMMES,INGEUS UK LTD,2022609195,"34,800"
Department for Work and Pensions,Employment Programmes,06-Sep-11,EP PROVIDER PAYMENT - NON-WORK PROGRAMME,WWEG EMPLOYMENT PROGRAMMES,SERCO LTD,2022373181,"34,755"
Department for Work and Pensions,Employment Programmes,07-Sep-11,EP PROVIDER PAYMENT - NON-WORK PROGRAMME,WWEG EMPLOYMENT PROGRAMMES,SERCO LTD,2022432781,"34,755"
Department for Work and Pensions,Housing Benefits,14-Sep-11,Housing Benefit Admin,WWG Housing Benefit,MOLE VALLEY DISTRICT COUNCIL,2022524145,"34,684"
Department for Work and Pensions,Corporate,16-Sep-11,COMPUTER SERVICES,Corporate IT,HP ENTERPRISE SERVICES UK LTD,2022530910,"34,667"
Department for Work and Pensions,Housing Benefits,14-Sep-11,Housing Benefit Admin,WWG Housing Benefit,NORTH WARWICKSHIRE DISTRICT COUNCIL,2022524165,"34,654"
Department for Work and Pensions,Employment Programmes,09-Sep-11,YOUNG PERSON'S GUARANTEE,WWEG EMPLOYMENT PROGRAMMES,PROJECT SCOTLAND,2022445568,"34,650"
Department for Work and Pensions,"Pension, Disability Carers Services",19-Sep-11,POSTAGE,"Pensions, Disability & Carers Service",TNT UK LTD,2022535934,"34,567"
Department for Work and Pensions,Jobcentre Plus,29-Sep-11,JOBCENTRE PLUS PATHWAYS TO WORK,Jobcentre Plus,PERTEMPS PEOPLE DEVELOPMENT GROUP,2022690949,"34,469"
Department for Work and Pensions,Jobcentre Plus,08-Sep-11,EMPLOYMENT PROGRAMMES,"Pensions, Disability & Carers Service",YMCA TRAINING LTD,2022443489,"34,436"
Department for Work and Pensions,Employment Programmes,21-Sep-11,EP PROVIDER PAYMENT - WORK PROGRAMME,WWEG EMPLOYMENT PROGRAMMES,NEWCASTLE COLLEGE GROUP,2022588485,"34,400"
Department for Work and Pensions,Jobcentre Plus,22-Sep-11,EMPLOYMENT PROGRAMMES,"Pensions, Disability & Carers Service",TNG BUSINESS SUPPORT LTD.,2022610199,"34,275"
Department for Work and Pensions,"Pension, Disability Carers Services",23-Sep-11,COMPUTER SERVICES,"Pensions, Disability & Carers Service",ATOS ORIGIN IT SERVICES UK LTD,2022612030,"34,222"
Department for Work and Pensions,Housing Benefits,14-Sep-11,Housing Benefit Admin,WWG Housing Benefit,FOREST HEATH DISTRICT COUNCIL,2022524056,"34,169"
Department for Work and Pensions,Employment Programmes,14-Sep-11,ACCESS TO WORK,WWEG EMPLOYMENT PROGRAMMES,DISABILITY RESOURCE CENTRE,2022473614,"34,070"
Department for Work and Pensions,Employment Programmes,14-Sep-11,EP PROVIDER PAYMENT - WORK PROGRAMME,WWEG EMPLOYMENT PROGRAMMES,BEST LTD,2022465051,"34,000"
Department for Work and Pensions,Employment Programmes,23-Sep-11,EP PROVIDER PAYMENT - WORK PROGRAMME,WWEG EMPLOYMENT PROGRAMMES,INGEUS UK LTD,2022613756,"34,000"
Department for Work and Pensions,Jobcentre Plus,02-Sep-11,EMPLOYMENT PROGRAMMES,"Pensions, Disability & Carers Service",SCVO,2022364682,"33,892"
Department for Work and Pensions,Corporate,30-Sep-11,ACCOMMODATION,GROUP FINANCE,TELEREAL TRILLIUM,2022696618,"33,641"
Department for Work and Pensions,Employment Programmes,12-Sep-11,EP PROVIDER PAYMENT - NON-WORK PROGRAMME,WWEG EMPLOYMENT PROGRAMMES,REED IN PARTNERSHIP,2022451294,"33,629"
Department for Work and Pensions,Housing Benefits,14-Sep-11,Housing Benefit Admin,WWG Housing Benefit,TANDRIDGE DISTRICT COUNCIL,2022524259,"33,605"
Department for Work and Pensions,Employment Programmes,19-Sep-11,EP PROVIDER PAYMENT - WORK PROGRAMME,WWEG EMPLOYMENT PROGRAMMES,INGEUS UK LTD,2022534874,"33,600"
Department for Work and Pensions,Employment Programmes,28-Sep-11,YOUNG PERSON'S GUARANTEE,WWEG EMPLOYMENT PROGRAMMES,THE NATIONAL TRUST,2022684897,"33,600"
Department for Work and Pensions,Corporate,12-Sep-11,APPS DEV,CHANGE MANAGEMENT DIRECTORATE,HP ENTERPRISE SERVICES UK LTD,2022449797,"33,546"
Department for Work and Pensions,Employment Programmes,05-Sep-11,EP PROVIDER PAYMENT - NON-WORK PROGRAMME,WWEG EMPLOYMENT PROGRAMMES,A4E LTD,2022366393,"33,449"
Department for Work and Pensions,Employment Programmes,07-Sep-11,EP PROVIDER PAYMENT - NON-WORK PROGRAMME,WWEG EMPLOYMENT PROGRAMMES,MAXIMUS EMPLOYMENT UK LTD,2022418047,"33,434"
Department for Work and Pensions,Jobcentre Plus,13-Sep-11,APPS DEV,Jobcentre Plus,HP ENTERPRISE SERVICES UK LTD,2022455951,"33,377"
Department for Work and Pensions,Housing Benefits,14-Sep-11,Housing Benefit Admin,WWG Housing Benefit,SURREY HEATH BOROUGH COUNCIL,2022524253,"33,368"
Department for Work and Pensions,Employment Programmes,22-Sep-11,YOUNG PERSON'S GUARANTEE,WWEG EMPLOYMENT PROGRAMMES,SOLIHULL METROPOLITAN BOROUGH COUNCIL,2022610112,"33,300"
Department for Work and Pensions,Corporate,16-Sep-11,TEMPORARY (TEMP) STAFF COSTS,Corporate IT,CAPITA RESOURCING LTD,2022529065,"33,268"
Department for Work and Pensions,Corporate,16-Sep-11,APPS DEV,Corporate IT,HP ENTERPRISE SERVICES UK LTD,2022530910,"33,239"
Department for Work and Pensions,Corporate,12-Sep-11,STAFF COSTS,Corporate & Support Services,PREMIER PARTNERSHIP,2022451129,"32,997"
Department for Work and Pensions,Employment Programmes,07-Sep-11,EP PROVIDER PAYMENT - NON-WORK PROGRAMME,WWEG EMPLOYMENT PROGRAMMES,THE WISE GROUP,2022435506,"32,980"
Department for Work and Pensions,Employment Programmes,12-Sep-11,JSP ESF DEL P COSTS,WWEG EMPLOYMENT PROGRAMMES,WORKING LINKS,2022451898,"32,934"
Department for Work and Pensions,Jobcentre Plus,13-Sep-11,APPS DEV,Jobcentre Plus,HP ENTERPRISE SERVICES UK LTD,2022455951,"32,882"
Department for Work and Pensions,Employment Programmes,01-Sep-11,EP PROVIDER PAYMENT - WORK PROGRAMME,WWEG EMPLOYMENT PROGRAMMES,INGEUS UK LTD,2022361089,"32,800"
Department for Work and Pensions,Employment Programmes,21-Sep-11,EP PROVIDER PAYMENT - WORK PROGRAMME,WWEG EMPLOYMENT PROGRAMMES,BEST LTD,2022548343,"32,800"
Department for Work and Pensions,Employment Programmes,21-Sep-11,EP PROVIDER PAYMENT - WORK PROGRAMME,WWEG EMPLOYMENT PROGRAMMES,G4S REGIONAL MANAGEMENT UK & I LTD,2022562999,"32,800"
Department for Work and Pensions,Employment Programmes,22-Sep-11,EP PROVIDER PAYMENT - WORK PROGRAMME,WWEG EMPLOYMENT PROGRAMMES,A4E LTD,2022607792,"32,800"
Department for Work and Pensions,Employment Programmes,22-Sep-11,EP PROVIDER PAYMENT - WORK PROGRAMME,WWEG EMPLOYMENT PROGRAMMES,INGEUS UK LTD,2022609195,"32,800"
Department for Work and Pensions,Employment Programmes,26-Sep-11,EP PROVIDER PAYMENT - WORK PROGRAMME,WWEG EMPLOYMENT PROGRAMMES,INGEUS UK LTD,2022617586,"32,800"
Department for Work and Pensions,Employment Programmes,28-Sep-11,EP PROVIDER PAYMENT - WORK PROGRAMME,WWEG EMPLOYMENT PROGRAMMES,INGEUS UK LTD,2022647378,"32,800"
Department for Work and Pensions,Employment Programmes,07-Sep-11,EP PROVIDER PAYMENT - NON-WORK PROGRAMME,WWEG EMPLOYMENT PROGRAMMES,WORKING LINKS,2022437132,"32,739"
Department for Work and Pensions,Housing Benefits,14-Sep-11,Housing Benefit Admin,WWG Housing Benefit,BRENTWOOD DISTRICT COUNCIL,2022523967,"32,562"
Department for Work and Pensions,Jobcentre Plus,02-Sep-11,EMPLOYMENT PROGRAMMES,"Pensions, Disability & Carers Service",WORKING LINKS,2022364870,"32,357"
Department for Work and Pensions,Jobcentre Plus,12-Sep-11,APPS DEV,Jobcentre Plus,HP ENTERPRISE SERVICES UK LTD,2022449797,"32,326"
Department for Work and Pensions,Corporate,26-Sep-11,TEMPORARY (TEMP) STAFF COSTS,Corporate IT,CAPITA RESOURCING LTD,2022616379,"32,157"
Department for Work and Pensions,Corporate,12-Sep-11,TEMPORARY (TEMP) STAFF COSTS,Corporate IT,CAPITA RESOURCING LTD,2022447117,"32,033"
Department for Work and Pensions,Employment Programmes,07-Sep-11,EP PROVIDER PAYMENT - WORK PROGRAMME,WWEG EMPLOYMENT PROGRAMMES,G4S REGIONAL MANAGEMENT UK & I LTD,2022395242,"32,000"
Department for Work and Pensions,Employment Programmes,16-Sep-11,EP PROVIDER PAYMENT - WORK PROGRAMME,WWEG EMPLOYMENT PROGRAMMES,INGEUS UK LTD,2022530928,"32,000"
Department for Work and Pensions,Employment Programmes,05-Sep-11,EP PROVIDER PAYMENT - NON-WORK PROGRAMME,WWEG EMPLOYMENT PROGRAMMES,SKILLS TRAINING UK LIMITED,2022368906,"31,996"
Department for Work and Pensions,Corporate,30-Sep-11,TEMPORARY (TEMP) STAFF COSTS,Corporate IT,CAPITA RESOURCING LTD,2022693655,"31,984"
Department for Work and Pensions,Corporate,13-Sep-11,MISCELLANEOUS EXPENDITURE,EG SUMMARY,ECORYS,2022455705,"31,822"
Department for Work and Pensions,Jobcentre Plus,08-Sep-11,EMPLOYMENT PROGRAMMES,"Pensions, Disability & Carers Service",CAREERS DEVELOPMENT GROUP,2022439989,"31,766"
Department for Work and Pensions,Housing Benefits,14-Sep-11,Housing Benefit Admin,WWG Housing Benefit,MALDON DISTRICT COUNCIL,2022524131,"31,728"
Department for Work and Pensions,Jobcentre Plus,02-Sep-11,EMPLOYMENT PROGRAMMES,"Pensions, Disability & Carers Service",CLAVERHOUSE GROUP,2022363229,"31,700"
Department for Work and Pensions,Employment Programmes,06-Sep-11,EP PROVIDER PAYMENT - NON-WORK PROGRAMME,WWEG EMPLOYMENT PROGRAMMES,SKILLS TRAINING UK LIMITED,2022373197,"31,643"
Department for Work and Pensions,Employment Programmes,05-Sep-11,EP PROVIDER PAYMENT - WORK PROGRAMME,WWEG EMPLOYMENT PROGRAMMES,A4E LTD,2022366393,"31,600"
Department for Work and Pensions,Employment Programmes,12-Sep-11,EP PROVIDER PAYMENT - WORK PROGRAMME,WWEG EMPLOYMENT PROGRAMMES,SEETEC BUSINESS TECHNOLOGY CENTRE LTD,2022451604,"31,600"
Department for Work and Pensions,Employment Programmes,21-Sep-11,EP PROVIDER PAYMENT - WORK PROGRAMME,WWEG EMPLOYMENT PROGRAMMES,INGEUS UK LTD,2022565140,"31,600"
Department for Work and Pensions,Employment Programmes,22-Sep-11,EP PROVIDER PAYMENT - WORK PROGRAMME,WWEG EMPLOYMENT PROGRAMMES,A4E LTD,2022607792,"31,600"
Department for Work and Pensions,Housing Benefits,14-Sep-11,Housing Benefit Admin,WWG Housing Benefit,NORTH DORSET DISTRICT COUNCIL,2022524155,"31,530"
Department for Work and Pensions,"Pension, Disability Carers Services",02-Sep-11,COMPUTER SERVICES,"Pensions, Disability & Carers Service",ACCENTURE,2022363026,"31,355"
Department for Work and Pensions,Employment Programmes,07-Sep-11,EP PROVIDER PAYMENT - WORK PROGRAMME,WWEG EMPLOYMENT PROGRAMMES,G4S REGIONAL MANAGEMENT UK & I LTD,2022395242,"31,200"
Department for Work and Pensions,Employment Programmes,12-Sep-11,EP PROVIDER PAYMENT - WORK PROGRAMME,WWEG EMPLOYMENT PROGRAMMES,AVANTA ENTERPRISE LTD,2022446831,"31,200"
Department for Work and Pensions,Employment Programmes,19-Sep-11,EP PROVIDER PAYMENT - WORK PROGRAMME,WWEG EMPLOYMENT PROGRAMMES,INGEUS UK LTD,2022534874,"31,200"
Department for Work and Pensions,Employment Programmes,20-Sep-11,EP PROVIDER PAYMENT - WORK PROGRAMME,WWEG EMPLOYMENT PROGRAMMES,A4E LTD,2022537151,"31,200"
Department for Work and Pensions,Employment Programmes,27-Sep-11,EP PROVIDER PAYMENT - WORK PROGRAMME,WWEG EMPLOYMENT PROGRAMMES,A4E LTD,2022619713,"31,200"
Department for Work and Pensions,Employment Programmes,27-Sep-11,EP PROVIDER PAYMENT - WORK PROGRAMME,WWEG EMPLOYMENT PROGRAMMES,BEST LTD,2022619828,"31,200"
Department for Work and Pensions,Employment Programmes,30-Sep-11,EP PROVIDER PAYMENT - WORK PROGRAMME,WWEG EMPLOYMENT PROGRAMMES,JHP GROUP LTD,2022695379,"31,200"
Department for Work and Pensions,Corporate,05-Sep-11,TEMPORARY (TEMP) STAFF COSTS,Corporate IT,CAPITA RESOURCING LTD,2022366574,"31,190"
Department for Work and Pensions,Jobcentre Plus,23-Sep-11,EU PROGRAMMES,Jobcentre Plus,NORTH EAST OF ENGLAND BIC,2022614341,"31,086"
Department for Work and Pensions,Employment Programmes,29-Sep-11,YOUNG PERSON'S GUARANTEE,WWEG EMPLOYMENT PROGRAMMES,COVENTRY CITY COUNCIL,2022689531,"31,050"
Department for Work and Pensions,Corporate,23-Sep-11,AOS CONTRACTED OUT SERVICES,Corporate & Support Services,COI TRADING FUND,2022612222,"31,018"
Department for Work and Pensions,Housing Benefits,14-Sep-11,Housing Benefit Admin,WWG Housing Benefit,EPSOM & EWELL BOROUGH COUNCIL,2022524048,"30,963"
Department for Work and Pensions,Corporate,30-Sep-11,ACCOMMODATION,GROUP FINANCE,TELEREAL TRILLIUM,2022696617,"30,957"
Department for Work and Pensions,Jobcentre Plus,20-Sep-11,EU PROGRAMMES,Jobcentre Plus,GATESHEAD COUNCIL,2022538994,"30,831"
Department for Work and Pensions,Employment Programmes,06-Sep-11,EP PROVIDER PAYMENT - WORK PROGRAMME,WWEG EMPLOYMENT PROGRAMMES,INGEUS UK LTD,2022371976,"30,800"
Department for Work and Pensions,Employment Programmes,13-Sep-11,EP PROVIDER PAYMENT - WORK PROGRAMME,WWEG EMPLOYMENT PROGRAMMES,A4E LTD,2022453125,"30,800"
Department for Work and Pensions,Employment Programmes,19-Sep-11,EP PROVIDER PAYMENT - WORK PROGRAMME,WWEG EMPLOYMENT PROGRAMMES,A4E LTD,2022533223,"30,800"
Department for Work and Pensions,Employment Programmes,30-Sep-11,EP PROVIDER PAYMENT - WORK PROGRAMME,WWEG EMPLOYMENT PROGRAMMES,INGEUS UK LTD,2022695169,"30,800"
Department for Work and Pensions,"Pension, Disability Carers Services",06-Sep-11,MISCELLANEOUS EXPENDITURE,"Pensions, Disability & Carers Service",GFK NOP LTD,2022371852,"30,781"
Department for Work and Pensions,Corporate,29-Sep-11,MANAGEMENT CONSULTANCY,Corporate IT,BRAMBLE CC LTD,2022689383,"30,716"
Department for Work and Pensions,"Pension, Disability Carers Services",26-Sep-11,IS/IT,"Pensions, Disability & Carers Service",SPECIALIST COMPUTER CENTRES PLC,2022618460,"30,702"
Department for Work and Pensions,Jobcentre Plus,22-Sep-11,OTHER GOODS AND SERVICES,Jobcentre Plus,VALUATION OFFICE AGENCY,2022610235,"30,700"
Department for Work and Pensions,Jobcentre Plus,23-Sep-11,EU PROGRAMMES,Jobcentre Plus,BLACK COUNTRY CHAMBER OF COMMERCE,2022612080,"30,678"
Department for Work and Pensions,Jobcentre Plus,26-Sep-11,EU PROGRAMMES,Jobcentre Plus,BLACK COUNTRY CHAMBER OF COMMERCE,2022616247,"30,678"
Department for Work and Pensions,Corporate,05-Sep-11,TEMPORARY (TEMP) STAFF COSTS,Corporate IT,CAPITA RESOURCING LTD,2022366574,"30,437"
Department for Work and Pensions,Employment Programmes,13-Sep-11,EP PROVIDER PAYMENT - WORK PROGRAMME,WWEG EMPLOYMENT PROGRAMMES,INGEUS UK LTD,2022455999,"30,400"
Department for Work and Pensions,Employment Programmes,16-Sep-11,EP PROVIDER PAYMENT - WORK PROGRAMME,WWEG EMPLOYMENT PROGRAMMES,SEETEC BUSINESS TECHNOLOGY CENTRE LTD,2022531974,"30,400"
Department for Work and Pensions,Corporate,15-Sep-11,STAFF COSTS,Corporate & Support Services,ASE CORPORATE EYECARE LTD,2022524496,"30,344"
Department for Work and Pensions,Corporate,27-Sep-11,TELEPHONE AND POSTAGE,GROUP FINANCE,POST OFFICE LTD,2022623226,"30,200"
Department for Work and Pensions,Employment Programmes,06-Sep-11,EP PROVIDER PAYMENT - WORK PROGRAMME,WWEG EMPLOYMENT PROGRAMMES,INGEUS UK LTD,2022371976,"30,000"
Department for Work and Pensions,Employment Programmes,07-Sep-11,EP PROVIDER PAYMENT - WORK PROGRAMME,WWEG EMPLOYMENT PROGRAMMES,INGEUS UK LTD,2022397327,"30,000"
Department for Work and Pensions,Corporate,14-Sep-11,BANKING AND ENCASHMENT COSTS,GROUP FINANCE,CITIBANK GLOBAL CORPORATE BANKING,2022469753,"30,000"
Department for Work and Pensions,Corporate,20-Sep-11,MISCELLANEOUS EXPENDITURE,Corporate & Support Services,NATCEN,2022540144,"30,000"
Department for Work and Pensions,Corporate,20-Sep-11,MISCELLANEOUS EXPENDITURE,EG SUMMARY,NATCEN,2022540144,"29,965"
Department for Work and Pensions,Employment Programmes,07-Sep-11,EP PROVIDER PAYMENT - NON-WORK PROGRAMME,WWEG EMPLOYMENT PROGRAMMES,CALDER UK LTD,2022385321,"29,938"
Department for Work and Pensions,Corporate,30-Sep-11,ACCOMMODATION,GROUP FINANCE,TELEREAL TRILLIUM,2022696615,"29,938"
Department for Work and Pensions,Corporate,12-Sep-11,TEMPORARY (TEMP) STAFF COSTS,Corporate IT,CAPITA RESOURCING LTD,2022447117,"29,922"
Department for Work and Pensions,Jobcentre Plus,22-Sep-11,CONTRACTED OUT SERVICES,Jobcentre Plus,CAPITA BUSINESS SERVICES LTD,2022607977,"29,827"
Department for Work and Pensions,Jobcentre Plus,06-Sep-11,ACCOMMODATION COSTS,Jobcentre Plus,TELEREAL TRILLIUM,2022373326,"29,745"
Department for Work and Pensions,Employment Programmes,29-Sep-11,YOUNG PERSON'S GUARANTEE,WWEG EMPLOYMENT PROGRAMMES,CARMARTHENSHIRE COUNTY COUNCIL,2022691524,"29,700"
Department for Work and Pensions,Corporate,13-Sep-11,COMPUTER SERVICES,CHANGE MANAGEMENT DIRECTORATE,BT GLOBAL SERVICES,2022453239,"29,675"
Department for Work and Pensions,Employment Programmes,12-Sep-11,EP PROVIDER PAYMENT - WORK PROGRAMME,WWEG EMPLOYMENT PROGRAMMES,REHAB JOBFIT,2022451296,"29,600"
Department for Work and Pensions,Employment Programmes,26-Sep-11,EP PROVIDER PAYMENT - WORK PROGRAMME,WWEG EMPLOYMENT PROGRAMMES,A4E LTD,2022616163,"29,600"
Department for Work and Pensions,Employment Programmes,26-Sep-11,EP PROVIDER PAYMENT - WORK PROGRAMME,WWEG EMPLOYMENT PROGRAMMES,JHP GROUP LTD,2022617740,"29,600"
Department for Work and Pensions,Employment Programmes,26-Sep-11,EP PROVIDER PAYMENT - WORK PROGRAMME,WWEG EMPLOYMENT PROGRAMMES,PERTEMPS,2022618188,"29,600"
Department for Work and Pensions,Employment Programmes,27-Sep-11,EP PROVIDER PAYMENT - WORK PROGRAMME,WWEG EMPLOYMENT PROGRAMMES,INGEUS UK LTD,2022621967,"29,600"
Department for Work and Pensions,Employment Programmes,27-Sep-11,EP PROVIDER PAYMENT - WORK PROGRAMME,WWEG EMPLOYMENT PROGRAMMES,WORKING LINKS,2022624014,"29,600"
Department for Work and Pensions,Corporate,23-Sep-11,COMPUTER SERVICES,Corporate IT,ATOS ORIGIN IT SERVICES UK LTD,2022612030,"29,592"
Department for Work and Pensions,Corporate,16-Sep-11,NETWORK,Corporate IT,BT GLOBAL SERVICES,2022528936,"29,543"
Department for Work and Pensions,Employment Programmes,06-Sep-11,EP PROVIDER PAYMENT - NON-WORK PROGRAMME,WWEG EMPLOYMENT PROGRAMMES,MAXIMUS EMPLOYMENT UK LTD,2022372582,"29,524"
Department for Work and Pensions,Jobcentre Plus,29-Sep-11,EMPLOYMENT PROGRAMMES,"Pensions, Disability & Carers Service",SEETEC BUSINESS TECHNOLOGY CENTRE LTD,2022691246,"29,447"
Department for Work and Pensions,Employment Programmes,08-Sep-11,RESIDENTIAL TRAINING,WWEG EMPLOYMENT PROGRAMMES,ENHAM,2022441732,"29,382"
Department for Work and Pensions,Corporate,14-Sep-11,ACCOMMODATION COSTS,GROUP FINANCE,TELEREAL TRILLIUM,2022519941,"29,307"
Department for Work and Pensions,Employment Programmes,02-Sep-11,EP PROVIDER PAYMENT - NON-WORK PROGRAMME,WWEG EMPLOYMENT PROGRAMMES,SERCO LTD,2022364693,"29,250"
Department for Work and Pensions,Employment Programmes,02-Sep-11,EP PROVIDER PAYMENT - WORK PROGRAMME,WWEG EMPLOYMENT PROGRAMMES,BEST LTD,2022363100,"29,200"
Department for Work and Pensions,Employment Programmes,05-Sep-11,EP PROVIDER PAYMENT - WORK PROGRAMME,WWEG EMPLOYMENT PROGRAMMES,SEETEC BUSINESS TECHNOLOGY CENTRE LTD,2022368891,"29,200"
Department for Work and Pensions,Employment Programmes,13-Sep-11,EP PROVIDER PAYMENT - WORK PROGRAMME,WWEG EMPLOYMENT PROGRAMMES,MAXIMUS EMPLOYMENT UK LTD,2022456914,"29,200"
Department for Work and Pensions,Employment Programmes,30-Sep-11,EP PROVIDER PAYMENT - WORK PROGRAMME,WWEG EMPLOYMENT PROGRAMMES,A4E LTD,2022693400,"29,200"
Department for Work and Pensions,Jobcentre Plus,06-Sep-11,Accommodation Costs,Jobcentre Plus,DTZ RE CROWN PROSECUTION SERVICES,2022371659,"29,199"
Department for Work and Pensions,Jobcentre Plus,02-Sep-11,EMPLOYMENT PROGRAMMES,"Pensions, Disability & Carers Service",ARGYLL & BUTE COUNCIL,2022363054,"29,193"
Department for Work and Pensions,Corporate,23-Sep-11,IS/IT,Shared Services,SPECIALIST COMPUTER CENTRES PLC,2022614743,"29,193"
Department for Work and Pensions,Employment Programmes,01-Sep-11,EP PROVIDER PAYMENT - NON-WORK PROGRAMME,WWEG EMPLOYMENT PROGRAMMES,THE WISE GROUP,2022361821,"29,141"
Department for Work and Pensions,Corporate,12-Sep-11,TEMPORARY (TEMP) STAFF COSTS,Corporate IT,CAPITA RESOURCING LTD,2022447117,"29,035"
Department for Work and Pensions,Jobcentre Plus,15-Sep-11,EMPLOYMENT PROGRAMMES,"Pensions, Disability & Carers Service",WORKING LINKS,2022527203,"28,991"
Department for Work and Pensions,Employment Programmes,09-Sep-11,YOUNG PERSON'S GUARANTEE,WWEG EMPLOYMENT PROGRAMMES,CSV,2022444983,"28,950"
Department for Work and Pensions,Housing Benefits,14-Sep-11,Housing Benefit Admin,WWG Housing Benefit,HARBOROUGH DISTRICT COUNCIL,2022524070,"28,886"
Department for Work and Pensions,Corporate,30-Sep-11,TEMPORARY (TEMP) STAFF COSTS,Corporate IT,CAPITA RESOURCING LTD,2022693655,"28,816"
Department for Work and Pensions,Employment Programmes,02-Sep-11,EP PROVIDER PAYMENT - WORK PROGRAMME,WWEG EMPLOYMENT PROGRAMMES,SEETEC BUSINESS TECHNOLOGY CENTRE LTD,2022364686,"28,800"
Department for Work and Pensions,Employment Programmes,05-Sep-11,EP PROVIDER PAYMENT - WORK PROGRAMME,WWEG EMPLOYMENT PROGRAMMES,INGEUS UK LTD,2022368049,"28,800"
Department for Work and Pensions,Employment Programmes,12-Sep-11,EP PROVIDER PAYMENT - WORK PROGRAMME,WWEG EMPLOYMENT PROGRAMMES,MAXIMUS EMPLOYMENT UK LTD,2022450791,"28,800"
Department for Work and Pensions,Employment Programmes,12-Sep-11,EP PROVIDER PAYMENT - WORK PROGRAMME,WWEG EMPLOYMENT PROGRAMMES,PERTEMPS,2022451112,"28,800"
Department for Work and Pensions,Employment Programmes,14-Sep-11,EP PROVIDER PAYMENT - WORK PROGRAMME,WWEG EMPLOYMENT PROGRAMMES,INGEUS UK LTD,2022481794,"28,800"
Department for Work and Pensions,Employment Programmes,21-Sep-11,EP PROVIDER PAYMENT - WORK PROGRAMME,WWEG EMPLOYMENT PROGRAMMES,CAREERS DEVELOPMENT GROUP,2022553079,"28,800"
Department for Work and Pensions,Employment Programmes,21-Sep-11,EP PROVIDER PAYMENT - WORK PROGRAMME,WWEG EMPLOYMENT PROGRAMMES,INGEUS UK LTD,2022565140,"28,800"
Department for Work and Pensions,Employment Programmes,23-Sep-11,EP PROVIDER PAYMENT - WORK PROGRAMME,WWEG EMPLOYMENT PROGRAMMES,INGEUS UK LTD,2022613756,"28,800"
Department for Work and Pensions,Employment Programmes,28-Sep-11,EP PROVIDER PAYMENT - WORK PROGRAMME,WWEG EMPLOYMENT PROGRAMMES,MAXIMUS EMPLOYMENT UK LTD,2022667717,"28,800"
Department for Work and Pensions,Employment Programmes,29-Sep-11,EP PROVIDER PAYMENT - WORK PROGRAMME,WWEG EMPLOYMENT PROGRAMMES,WORKING LINKS,2022691485,"28,800"
Department for Work and Pensions,"Pension, Disability Carers Services",12-Sep-11,TELEPHONE AND POSTAGE,"Pensions, Disability & Carers Service",ROYAL MAIL GROUP PLC,2022451319,"28,703"
Department for Work and Pensions,Housing Benefits,14-Sep-11,Housing Benefit Admin,WWG Housing Benefit,CHRISTCHURCH BOROUGH COUNCIL,2022523997,"28,680"
Department for Work and Pensions,Employment Programmes,07-Sep-11,EP PROVIDER PAYMENT - NON-WORK PROGRAMME,WWEG EMPLOYMENT PROGRAMMES,WORKING LINKS,2022437132,"28,665"
Department for Work and Pensions,"Pension, Disability Carers Services",13-Sep-11,APPS DEV,"Pensions, Disability & Carers Service",HP ENTERPRISE SERVICES UK LTD,2022455951,"28,557"
Department for Work and Pensions,Housing Benefits,14-Sep-11,Housing Benefit Admin,WWG Housing Benefit,WEST DEVON BOROUGH COUNCIL,2022524288,"28,428"
Department for Work and Pensions,Employment Programmes,02-Sep-11,EP PROVIDER PAYMENT - WORK PROGRAMME,WWEG EMPLOYMENT PROGRAMMES,EOS WORKS LTD,2022363719,"28,400"
Department for Work and Pensions,Employment Programmes,05-Sep-11,EP PROVIDER PAYMENT - WORK PROGRAMME,WWEG EMPLOYMENT PROGRAMMES,SEETEC BUSINESS TECHNOLOGY CENTRE LTD,2022368891,"28,400"
Department for Work and Pensions,Employment Programmes,06-Sep-11,EP PROVIDER PAYMENT - WORK PROGRAMME,WWEG EMPLOYMENT PROGRAMMES,INGEUS UK LTD,2022371976,"28,400"
Department for Work and Pensions,Employment Programmes,12-Sep-11,EP PROVIDER PAYMENT - WORK PROGRAMME,WWEG EMPLOYMENT PROGRAMMES,EOS WORKS LTD,2022449565,"28,400"
Department for Work and Pensions,Employment Programmes,13-Sep-11,EP PROVIDER PAYMENT - WORK PROGRAMME,WWEG EMPLOYMENT PROGRAMMES,INGEUS UK LTD,2022455999,"28,400"
Department for Work and Pensions,Employment Programmes,16-Sep-11,EP PROVIDER PAYMENT - WORK PROGRAMME,WWEG EMPLOYMENT PROGRAMMES,INGEUS UK LTD,2022530928,"28,400"
Department for Work and Pensions,Employment Programmes,20-Sep-11,EP PROVIDER PAYMENT - WORK PROGRAMME,WWEG EMPLOYMENT PROGRAMMES,INGEUS UK LTD,2022539140,"28,400"
Department for Work and Pensions,Employment Programmes,29-Sep-11,EP PROVIDER PAYMENT - WORK PROGRAMME,WWEG EMPLOYMENT PROGRAMMES,A4E LTD,2022689272,"28,400"
Department for Work and Pensions,Corporate,23-Sep-11,PROFESSIONAL FEES,Corporate & Support Services,EXPERIAN LTD,2022613608,"28,200"
Department for Work and Pensions,Housing Benefits,14-Sep-11,Housing Benefit Admin,WWG Housing Benefit,UTTLESFORD DISTRICT COUNCIL,2022524275,"28,131"
Department for Work and Pensions,Housing Benefits,14-Sep-11,Housing Benefit Admin,WWG Housing Benefit,DERBYSHIRE DALES DISTRICT COUNCIL,2022524022,"28,096"
Department for Work and Pensions,Employment Programmes,06-Sep-11,EP PROVIDER PAYMENT - NON-WORK PROGRAMME,WWEG EMPLOYMENT PROGRAMMES,WORKING LINKS,2022373434,"28,062"
Department for Work and Pensions,Corporate,16-Sep-11,TEMPORARY (TEMP) STAFF COSTS,Corporate IT,CAPITA RESOURCING LTD,2022529065,"28,014"
Department for Work and Pensions,Employment Programmes,08-Sep-11,EP PROVIDER PAYMENT - WORK PROGRAMME,WWEG EMPLOYMENT PROGRAMMES,INGEUS UK LTD,2022441960,"28,000"
Department for Work and Pensions,Employment Programmes,12-Sep-11,EP PROVIDER PAYMENT - WORK PROGRAMME,WWEG EMPLOYMENT PROGRAMMES,NEWCASTLE COLLEGE GROUP,2022450941,"28,000"
Department for Work and Pensions,Employment Programmes,14-Sep-11,EP PROVIDER PAYMENT - WORK PROGRAMME,WWEG EMPLOYMENT PROGRAMMES,A4E LTD,2022463916,"28,000"
Department for Work and Pensions,Employment Programmes,15-Sep-11,EP PROVIDER PAYMENT - WORK PROGRAMME,WWEG EMPLOYMENT PROGRAMMES,INGEUS UK LTD,2022526034,"28,000"
Department for Work and Pensions,Employment Programmes,21-Sep-11,EP PROVIDER PAYMENT - WORK PROGRAMME,WWEG EMPLOYMENT PROGRAMMES,G4S REGIONAL MANAGEMENT UK & I LTD,2022562999,"28,000"
Department for Work and Pensions,Employment Programmes,30-Sep-11,EP PROVIDER PAYMENT - WORK PROGRAMME,WWEG EMPLOYMENT PROGRAMMES,NEWCASTLE COLLEGE GROUP,2022696003,"28,000"
Department for Work and Pensions,Employment Programmes,01-Sep-11,YOUNG PERSON'S GUARANTEE,WWEG EMPLOYMENT PROGRAMMES,SWINDON BOROUGH COUNCIL,2022361773,"27,900"
Department for Work and Pensions,Corporate,22-Sep-11,NETWORK,Corporate IT,BT GLOBAL SERVICES,2022607875,"27,888"
Department for Work and Pensions,Jobcentre Plus,06-Sep-11,MEDICAL SERVICES,Jobcentre Plus,ATOS HEALTHCARE,2022370275,"27,661"
Department for Work and Pensions,Employment Programmes,05-Sep-11,EP PROVIDER PAYMENT - NON-WORK PROGRAMME,WWEG EMPLOYMENT PROGRAMMES,INGEUS UK LTD,2022368049,"27,612"
Department for Work and Pensions,Employment Programmes,12-Sep-11,EP PROVIDER PAYMENT - WORK PROGRAMME,WWEG EMPLOYMENT PROGRAMMES,INGEUS UK LTD,2022449843,"27,600"
Department for Work and Pensions,Employment Programmes,12-Sep-11,EP PROVIDER PAYMENT - WORK PROGRAMME,WWEG EMPLOYMENT PROGRAMMES,REED IN PARTNERSHIP,2022451294,"27,600"
Department for Work and Pensions,Employment Programmes,14-Sep-11,EP PROVIDER PAYMENT - WORK PROGRAMME,WWEG EMPLOYMENT PROGRAMMES,WORKING LINKS,2022521576,"27,600"
Department for Work and Pensions,Employment Programmes,20-Sep-11,EP PROVIDER PAYMENT - WORK PROGRAMME,WWEG EMPLOYMENT PROGRAMMES,INGEUS UK LTD,2022539140,"27,600"
Department for Work and Pensions,Employment Programmes,20-Sep-11,EP PROVIDER PAYMENT - WORK PROGRAMME,WWEG EMPLOYMENT PROGRAMMES,SEETEC BUSINESS TECHNOLOGY CENTRE LTD,2022540816,"27,600"
Department for Work and Pensions,Employment Programmes,21-Sep-11,EP PROVIDER PAYMENT - WORK PROGRAMME,WWEG EMPLOYMENT PROGRAMMES,A4E LTD,2022547199,"27,600"
Department for Work and Pensions,Jobcentre Plus,02-Sep-11,EMPLOYMENT PROGRAMMES,"Pensions, Disability & Carers Service",COMMUNITY  LINKS,2022363236,"27,596"
Department for Work and Pensions,Housing Benefits,14-Sep-11,Housing Benefit Admin,WWG Housing Benefit,SOUTH NORTHANTS COUNCIL,2022524230,"27,583"
Department for Work and Pensions,Employment Programmes,20-Sep-11,YOUNG PERSON'S GUARANTEE,WWEG EMPLOYMENT PROGRAMMES,NORTH TYNESIDE COUNCIL,2022540157,"27,300"
Department for Work and Pensions,Employment Programmes,01-Sep-11,EP PROVIDER PAYMENT - WORK PROGRAMME,WWEG EMPLOYMENT PROGRAMMES,SEETEC BUSINESS TECHNOLOGY CENTRE LTD,2022361752,"27,200"
Department for Work and Pensions,Employment Programmes,01-Sep-11,EP PROVIDER PAYMENT - WORK PROGRAMME,WWEG EMPLOYMENT PROGRAMMES,SEETEC BUSINESS TECHNOLOGY CENTRE LTD,2022361752,"27,200"
Department for Work and Pensions,Employment Programmes,14-Sep-11,EP PROVIDER PAYMENT - WORK PROGRAMME,WWEG EMPLOYMENT PROGRAMMES,INGEUS UK LTD,2022481794,"27,200"
Department for Work and Pensions,Employment Programmes,19-Sep-11,EP PROVIDER PAYMENT - WORK PROGRAMME,WWEG EMPLOYMENT PROGRAMMES,BEST LTD,2022533294,"27,200"
Department for Work and Pensions,Employment Programmes,21-Sep-11,EP PROVIDER PAYMENT - WORK PROGRAMME,WWEG EMPLOYMENT PROGRAMMES,INGEUS UK LTD,2022565140,"27,200"
Department for Work and Pensions,Housing Benefits,14-Sep-11,Housing Benefit Admin,WWG Housing Benefit,WEST SOMERSET DISTRICT COUNCIL,2022524295,"27,186"
Department for Work and Pensions,"Pension, Disability Carers Services",12-Sep-11,TELEPHONE AND POSTAGE,"Pensions, Disability & Carers Service",ROYAL MAIL GROUP PLC,2022451319,"27,060"
Department for Work and Pensions,Corporate,05-Sep-11,TEMPORARY (TEMP) STAFF COSTS,Corporate IT,CAPITA RESOURCING LTD,2022366574,"26,983"
Department for Work and Pensions,Jobcentre Plus,15-Sep-11,EMPLOYMENT PROGRAMMES,"Pensions, Disability & Carers Service",CLAVERHOUSE GROUP,2022524695,"26,918"
Department for Work and Pensions,Employment Programmes,30-Sep-11,ACCESS TO WORK,WWEG EMPLOYMENT PROGRAMMES,SCOUT ENTERPRISES WESTERN LTD,2022696483,"26,851"
Department for Work and Pensions,Employment Programmes,28-Sep-11,YOUNG PERSON'S GUARANTEE,WWEG EMPLOYMENT PROGRAMMES,SWINDON BOROUGH COUNCIL,2022682287,"26,850"
Department for Work and Pensions,Employment Programmes,07-Sep-11,EP PROVIDER PAYMENT - NON-WORK PROGRAMME,WWEG EMPLOYMENT PROGRAMMES,PERTEMPS,2022422613,"26,804"
Department for Work and Pensions,Employment Programmes,02-Sep-11,EP PROVIDER PAYMENT - WORK PROGRAMME,WWEG EMPLOYMENT PROGRAMMES,INGEUS UK LTD,2022363861,"26,800"
Department for Work and Pensions,Employment Programmes,05-Sep-11,EP PROVIDER PAYMENT - WORK PROGRAMME,WWEG EMPLOYMENT PROGRAMMES,INGEUS UK LTD,2022368049,"26,800"
Department for Work and Pensions,Employment Programmes,19-Sep-11,EP PROVIDER PAYMENT - WORK PROGRAMME,WWEG EMPLOYMENT PROGRAMMES,A4E LTD,2022533223,"26,800"
Department for Work and Pensions,Employment Programmes,21-Sep-11,EP PROVIDER PAYMENT - WORK PROGRAMME,WWEG EMPLOYMENT PROGRAMMES,EOS WORKS LTD,2022560516,"26,800"
Department for Work and Pensions,Employment Programmes,28-Sep-11,EP PROVIDER PAYMENT - WORK PROGRAMME,WWEG EMPLOYMENT PROGRAMMES,SEETEC BUSINESS TECHNOLOGY CENTRE LTD,2022682226,"26,800"
Department for Work and Pensions,Corporate,30-Sep-11,TEMPORARY (TEMP) STAFF COSTS,Corporate IT,CAPITA RESOURCING LTD,2022693655,"26,776"
Department for Work and Pensions,Corporate,13-Sep-11,APPS DEV,Corporate IT,HP ENTERPRISE SERVICES UK LTD,2022455951,"26,604"
Department for Work and Pensions,"Pension, Disability Carers Services",06-Sep-11,PROFESSIONAL FEES,"Pensions, Disability & Carers Service",TNS BMRB,2022373343,"26,500"
Department for Work and Pensions,Jobcentre Plus,22-Sep-11,EU PROGRAMMES,Jobcentre Plus,BLUE ORCHID MANAGEMENT CONSULTANTS LTD,2022607863,"26,450"
Department for Work and Pensions,Employment Programmes,12-Sep-11,EP PROVIDER PAYMENT - WORK PROGRAMME,WWEG EMPLOYMENT PROGRAMMES,INGEUS UK LTD,2022449843,"26,400"
Department for Work and Pensions,Employment Programmes,14-Sep-11,EP PROVIDER PAYMENT - WORK PROGRAMME,WWEG EMPLOYMENT PROGRAMMES,INGEUS UK LTD,2022481794,"26,400"
Department for Work and Pensions,Employment Programmes,19-Sep-11,EP PROVIDER PAYMENT - WORK PROGRAMME,WWEG EMPLOYMENT PROGRAMMES,JHP GROUP LTD,2022535054,"26,400"
Department for Work and Pensions,Employment Programmes,22-Sep-11,EP PROVIDER PAYMENT - WORK PROGRAMME,WWEG EMPLOYMENT PROGRAMMES,A4E LTD,2022607792,"26,400"
Department for Work and Pensions,Employment Programmes,30-Sep-11,EP PROVIDER PAYMENT - WORK PROGRAMME,WWEG EMPLOYMENT PROGRAMMES,INGEUS UK LTD,2022695169,"26,400"
Department for Work and Pensions,Corporate,23-Sep-11,COMPUTER SERVICES,Corporate IT,ATOS ORIGIN IT SERVICES UK LTD,2022612030,"26,382"
Department for Work and Pensions,Employment Programmes,06-Sep-11,ACCESS TO WORK,WWEG EMPLOYMENT PROGRAMMES,SOUTH WEST LONDON & ST GEORGES NHS TRUST,2022373217,"26,365"
Department for Work and Pensions,Jobcentre Plus,28-Sep-11,EU PROGRAMMES,Jobcentre Plus,BLUE ORCHID MANAGEMENT CONSULTANTS LTD,2022631103,"26,220"
Department for Work and Pensions,Employment Programmes,09-Sep-11,YOUNG PERSON'S GUARANTEE,WWEG EMPLOYMENT PROGRAMMES,NATIONAL ASSOCIATION OF CITIZENS ADVICE BUREAUX,2022445550,"26,100"
Department for Work and Pensions,Housing Benefits,14-Sep-11,Housing Benefit Admin,WWG Housing Benefit,HART DISTRICT COUNCIL,2022524073,"26,089"
Department for Work and Pensions,Employment Programmes,06-Sep-11,EP PROVIDER PAYMENT - NON-WORK PROGRAMME,WWEG EMPLOYMENT PROGRAMMES,INGEUS UK LTD,2022371976,"26,078"
Department for Work and Pensions,Corporate,13-Sep-11,APPS DEV,Shared Services,HP ENTERPRISE SERVICES UK LTD,2022455951,"26,027"
Department for Work and Pensions,Employment Programmes,12-Sep-11,EP PROVIDER PAYMENT - WORK PROGRAMME,WWEG EMPLOYMENT PROGRAMMES,NEWCASTLE COLLEGE GROUP,2022450941,"26,000"
Department for Work and Pensions,Employment Programmes,15-Sep-11,EP PROVIDER PAYMENT - WORK PROGRAMME,WWEG EMPLOYMENT PROGRAMMES,BEST LTD,2022524542,"26,000"
Department for Work and Pensions,Employment Programmes,20-Sep-11,EP PROVIDER PAYMENT - WORK PROGRAMME,WWEG EMPLOYMENT PROGRAMMES,INGEUS UK LTD,2022539140,"26,000"
Department for Work and Pensions,Employment Programmes,22-Sep-11,EP PROVIDER PAYMENT - WORK PROGRAMME,WWEG EMPLOYMENT PROGRAMMES,CAREERS DEVELOPMENT GROUP,2022607979,"26,000"
Department for Work and Pensions,Employment Programmes,26-Sep-11,EP PROVIDER PAYMENT - WORK PROGRAMME,WWEG EMPLOYMENT PROGRAMMES,WORKING LINKS,2022618619,"26,000"
Department for Work and Pensions,Employment Programmes,29-Sep-11,EP PROVIDER PAYMENT - WORK PROGRAMME,WWEG EMPLOYMENT PROGRAMMES,INGEUS UK LTD,2022690138,"26,000"
Department for Work and Pensions,Corporate,15-Sep-11,TOTAL SUPPLIES & SERVICES,Corporate & Support Services,PROQUEST INFORMATION & LEARNING,2022526745,"25,929"
Department for Work and Pensions,Employment Programmes,05-Sep-11,EP PROVIDER PAYMENT - NON-WORK PROGRAMME,WWEG EMPLOYMENT PROGRAMMES,A4E LTD,2022366393,"25,900"
Department for Work and Pensions,Jobcentre Plus,15-Sep-11,EMPLOYMENT PROGRAMMES,"Pensions, Disability & Carers Service",WORKING LINKS EMPLOYMENT LIMITED,2022527205,"25,851"
Department for Work and Pensions,Housing Benefits,14-Sep-11,Housing Benefit Admin,WWG Housing Benefit,RYEDALE DISTRICT COUNCIL,2022524204,"25,805"
Department for Work and Pensions,Employment Programmes,13-Sep-11,YOUNG PERSON'S GUARANTEE,WWEG EMPLOYMENT PROGRAMMES,STOKE ON TRENT CITY COUNCIL,2022457737,"25,800"
Department for Work and Pensions,Corporate,30-Sep-11,ACCOMMODATION,GROUP FINANCE,TELEREAL TRILLIUM,2022696618,"25,724"
Department for Work and Pensions,Jobcentre Plus,08-Sep-11,EMPLOYMENT PROGRAMMES,"Pensions, Disability & Carers Service",ARGYLL & BUTE COUNCIL,2022439726,"25,720"
Department for Work and Pensions,Jobcentre Plus,26-Sep-11,EU PROGRAMMES,Jobcentre Plus,NOTTINGHAMSHIRE BUSINESS VENTURE,2022618108,"25,718"
Department for Work and Pensions,Housing Benefits,14-Sep-11,Housing Benefit Admin,WWG Housing Benefit,SOUTH BUCKS DISTRICT COUNCIL,2022524220,"25,623"
Department for Work and Pensions,Employment Programmes,06-Sep-11,EP PROVIDER PAYMENT - WORK PROGRAMME,WWEG EMPLOYMENT PROGRAMMES,CAREERS DEVELOPMENT GROUP,2022370521,"25,600"
Department for Work and Pensions,Employment Programmes,12-Sep-11,EP PROVIDER PAYMENT - WORK PROGRAMME,WWEG EMPLOYMENT PROGRAMMES,CAREERS DEVELOPMENT GROUP,2022447122,"25,600"
Department for Work and Pensions,Employment Programmes,15-Sep-11,EP PROVIDER PAYMENT - WORK PROGRAMME,WWEG EMPLOYMENT PROGRAMMES,A4E LTD,2022524467,"25,600"
Department for Work and Pensions,Employment Programmes,20-Sep-11,EP PROVIDER PAYMENT - WORK PROGRAMME,WWEG EMPLOYMENT PROGRAMMES,SEETEC BUSINESS TECHNOLOGY CENTRE LTD,2022540816,"25,600"
Department for Work and Pensions,Employment Programmes,21-Sep-11,EP PROVIDER PAYMENT - WORK PROGRAMME,WWEG EMPLOYMENT PROGRAMMES,A4E LTD,2022547199,"25,600"
Department for Work and Pensions,Employment Programmes,26-Sep-11,EP PROVIDER PAYMENT - WORK PROGRAMME,WWEG EMPLOYMENT PROGRAMMES,A4E LTD,2022616163,"25,600"
Department for Work and Pensions,Employment Programmes,28-Sep-11,EP PROVIDER PAYMENT - WORK PROGRAMME,WWEG EMPLOYMENT PROGRAMMES,A4E LTD,2022630007,"25,600"
Department for Work and Pensions,Employment Programmes,29-Sep-11,EP PROVIDER PAYMENT - WORK PROGRAMME,WWEG EMPLOYMENT PROGRAMMES,INGEUS UK LTD,2022690138,"25,600"
Department for Work and Pensions,Corporate,30-Sep-11,ACCOMMODATION,GROUP FINANCE,TELEREAL TRILLIUM,2022696617,"25,592"
Department for Work and Pensions,Corporate,05-Sep-11,TEMPORARY (TEMP) STAFF COSTS,Corporate IT,CAPITA RESOURCING LTD,2022366574,"25,443"
Department for Work and Pensions,Employment Programmes,06-Sep-11,EP PROVIDER PAYMENT - WORK PROGRAMME,WWEG EMPLOYMENT PROGRAMMES,BEST LTD,2022370333,"25,200"
Department for Work and Pensions,Employment Programmes,06-Sep-11,EP PROVIDER PAYMENT - WORK PROGRAMME,WWEG EMPLOYMENT PROGRAMMES,SEETEC BUSINESS TECHNOLOGY CENTRE LTD,2022373177,"25,200"
Department for Work and Pensions,Employment Programmes,07-Sep-11,EP PROVIDER PAYMENT - WORK PROGRAMME,WWEG EMPLOYMENT PROGRAMMES,INGEUS UK LTD,2022397327,"25,200"
Department for Work and Pensions,Employment Programmes,28-Sep-11,EP PROVIDER PAYMENT - WORK PROGRAMME,WWEG EMPLOYMENT PROGRAMMES,BEST LTD,2022631094,"25,200"
Department for Work and Pensions,Housing Benefits,14-Sep-11,Housing Benefit Admin,WWG Housing Benefit,CRAVEN DISTRICT COUNCIL,2022524013,"25,141"
Department for Work and Pensions,Employment Programmes,07-Sep-11,YOUNG PERSON'S GUARANTEE,WWEG EMPLOYMENT PROGRAMMES,SWINDON BOROUGH COUNCIL,2022432863,"25,050"
Department for Work and Pensions,European Social Fund,20-Sep-11,ESF Expenditure,WWEG EUROPEAN SOCIAL FUND,LONDON VOLUNTARY SECTOR TRAINING CONSORTIUM LVSTC,5000000725,"25,036"
Department for Work and Pensions,Jobcentre Plus,16-Sep-11,EMPLOYMENT ZONES,Jobcentre Plus,CORNWALL COUNCIL,2022529084,"25,000"
Department for Work and Pensions,Jobcentre Plus,22-Sep-11,EMPLOYMENT ZONES,Jobcentre Plus,NORTH DEVON +,2022609772,"25,000"
Department for Work and Pensions,Jobcentre Plus,12-Sep-11,TELEPHONE AND POSTAGE,Jobcentre Plus,ROYAL MAIL GROUP PLC,2022451319,"24,916"
Department for Work and Pensions,Employment Programmes,08-Sep-11,EP PROVIDER PAYMENT - NON-WORK PROGRAMME,WWEG EMPLOYMENT PROGRAMMES,A4E LTD,2022439704,"24,890"
Department for Work and Pensions,Corporate,12-Sep-11,COMPUTER SERVICES,Corporate IT,FUJITSU SERVICES LTD,2022449613,"24,854"
Department for Work and Pensions,Employment Programmes,08-Sep-11,EP PROVIDER PAYMENT - WORK PROGRAMME,WWEG EMPLOYMENT PROGRAMMES,SEETEC BUSINESS TECHNOLOGY CENTRE LTD,2022443281,"24,800"
Department for Work and Pensions,Employment Programmes,16-Sep-11,EP PROVIDER PAYMENT - WORK PROGRAMME,WWEG EMPLOYMENT PROGRAMMES,A4E LTD,2022528856,"24,800"
Department for Work and Pensions,Employment Programmes,19-Sep-11,EP PROVIDER PAYMENT - WORK PROGRAMME,WWEG EMPLOYMENT PROGRAMMES,A4E LTD,2022533223,"24,800"
Department for Work and Pensions,Employment Programmes,28-Sep-11,EP PROVIDER PAYMENT - WORK PROGRAMME,WWEG EMPLOYMENT PROGRAMMES,MAXIMUS EMPLOYMENT UK LTD,2022667717,"24,800"
Department for Work and Pensions,Employment Programmes,30-Sep-11,EP PROVIDER PAYMENT - WORK PROGRAMME,WWEG EMPLOYMENT PROGRAMMES,SEETEC BUSINESS TECHNOLOGY CENTRE LTD,2022696484,"24,800"
Department for Work and Pensions,Employment Programmes,08-Sep-11,EP PROVIDER PAYMENT - NON-WORK PROGRAMME,WWEG EMPLOYMENT PROGRAMMES,SERCO LTD,2022443284,"24,786"
Department for Work and Pensions,Corporate,26-Sep-11,TEMPORARY (TEMP) STAFF COSTS,Corporate IT,CAPITA RESOURCING LTD,2022616379,"24,464"
Department for Work and Pensions,Employment Programmes,01-Sep-11,EP PROVIDER PAYMENT - NON-WORK PROGRAMME,WWEG EMPLOYMENT PROGRAMMES,SKILLS TRAINING UK LIMITED,2022361761,"24,432"
Department for Work and Pensions,Employment Programmes,01-Sep-11,EP PROVIDER PAYMENT - WORK PROGRAMME,WWEG EMPLOYMENT PROGRAMMES,AVANTA ENTERPRISE LTD,2022359653,"24,400"
Department for Work and Pensions,Employment Programmes,05-Sep-11,EP PROVIDER PAYMENT - WORK PROGRAMME,WWEG EMPLOYMENT PROGRAMMES,REHAB JOBFIT,2022368737,"24,400"
Department for Work and Pensions,Employment Programmes,07-Sep-11,EP PROVIDER PAYMENT - WORK PROGRAMME,WWEG EMPLOYMENT PROGRAMMES,REHAB JOBFIT,2022425276,"24,400"
Department for Work and Pensions,Employment Programmes,07-Sep-11,EP PROVIDER PAYMENT - WORK PROGRAMME,WWEG EMPLOYMENT PROGRAMMES,SEETEC BUSINESS TECHNOLOGY CENTRE LTD,2022432779,"24,400"
Department for Work and Pensions,Employment Programmes,16-Sep-11,EP PROVIDER PAYMENT - WORK PROGRAMME,WWEG EMPLOYMENT PROGRAMMES,BEST LTD,2022528921,"24,400"
Department for Work and Pensions,Employment Programmes,22-Sep-11,EP PROVIDER PAYMENT - WORK PROGRAMME,WWEG EMPLOYMENT PROGRAMMES,WORKING LINKS,2022610265,"24,400"
Department for Work and Pensions,Employment Programmes,27-Sep-11,EP PROVIDER PAYMENT - WORK PROGRAMME,WWEG EMPLOYMENT PROGRAMMES,A4E LTD,2022619713,"24,400"
Department for Work and Pensions,Employment Programmes,30-Sep-11,JSP ESF DEL P COSTS,WWEG EMPLOYMENT PROGRAMMES,THE INTRAINING GROUP,2022696626,"24,336"
Department for Work and Pensions,Housing Benefits,14-Sep-11,Housing Benefit Admin,WWG Housing Benefit,PURBECK DISTRICT COUNCIL,2022524185,"24,267"
Department for Work and Pensions,Corporate,12-Sep-11,TEMPORARY (TEMP) STAFF COSTS,Corporate IT,CAPITA RESOURCING LTD,2022447117,"24,185"
Department for Work and Pensions,Employment Programmes,29-Sep-11,EP PROVIDER PAYMENT - NON-WORK PROGRAMME,WWEG EMPLOYMENT PROGRAMMES,THE PLUSS ORGANISATION,2022691350,"24,001"
Department for Work and Pensions,Employment Programmes,01-Sep-11,EP PROVIDER PAYMENT - WORK PROGRAMME,WWEG EMPLOYMENT PROGRAMMES,INGEUS UK LTD,2022361089,"24,000"
Department for Work and Pensions,Employment Programmes,05-Sep-11,EP PROVIDER PAYMENT - WORK PROGRAMME,WWEG EMPLOYMENT PROGRAMMES,NEWCASTLE COLLEGE GROUP,2022368577,"24,000"
Department for Work and Pensions,Employment Programmes,08-Sep-11,EP PROVIDER PAYMENT - WORK PROGRAMME,WWEG EMPLOYMENT PROGRAMMES,INGEUS UK LTD,2022441960,"24,000"
Department for Work and Pensions,Employment Programmes,21-Sep-11,EP PROVIDER PAYMENT - WORK PROGRAMME,WWEG EMPLOYMENT PROGRAMMES,SEETEC BUSINESS TECHNOLOGY CENTRE LTD,2022600704,"24,000"
Department for Work and Pensions,Employment Programmes,29-Sep-11,EP PROVIDER PAYMENT - WORK PROGRAMME,WWEG EMPLOYMENT PROGRAMMES,BEST LTD,2022689367,"24,000"
Department for Work and Pensions,Employment Programmes,01-Sep-11,EP PROVIDER PAYMENT - NON-WORK PROGRAMME,WWEG EMPLOYMENT PROGRAMMES,SERCO LTD,2022361754,"23,868"
Department for Work and Pensions,Employment Programmes,02-Sep-11,EP PROVIDER PAYMENT - NON-WORK PROGRAMME,WWEG EMPLOYMENT PROGRAMMES,SERCO LTD,2022364693,"23,868"
Department for Work and Pensions,Corporate,12-Sep-11,APPS DEV,CHANGE MANAGEMENT DIRECTORATE,HP ENTERPRISE SERVICES UK LTD,2022449797,"23,787"
Department for Work and Pensions,Housing Benefits,14-Sep-11,Housing Benefit Admin,WWG Housing Benefit,OADBY & WIGSTON BOROUGH COUNCIL,2022524172,"23,736"
Department for Work and Pensions,Employment Programmes,19-Sep-11,EP PROVIDER PAYMENT - WORK PROGRAMME,WWEG EMPLOYMENT PROGRAMMES,SEETEC BUSINESS TECHNOLOGY CENTRE LTD,2022535836,"23,600"
Department for Work and Pensions,Employment Programmes,21-Sep-11,EP PROVIDER PAYMENT - WORK PROGRAMME,WWEG EMPLOYMENT PROGRAMMES,WORKING LINKS,2022605076,"23,600"
Department for Work and Pensions,Employment Programmes,27-Sep-11,EP PROVIDER PAYMENT - WORK PROGRAMME,WWEG EMPLOYMENT PROGRAMMES,SEETEC BUSINESS TECHNOLOGY CENTRE LTD,2022623742,"23,600"
Department for Work and Pensions,Employment Programmes,29-Sep-11,EP PROVIDER PAYMENT - WORK PROGRAMME,WWEG EMPLOYMENT PROGRAMMES,A4E LTD,2022689272,"23,600"
Department for Work and Pensions,Employment Programmes,29-Sep-11,EP PROVIDER PAYMENT - WORK PROGRAMME,WWEG EMPLOYMENT PROGRAMMES,MAXIMUS EMPLOYMENT UK LTD,2022690769,"23,600"
Department for Work and Pensions,"Pension, Disability Carers Services",02-Sep-11,"OFFICE SUPPLIES, PRINTING AND PUBLICITY","Pensions, Disability & Carers Service",XEROX UK LTD 3W,2022364875,"23,411"
Department for Work and Pensions,Employment Programmes,05-Sep-11,EP PROVIDER PAYMENT - NON-WORK PROGRAMME,WWEG EMPLOYMENT PROGRAMMES,A4E LTD,2022366393,"23,400"
Department for Work and Pensions,Corporate,30-Sep-11,ACCOMMODATION,GROUP FINANCE,TELEREAL TRILLIUM,2022696617,"23,354"
Department for Work and Pensions,Corporate,12-Sep-11,COMPUTER SERVICES,GROUP FINANCE,HP ENTERPRISE SERVICES UK LTD,2022449797,"23,283"
Department for Work and Pensions,Corporate,02-Sep-11,COMPUTER SERVICES,Corporate IT,ACCENTURE UK LTD,2022363027,"23,215"
Department for Work and Pensions,Employment Programmes,06-Sep-11,EP PROVIDER PAYMENT - WORK PROGRAMME,WWEG EMPLOYMENT PROGRAMMES,A4E LTD,2022370242,"23,200"
Department for Work and Pensions,Employment Programmes,06-Sep-11,EP PROVIDER PAYMENT - WORK PROGRAMME,WWEG EMPLOYMENT PROGRAMMES,REHAB JOBFIT,2022372913,"23,200"
Department for Work and Pensions,Employment Programmes,16-Sep-11,EP PROVIDER PAYMENT - WORK PROGRAMME,WWEG EMPLOYMENT PROGRAMMES,SEETEC BUSINESS TECHNOLOGY CENTRE LTD,2022531974,"23,200"
Department for Work and Pensions,Employment Programmes,21-Sep-11,EP PROVIDER PAYMENT - WORK PROGRAMME,WWEG EMPLOYMENT PROGRAMMES,A4E LTD,2022547199,"23,200"
Department for Work and Pensions,Corporate,05-Sep-11,PROFESSIONAL FEES,Shared Services,AON HEWITT LTD,2022366413,"23,199"
Department for Work and Pensions,"Pension, Disability Carers Services",08-Sep-11,MEDICAL SERVICES,"Pensions, Disability & Carers Service",ASE CORPORATE EYECARE LTD,2022439730,"23,000"
Department for Work and Pensions,Employment Programmes,07-Sep-11,EP PROVIDER PAYMENT - NON-WORK PROGRAMME,WWEG EMPLOYMENT PROGRAMMES,INGEUS UK LTD,2022397327,"22,802"
Department for Work and Pensions,Employment Programmes,08-Sep-11,EP PROVIDER PAYMENT - WORK PROGRAMME,WWEG EMPLOYMENT PROGRAMMES,INGEUS UK LTD,2022441960,"22,800"
Department for Work and Pensions,Employment Programmes,12-Sep-11,EP PROVIDER PAYMENT - WORK PROGRAMME,WWEG EMPLOYMENT PROGRAMMES,WORKING LINKS,2022451898,"22,800"
Department for Work and Pensions,Employment Programmes,20-Sep-11,EP PROVIDER PAYMENT - WORK PROGRAMME,WWEG EMPLOYMENT PROGRAMMES,JHP GROUP LTD,2022539420,"22,800"
Department for Work and Pensions,Employment Programmes,21-Sep-11,EP PROVIDER PAYMENT - WORK PROGRAMME,WWEG EMPLOYMENT PROGRAMMES,EOS WORKS LTD,2022560516,"22,800"
Department for Work and Pensions,Employment Programmes,21-Sep-11,EP PROVIDER PAYMENT - WORK PROGRAMME,WWEG EMPLOYMENT PROGRAMMES,G4S REGIONAL MANAGEMENT UK & I LTD,2022562999,"22,800"
Department for Work and Pensions,Employment Programmes,21-Sep-11,EP PROVIDER PAYMENT - WORK PROGRAMME,WWEG EMPLOYMENT PROGRAMMES,INGEUS UK LTD,2022565140,"22,800"
Department for Work and Pensions,Employment Programmes,29-Sep-11,EP PROVIDER PAYMENT - WORK PROGRAMME,WWEG EMPLOYMENT PROGRAMMES,INGEUS UK LTD,2022690138,"22,800"
Department for Work and Pensions,"Pension, Disability Carers Services",06-Sep-11,ACCOMMODATION COSTS,"Pensions, Disability & Carers Service",TELEREAL TRILLIUM,2022373326,"22,523"
Department for Work and Pensions,Employment Programmes,15-Sep-11,EP PROVIDER PAYMENT - WORK PROGRAMME,WWEG EMPLOYMENT PROGRAMMES,SEETEC BUSINESS TECHNOLOGY CENTRE LTD,2022527025,"22,400"
Department for Work and Pensions,Employment Programmes,22-Sep-11,EP PROVIDER PAYMENT - WORK PROGRAMME,WWEG EMPLOYMENT PROGRAMMES,NEWCASTLE COLLEGE GROUP,2022609769,"22,400"
Department for Work and Pensions,Employment Programmes,23-Sep-11,EP PROVIDER PAYMENT - WORK PROGRAMME,WWEG EMPLOYMENT PROGRAMMES,WORKING LINKS,2022614902,"22,400"
Department for Work and Pensions,Employment Programmes,26-Sep-11,EP PROVIDER PAYMENT - WORK PROGRAMME,WWEG EMPLOYMENT PROGRAMMES,INGEUS UK LTD,2022617586,"22,400"
Department for Work and Pensions,Employment Programmes,30-Sep-11,EP PROVIDER PAYMENT - WORK PROGRAMME,WWEG EMPLOYMENT PROGRAMMES,INGEUS UK LTD,2022695169,"22,400"
Department for Work and Pensions,Employment Programmes,30-Sep-11,EP PROVIDER PAYMENT - WORK PROGRAMME,WWEG EMPLOYMENT PROGRAMMES,NEWCASTLE COLLEGE GROUP,2022696003,"22,400"
Department for Work and Pensions,Employment Programmes,06-Sep-11,EP PROVIDER PAYMENT - NON-WORK PROGRAMME,WWEG EMPLOYMENT PROGRAMMES,WORKING LINKS,2022373434,"22,151"
Department for Work and Pensions,Housing Benefits,14-Sep-11,Housing Benefit Admin,WWG Housing Benefit,COMHAIRLE NAN EILEAN SIAR COUNCIL,2022524004,"22,138"
Department for Work and Pensions,Corporate,26-Sep-11,COMPUTER SERVICES,Corporate IT,ACCENTURE UK LTD,2022616175,"22,138"
Department for Work and Pensions,Corporate,30-Sep-11,ACCOMMODATION,GROUP FINANCE,TELEREAL TRILLIUM,2022696617,"22,074"
Department for Work and Pensions,Corporate,23-Sep-11,COMPUTER SERVICES,Corporate IT,ATOS ORIGIN IT SERVICES UK LTD,2022612030,"22,059"
Department for Work and Pensions,Employment Programmes,02-Sep-11,EP PROVIDER PAYMENT - WORK PROGRAMME,WWEG EMPLOYMENT PROGRAMMES,INGEUS UK LTD,2022363861,"22,000"
Department for Work and Pensions,Employment Programmes,12-Sep-11,EP PROVIDER PAYMENT - WORK PROGRAMME,WWEG EMPLOYMENT PROGRAMMES,AVANTA ENTERPRISE LTD,2022446831,"22,000"
Department for Work and Pensions,Employment Programmes,12-Sep-11,EP PROVIDER PAYMENT - WORK PROGRAMME,WWEG EMPLOYMENT PROGRAMMES,G4S REGIONAL MANAGEMENT UK & I LTD,2022449690,"22,000"
Department for Work and Pensions,Employment Programmes,13-Sep-11,EP PROVIDER PAYMENT - WORK PROGRAMME,WWEG EMPLOYMENT PROGRAMMES,SEETEC BUSINESS TECHNOLOGY CENTRE LTD,2022457708,"22,000"
Department for Work and Pensions,Employment Programmes,14-Sep-11,EP PROVIDER PAYMENT - WORK PROGRAMME,WWEG EMPLOYMENT PROGRAMMES,CAREERS DEVELOPMENT GROUP,2022469732,"22,000"
Department for Work and Pensions,Employment Programmes,16-Sep-11,EP PROVIDER PAYMENT - WORK PROGRAMME,WWEG EMPLOYMENT PROGRAMMES,NEWCASTLE COLLEGE GROUP,2022531577,"22,000"
Department for Work and Pensions,Employment Programmes,21-Sep-11,EP PROVIDER PAYMENT - WORK PROGRAMME,WWEG EMPLOYMENT PROGRAMMES,NEWCASTLE COLLEGE GROUP,2022588485,"22,000"
Department for Work and Pensions,Employment Programmes,23-Sep-11,EP PROVIDER PAYMENT - WORK PROGRAMME,WWEG EMPLOYMENT PROGRAMMES,INGEUS UK LTD,2022613756,"22,000"
Department for Work and Pensions,Employment Programmes,30-Sep-11,EP PROVIDER PAYMENT - WORK PROGRAMME,WWEG EMPLOYMENT PROGRAMMES,INGEUS UK LTD,2022695169,"22,000"
Department for Work and Pensions,Jobcentre Plus,12-Sep-11,PROFESSIONAL FEES,Jobcentre Plus,THE BIG WORD INTERPRETING SERVICES LTD,2022451753,"21,926"
Department for Work and Pensions,Corporate,16-Sep-11,TEMPORARY (TEMP) STAFF COSTS,Corporate IT,CAPITA RESOURCING LTD,2022529065,"21,892"
Department for Work and Pensions,Housing Benefits,14-Sep-11,Housing Benefit Admin,WWG Housing Benefit,EDEN DISTRICT COUNCIL,2022524044,"21,795"
Department for Work and Pensions,Jobcentre Plus,15-Sep-11,STAFF COSTS,Jobcentre Plus,EXPOTEL,2022525883,"21,779"
Department for Work and Pensions,Jobcentre Plus,09-Sep-11,COMPUTER SERVICES,Jobcentre Plus,HP ENTERPRISE SERVICES UK LTD,2022445387,"21,701"
Department for Work and Pensions,Employment Programmes,01-Sep-11,EP PROVIDER PAYMENT - WORK PROGRAMME,WWEG EMPLOYMENT PROGRAMMES,A4E LTD,2022359621,"21,600"
Department for Work and Pensions,Employment Programmes,02-Sep-11,EP PROVIDER PAYMENT - WORK PROGRAMME,WWEG EMPLOYMENT PROGRAMMES,EOS WORKS LTD,2022363719,"21,600"
Department for Work and Pensions,Employment Programmes,05-Sep-11,EP PROVIDER PAYMENT - WORK PROGRAMME,WWEG EMPLOYMENT PROGRAMMES,AVANTA ENTERPRISE LTD,2022366420,"21,600"
Department for Work and Pensions,Employment Programmes,12-Sep-11,EP PROVIDER PAYMENT - WORK PROGRAMME,WWEG EMPLOYMENT PROGRAMMES,INGEUS UK LTD,2022449843,"21,600"
Department for Work and Pensions,Employment Programmes,12-Sep-11,EP PROVIDER PAYMENT - WORK PROGRAMME,WWEG EMPLOYMENT PROGRAMMES,PERTEMPS,2022451112,"21,600"
Department for Work and Pensions,Employment Programmes,12-Sep-11,EP PROVIDER PAYMENT - WORK PROGRAMME,WWEG EMPLOYMENT PROGRAMMES,REHAB JOBFIT,2022451296,"21,600"
Department for Work and Pensions,Employment Programmes,13-Sep-11,EP PROVIDER PAYMENT - WORK PROGRAMME,WWEG EMPLOYMENT PROGRAMMES,WORKING LINKS,2022457973,"21,600"
Department for Work and Pensions,Employment Programmes,15-Sep-11,EP PROVIDER PAYMENT - WORK PROGRAMME,WWEG EMPLOYMENT PROGRAMMES,EOS WORKS LTD,2022525876,"21,600"
Department for Work and Pensions,Employment Programmes,15-Sep-11,EP PROVIDER PAYMENT - WORK PROGRAMME,WWEG EMPLOYMENT PROGRAMMES,WORKING LINKS,2022527202,"21,600"
Department for Work and Pensions,Employment Programmes,22-Sep-11,EP PROVIDER PAYMENT - WORK PROGRAMME,WWEG EMPLOYMENT PROGRAMMES,INGEUS UK LTD,2022609195,"21,600"
Department for Work and Pensions,Employment Programmes,26-Sep-11,EP PROVIDER PAYMENT - WORK PROGRAMME,WWEG EMPLOYMENT PROGRAMMES,MAXIMUS EMPLOYMENT UK LTD,2022618044,"21,600"
Department for Work and Pensions,Employment Programmes,26-Sep-11,EP PROVIDER PAYMENT - WORK PROGRAMME,WWEG EMPLOYMENT PROGRAMMES,SEETEC BUSINESS TECHNOLOGY CENTRE LTD,2022618440,"21,600"
Department for Work and Pensions,Employment Programmes,27-Sep-11,EP PROVIDER PAYMENT - WORK PROGRAMME,WWEG EMPLOYMENT PROGRAMMES,A4E LTD,2022619713,"21,600"
Department for Work and Pensions,Employment Programmes,30-Sep-11,EP PROVIDER PAYMENT - WORK PROGRAMME,WWEG EMPLOYMENT PROGRAMMES,SEETEC BUSINESS TECHNOLOGY CENTRE LTD,2022696484,"21,600"
Department for Work and Pensions,Employment Programmes,07-Sep-11,ACCESS TO WORK,WWEG EMPLOYMENT PROGRAMMES,REMARK,2022425277,"21,500"
Department for Work and Pensions,Housing Benefits,14-Sep-11,Housing Benefit Admin,WWG Housing Benefit,MELTON BOROUGH COUNCIL,2022524136,"21,427"
Department for Work and Pensions,Corporate,15-Sep-11,ACCOMMODATION,Shared Services,TELEREAL TRILLIUM,2022527125,"21,362"
Department for Work and Pensions,Corporate,23-Sep-11,COMPUTER SERVICES,WWG SUMMARY,ATOS ORIGIN IT SERVICES UK LTD,2022612030,"21,361"
Department for Work and Pensions,"Pension, Disability Carers Services",16-Sep-11,COMPUTER SERVICES,"Pensions, Disability & Carers Service",HP ENTERPRISE SERVICES UK LTD,2022530910,"21,328"
Department for Work and Pensions,Employment Programmes,26-Sep-11,EP PROVIDER PAYMENT - NON-WORK PROGRAMME,WWEG EMPLOYMENT PROGRAMMES,SEETEC BUSINESS TECHNOLOGY CENTRE LTD,2022618440,"21,217"
Department for Work and Pensions,Corporate,30-Sep-11,ACCOMMODATION,GROUP FINANCE,TELEREAL TRILLIUM,2022696617,"21,214"
Department for Work and Pensions,Employment Programmes,01-Sep-11,EP PROVIDER PAYMENT - WORK PROGRAMME,WWEG EMPLOYMENT PROGRAMMES,G4S REGIONAL MANAGEMENT UK & I LTD,2022361014,"21,200"
Department for Work and Pensions,Employment Programmes,01-Sep-11,EP PROVIDER PAYMENT - WORK PROGRAMME,WWEG EMPLOYMENT PROGRAMMES,INGEUS UK LTD,2022361089,"21,200"
Department for Work and Pensions,Employment Programmes,05-Sep-11,EP PROVIDER PAYMENT - WORK PROGRAMME,WWEG EMPLOYMENT PROGRAMMES,INGEUS UK LTD,2022368049,"21,200"
Department for Work and Pensions,Employment Programmes,15-Sep-11,EP PROVIDER PAYMENT - WORK PROGRAMME,WWEG EMPLOYMENT PROGRAMMES,MAXIMUS EMPLOYMENT UK LTD,2022526589,"21,200"
Department for Work and Pensions,Employment Programmes,19-Sep-11,EP PROVIDER PAYMENT - WORK PROGRAMME,WWEG EMPLOYMENT PROGRAMMES,AVANTA ENTERPRISE LTD,2022533249,"21,200"
Department for Work and Pensions,Employment Programmes,20-Sep-11,EP PROVIDER PAYMENT - WORK PROGRAMME,WWEG EMPLOYMENT PROGRAMMES,MAXIMUS EMPLOYMENT UK LTD,2022540016,"21,200"
Department for Work and Pensions,Employment Programmes,22-Sep-11,EP PROVIDER PAYMENT - WORK PROGRAMME,WWEG EMPLOYMENT PROGRAMMES,G4S REGIONAL MANAGEMENT UK & I LTD,2022609114,"21,200"
Department for Work and Pensions,Employment Programmes,22-Sep-11,EP PROVIDER PAYMENT - WORK PROGRAMME,WWEG EMPLOYMENT PROGRAMMES,G4S REGIONAL MANAGEMENT UK & I LTD,2022609114,"21,200"
Department for Work and Pensions,Employment Programmes,23-Sep-11,EP PROVIDER PAYMENT - WORK PROGRAMME,WWEG EMPLOYMENT PROGRAMMES,A4E LTD,2022611997,"21,200"
Department for Work and Pensions,Employment Programmes,26-Sep-11,EP PROVIDER PAYMENT - WORK PROGRAMME,WWEG EMPLOYMENT PROGRAMMES,INGEUS UK LTD,2022617586,"21,200"
Department for Work and Pensions,Employment Programmes,26-Sep-11,EP PROVIDER PAYMENT - WORK PROGRAMME,WWEG EMPLOYMENT PROGRAMMES,NEWCASTLE COLLEGE GROUP,2022618102,"21,200"
Department for Work and Pensions,Employment Programmes,27-Sep-11,EP PROVIDER PAYMENT - WORK PROGRAMME,WWEG EMPLOYMENT PROGRAMMES,PROSPECT SERVICES LTD,2022623231,"21,200"
Department for Work and Pensions,Employment Programmes,29-Sep-11,EP PROVIDER PAYMENT - WORK PROGRAMME,WWEG EMPLOYMENT PROGRAMMES,PERTEMPS,2022690948,"21,200"
Department for Work and Pensions,Employment Programmes,07-Sep-11,EP PROVIDER PAYMENT - NON-WORK PROGRAMME,WWEG EMPLOYMENT PROGRAMMES,A4E LTD,2022379472,"21,153"
Department for Work and Pensions,Employment Programmes,01-Sep-11,EP PROVIDER PAYMENT - NON-WORK PROGRAMME,WWEG EMPLOYMENT PROGRAMMES,SERCO LTD,2022361754,"21,125"
Department for Work and Pensions,Employment Programmes,06-Sep-11,EP PROVIDER PAYMENT - NON-WORK PROGRAMME,WWEG EMPLOYMENT PROGRAMMES,REMPLOY LTD,2022372916,"21,098"
Department for Work and Pensions,Corporate,30-Sep-11,TEMPORARY (TEMP) STAFF COSTS,GROUP FINANCE,CAPITA RESOURCING LTD,2022693655,"21,022"
Department for Work and Pensions,Housing Benefits,14-Sep-11,Housing Benefit Admin,WWG Housing Benefit,RICHMONDSHIRE DISTRICT COUNCIL,2022524192,"20,986"
Department for Work and Pensions,Employment Programmes,07-Sep-11,EP PROVIDER PAYMENT - NON-WORK PROGRAMME,WWEG EMPLOYMENT PROGRAMMES,WORKING LINKS,2022437132,"20,925"
Department for Work and Pensions,Jobcentre Plus,29-Sep-11,EMPLOYMENT PROGRAMMES,"Pensions, Disability & Carers Service",SENCIA LTD,2022691248,"20,905"
Department for Work and Pensions,Corporate,05-Sep-11,ACCOMMODATION COSTS,Shared Services,TELEREAL TRILLIUM,2022368972,"20,833"
Department for Work and Pensions,Corporate,13-Sep-11,APPS DEV,Shared Services,HP ENTERPRISE SERVICES UK LTD,2022455951,"20,823"
Department for Work and Pensions,Employment Programmes,01-Sep-11,EP PROVIDER PAYMENT - WORK PROGRAMME,WWEG EMPLOYMENT PROGRAMMES,WORKING LINKS,2022361899,"20,800"
